Beneficiary,Category/Purpose,Department,     Net value,VAT Value,Gross,Date incurred -Payment Date
16 to 21 Project Ltd,Residential Placements,Childrens Placements,8769.00,0.00,8769.00,06/05/2016
2020 Legal Limited,Other Agencies/Local Authorities 3rd Party Payment,Liability Insurance,2000.00,0.00,2000.00,26/04/2016
24 Seven Fostering Services Ltd,Foster Payments,Leaving Care Placements,3107.14,0.00,3107.14,06/04/2016
24 Seven Fostering Services Ltd,Foster Payments,Leaving Care Placements,3321.43,0.00,3321.43,06/04/2016
24 Seven Fostering Services Ltd,Foster Payments,Leaving Care Placements,3214.29,0.00,3214.29,07/06/2016
24 Seven Fostering Services Ltd,Foster Payments,Leaving Care Placements,3321.43,0.00,3321.43,07/06/2016
24Seven Group Ltd,Staff training (General),Learning and Development,7140.00,1428.00,8568.00,18/04/2016
3 Fox International,Advertising,Regeneration and Design,4950.00,990.00,5940.00,28/04/2016
36 Bedford Row,Legal Fees/Advocacy,Divisional Director Targeted Services,525.00,105.00,630.00,18/04/2016
4imprint Direct Limited,Stationery & In House Printing,Mayoralty,460.84,92.17,553.01,06/06/2016
4imprint Direct Limited,Advertising,Harrow Arts Centre,870.50,174.10,1044.60,07/06/2016
4OC Ltd,Consultants Fees,IT Contractors,17326.75,3465.35,20792.10,04/05/2016
5 St Andrew's Hill,Legal Fees/Advocacy,Development Control,575.00,115.00,690.00,18/04/2016
9th Kenton Scout Group,Grants and Subscriptions,Voluntary Org Grants,2000.00,0.00,2000.00,20/05/2016
A Sllice Of Nice,Miscellaneous Supplies & Services Cost,Regeneration and Design,650.00,0.00,650.00,15/06/2016
A.R.C.S Environmental Ltd,"Private Contractors, Third Party Payments",,500.00,100.00,600.00,05/04/2016
A.R.C.S Environmental Ltd,"Private Contractors, Third Party Payments",,500.00,100.00,600.00,15/06/2016
A.R.C.S Environmental Ltd,"Private Contractors, Third Party Payments",,495.00,99.00,594.00,26/05/2016
A.S.A.P (Asperger's Syndrome Access,Grants and Subscriptions,Voluntary Org Grants,2000.00,0.00,2000.00,01/06/2016
Abbey Law Costs Consultants Ltd,Legal Fees/Advocacy,Barnet Council Legal Services,750.00,150.00,900.00,15/06/2016
Abbey Law Costs Consultants Ltd,Legal Fees/Advocacy,Hounslow Inter Authority Agreement,700.00,140.00,840.00,29/06/2016
Abbey Law Costs Consultants Ltd,Legal Fees/Advocacy,Director of Planning & Regeneration,483.00,96.60,579.60,26/05/2016
ABC Housing,Semi Independent,Leaving Care Placements,1328.35,0.00,1328.35,06/04/2016
ABC Housing,Semi Independent,Leaving Care Placements,1485.60,0.00,1485.60,06/04/2016
ABC Housing,Semi Independent,Leaving Care Placements,2599.80,0.00,2599.80,06/04/2016
ABC Housing,Foster Payments,Asylum Client Expenditure,1328.35,0.00,1328.35,14/04/2016
ABC Housing,Semi Independent,Childrens Placements,742.80,0.00,742.80,06/05/2016
ABC Housing,Semi Independent,Leaving Care Placements,1285.50,0.00,1285.50,06/05/2016
ABC Housing,Semi Independent,Childrens Placements,1299.90,0.00,1299.90,06/05/2016
ABC Housing,Semi Independent,Childrens Placements,2785.50,0.00,2785.50,06/05/2016
ABC Housing,Semi Independent,Childrens Placements,2785.50,0.00,2785.50,06/05/2016
ABC Housing,Foster Payments,Asylum Client Expenditure,1285.50,0.00,1285.50,13/05/2016
ABC Housing,Semi Independent,Leaving Care Placements,1328.35,0.00,1328.35,07/06/2016
ABC Housing,Foster Payments,Asylum Client Expenditure,1328.35,0.00,1328.35,07/06/2016
ABC Housing,Semi Independent,Childrens Placements,2878.35,0.00,2878.35,07/06/2016
ABC Housing,Semi Independent,Childrens Placements,2878.35,0.00,2878.35,07/06/2016
Abfallbehalter & Container Weber UK,Refuse Collection,Garden Waste,814.00,162.80,976.80,15/04/2016
Abfallbehalter & Container Weber UK,Refuse Collection,,4462.00,892.40,5354.40,25/05/2016
ABI Support Services Ltd,Residential Placements,Long Term Team - LD,1971.43,0.00,1971.43,27/04/2016
ABI Support Services Ltd,Residential Placements,Long Term Team - LD,6372.77,0.00,6372.77,27/04/2016
ABI Support Services Ltd,Residential Placements,Long Term Team - LD,2037.14,0.00,2037.14,25/05/2016
ABI Support Services Ltd,Residential Placements,Long Term Team - LD,6585.20,0.00,6585.20,25/05/2016
ABI Support Services Ltd,Residential Placements,Long Term Team - LD,1971.43,0.00,1971.43,28/06/2016
ABI Support Services Ltd,Residential Placements,Long Term Team - LD,6372.77,0.00,6372.77,28/06/2016
Abilities Development,Day Care Payments,Personalisation - LD,1087.80,0.00,1087.80,28/04/2016
Abilities Development,Day Care Payments,Personalisation - LD,932.40,0.00,932.40,26/05/2016
Abilities Development,Day Care Payments,Personalisation - LD,1087.80,0.00,1087.80,28/06/2016
Above Beyond Care,Semi Independent,Childrens Placements,2204.73,0.00,2204.73,06/04/2016
Above Beyond Care,Semi Independent,Childrens Placements,3462.30,0.00,3462.30,06/05/2016
Above Beyond Care,Semi Independent,Childrens Placements,3577.71,0.00,3577.71,06/05/2016
Above Beyond Care,Semi Independent,Childrens Placements,3890.70,0.00,3890.70,06/05/2016
Above Beyond Care,Foster Payments,Asylum Client Expenditure,2306.98,0.00,2306.98,13/05/2016
Above Beyond Care,Foster Payments,Asylum Client Expenditure,3814.70,0.00,3814.70,13/05/2016
Above Beyond Care,Semi Independent,Childrens Placements,3577.71,0.00,3577.71,07/06/2016
Above Beyond Care,Semi Independent,Childrens Placements,4020.39,0.00,4020.39,07/06/2016
Above Beyond Care,Foster Payments,Asylum Client Expenditure,4020.39,0.00,4020.39,07/06/2016
Academy Consulting,Consultants Fees,,4700.00,940.00,5640.00,27/04/2016
Academy Consulting,Consultants Fees,,1500.00,300.00,1800.00,25/05/2016
Academy Consulting,Consultants Fees,,2000.00,400.00,2400.00,28/06/2016
Accedo Care Ltd,Residential Placements,Long Term Team - LD,843.77,0.00,843.77,27/04/2016
Access Independent,Consultants Fees,Freedom Pass & Taxicards,7894.00,1578.80,9472.80,31/05/2016
Access Independent,Consultants Fees,Freedom Pass & Taxicards,6024.00,1204.80,7228.80,28/06/2016
Accident Exchange Limited,Other Agencies/Local Authorities 3rd Party Payment,Motor Insurance,8100.00,0.00,8100.00,13/06/2016
Accountant General of Senior Court,Legal Fees/Advocacy,Barnet Council Legal Services,1500.00,0.00,1500.00,29/06/2016
Accountant General of Senior Courts,Other Agencies/Local Authorities 3rd Party Payment,Liability Insurance,-1062.50,0.00,-1062.50,18/04/2016
Accountant General of Senior Courts,Other Agencies/Local Authorities 3rd Party Payment,Liability Insurance,1062.50,0.00,1062.50,18/04/2016
Accountant General of Senior Courts,Other Agencies/Local Authorities 3rd Party Payment,Motor Insurance,1062.50,0.00,1062.50,22/04/2016
ACEducation,Foster Payments,Fostering,1800.00,360.00,2160.00,15/06/2016
ACH of London LLP,Residential Placements,Long Term Team - LD,6857.14,0.00,6857.14,27/04/2016
ACH of London LLP,Adults & Social - Client Charges,Long Term Team - LD,-437.06,0.00,-437.06,27/04/2016
ACH of London LLP,Residential Placements,Long Term Team - LD,7085.71,0.00,7085.71,25/05/2016
ACH of London LLP,Adults & Social - Client Charges,Long Term Team - LD,-451.63,0.00,-451.63,25/05/2016
ACH of London LLP,Adults & Social - Client Charges,Long Term Team - LD,-437.05,0.00,-437.05,28/06/2016
ACH of London LLP,Residential Placements,Long Term Team - LD,6857.15,0.00,6857.15,28/06/2016
ACME Seals,Security Costs,Cashiers Services,530.00,106.00,636.00,25/05/2016
ACORN MONTESSORI SCHOOL,Voluntary Organisations TPP,2 year old offer,1674.75,0.00,1674.75,11/04/2016
ACORN MONTESSORI SCHOOL,Voluntary Organisations TPP,Dsg Nursery Educ Grant 3yrs & 4yrs,1965.60,0.00,1965.60,11/04/2016
ACORN MONTESSORI SCHOOL,Voluntary Organisations TPP,Dsg Nursery Educ Grant 3yrs & 4yrs,16090.20,0.00,16090.20,11/04/2016
ACORN MONTESSORI SCHOOL,Voluntary Organisations TPP,2 year old offer,2618.00,0.00,2618.00,08/06/2016
ACORN MONTESSORI SCHOOL,Voluntary Organisations TPP,Dsg Nursery Educ Grant 3yrs & 4yrs,4964.40,0.00,4964.40,08/06/2016
ACORN MONTESSORI SCHOOL,Voluntary Organisations TPP,Dsg Nursery Educ Grant 3yrs & 4yrs,28480.20,0.00,28480.20,08/06/2016
ACS BPS Ltd,"Equipment Lease, Purchase, Maintenance and Repair",Car Parking,4176.99,835.40,5012.39,03/05/2016
Active Care Ltd,Residential Schools,Ind & Non Maint Res Sch,-2040.00,0.00,-2040.00,22/04/2016
Active Care Ltd,Residential Schools,Ind & Non Maint Res Sch,2100.00,0.00,2100.00,22/04/2016
Active Care Ltd,Residential Schools,Ind & Non Maint Res Sch,3000.00,0.00,3000.00,22/04/2016
Active8 Care Ltd (Keys Group),Residential Placements,Childrens Placements,2428.57,0.00,2428.57,06/04/2016
Active8 Care Ltd (Keys Group),Residential Placements,Childrens Placements,11514.33,0.00,11514.33,06/04/2016
Active8 Care Ltd (Keys Group),Residential Placements,Childrens Placements,12628.57,0.00,12628.57,06/04/2016
Active8 Care Ltd (Keys Group),Residential Placements,Childrens Placements,11142.90,0.00,11142.90,06/05/2016
Active8 Care Ltd (Keys Group),Grants and Subscriptions,CLA Pupil Premium Grant,500.00,0.00,500.00,27/05/2016
Adam Wolanski,Other Agencies/Local Authorities 3rd Party Payment,Liability Insurance,17400.00,0.00,17400.00,18/04/2016
Adams & Sutherland,Grounds Maintenance/Landscaping,,3800.00,760.00,4560.00,13/06/2016
Addington Medical Centre,Miscellaneous Supplies & Services Cost,Barnet: Sexual Health Services,559.47,0.00,559.47,05/05/2016
Addington Medical Centre,Miscellaneous Supplies & Services Cost,Barnet: Sexual Health Services,920.00,0.00,920.00,10/05/2016
Adler &  Rosenberg Surgery,Miscellaneous Supplies & Services Cost,Barnet: Health Check Programme,550.00,0.00,550.00,27/06/2016
Admiral Law,Other Agencies/Local Authorities 3rd Party Payment,Motor Insurance,1000.00,0.00,1000.00,29/04/2016
Adolphus Care,Supptd Accommodation for Social Care Clients,Personalisation - LD,2165.14,0.00,2165.14,27/04/2016
Adolphus Care,Supptd Accommodation for Social Care Clients,Long Term Team - PD,2804.19,0.00,2804.19,27/04/2016
Adolphus Care,Adults & Social - Client Charges,Long Term Team - PD,-286.11,0.00,-286.11,27/04/2016
Adolphus Care,Supptd Accommodation for Social Care Clients,Long Term Team - LD,3183.69,0.00,3183.69,27/04/2016
Adolphus Care,Supptd Accommodation for Social Care Clients,Long Term Team - LD,4565.14,0.00,4565.14,27/04/2016
Adolphus Care,Supptd Accommodation for Social Care Clients,Long Term Team - LD,4894.29,0.00,4894.29,27/04/2016
Adolphus Care,Supptd Accommodation for Social Care Clients,Long Term Team - OP,5512.19,0.00,5512.19,27/04/2016
Adolphus Care,Supptd Accommodation for Social Care Clients,Long Term Team - OP,5640.72,0.00,5640.72,27/04/2016
Adolphus Care,Supptd Accommodation for Social Care Clients,Long Term Team - LD,8901.43,0.00,8901.43,27/04/2016
Adolphus Care,Supptd Accommodation for Social Care Clients,Long Term Team - OP,10551.43,0.00,10551.43,27/04/2016
Adolphus Care,Supptd Accommodation for Social Care Clients,Long Term Team - PD,14862.00,0.00,14862.00,27/04/2016
Adolphus Care,Supptd Accommodation for Social Care Clients,Long Term Team - LD,-1273.48,0.00,-1273.48,26/05/2016
Adolphus Care,Supptd Accommodation for Social Care Clients,Personalisation - LD,2237.31,0.00,2237.31,26/05/2016
Adolphus Care,Supptd Accommodation for Social Care Clients,Long Term Team - PD,2897.66,0.00,2897.66,26/05/2016
Adolphus Care,Adults & Social - Client Charges,Long Term Team - PD,-295.65,0.00,-295.65,26/05/2016
Adolphus Care,Supptd Accommodation for Social Care Clients,Long Term Team - LD,4717.31,0.00,4717.31,26/05/2016
Adolphus Care,Supptd Accommodation for Social Care Clients,Long Term Team - LD,5057.43,0.00,5057.43,26/05/2016
Adolphus Care,Supptd Accommodation for Social Care Clients,Long Term Team - LD,9198.14,0.00,9198.14,26/05/2016
Adolphus Care,Supptd Accommodation for Social Care Clients,Long Term Team - PD,9672.00,0.00,9672.00,26/05/2016
Adolphus Care,Supptd Accommodation for Social Care Clients,Long Term Team - OP,10903.14,0.00,10903.14,26/05/2016
Adolphus Care,Supptd Accommodation for Social Care Clients,Long Term Team - LD,-32412.00,0.00,-32412.00,27/06/2016
Adolphus Care,Supptd Accommodation for Social Care Clients,Long Term Team - OP,-10551.43,0.00,-10551.43,27/06/2016
Adolphus Care,Supptd Accommodation for Social Care Clients,Long Term Team - LD,-8390.71,0.00,-8390.71,27/06/2016
Adolphus Care,Supptd Accommodation for Social Care Clients,Long Term Team - PD,-7424.29,0.00,-7424.29,27/06/2016
Adolphus Care,Supptd Accommodation for Social Care Clients,Long Term Team - LD,-4894.28,0.00,-4894.28,27/06/2016
Adolphus Care,Supptd Accommodation for Social Care Clients,Long Term Team - LD,-4565.15,0.00,-4565.15,27/06/2016
Adolphus Care,Adults & Social - Client Charges,Long Term Team - PD,286.12,0.00,286.12,27/06/2016
Adolphus Care,Supptd Accommodation for Social Care Clients,Long Term Team - PD,-2804.18,0.00,-2804.18,27/06/2016
Adolphus Care,Supptd Accommodation for Social Care Clients,Personalisation - LD,-2165.15,0.00,-2165.15,27/06/2016
Adolphus Care,Supptd Accommodation for Social Care Clients,Personalisation - LD,2165.15,0.00,2165.15,27/06/2016
Adolphus Care,Adults & Social - Client Charges,Long Term Team - PD,-286.12,0.00,-286.12,27/06/2016
Adolphus Care,Supptd Accommodation for Social Care Clients,Long Term Team - PD,2804.18,0.00,2804.18,27/06/2016
Adolphus Care,Supptd Accommodation for Social Care Clients,Long Term Team - LD,4565.15,0.00,4565.15,27/06/2016
Adolphus Care,Supptd Accommodation for Social Care Clients,Long Term Team - LD,4894.28,0.00,4894.28,27/06/2016
Adolphus Care,Supptd Accommodation for Social Care Clients,Long Term Team - PD,7424.29,0.00,7424.29,27/06/2016
Adolphus Care,Supptd Accommodation for Social Care Clients,Long Term Team - LD,8390.71,0.00,8390.71,27/06/2016
Adolphus Care,Supptd Accommodation for Social Care Clients,Long Term Team - OP,10551.43,0.00,10551.43,27/06/2016
Adolphus Care,Supptd Accommodation for Social Care Clients,Long Term Team - LD,32412.00,0.00,32412.00,27/06/2016
Adolphus Care,Supptd Accommodation for Social Care Clients,Personalisation - LD,2165.15,0.00,2165.15,28/06/2016
Adolphus Care,Adults & Social - Client Charges,Long Term Team - PD,-286.12,0.00,-286.12,28/06/2016
Adolphus Care,Supptd Accommodation for Social Care Clients,Long Term Team - PD,2804.18,0.00,2804.18,28/06/2016
Adolphus Care,Supptd Accommodation for Social Care Clients,Long Term Team - LD,4565.15,0.00,4565.15,28/06/2016
Adolphus Care,Supptd Accommodation for Social Care Clients,Long Term Team - LD,4894.28,0.00,4894.28,28/06/2016
Adolphus Care,Supptd Accommodation for Social Care Clients,Long Term Team - PD,7424.29,0.00,7424.29,28/06/2016
Adolphus Care,Supptd Accommodation for Social Care Clients,Long Term Team - LD,8390.71,0.00,8390.71,28/06/2016
Adolphus Care,Supptd Accommodation for Social Care Clients,Long Term Team - OP,10551.43,0.00,10551.43,28/06/2016
Adolphus Care,Supptd Accommodation for Social Care Clients,Long Term Team - LD,32412.00,0.00,32412.00,28/06/2016
Adrian Davis,Legal Fees/Advocacy,Homelessness,800.00,160.00,960.00,16/06/2016
Advanced Ticketing Ltd,Event Suppliers,Harrow Arts Centre,955.61,191.12,1146.73,27/04/2016
Advantage Business Gifts Ltd,Professional Services - Curriculum,TFL funded revenue schemes,759.60,151.92,911.52,22/06/2016
Affinity Water,Water Rates/Charges (including sewage),Depot,1034.59,0.00,1034.59,13/04/2016
Affinity Water,Water Rates/Charges (including sewage),Depot,1670.82,0.00,1670.82,10/05/2016
Affinity Water,Water Rates/Charges (including sewage),Estates & Community Halls,692.68,0.00,692.68,27/05/2016
Affinity Water,Water Rates/Charges (including sewage),Harrow Arts Centre,20586.79,0.00,20586.79,27/05/2016
Affinity Water,Water Rates/Charges (including sewage),Estates & Community Halls,654.90,0.00,654.90,03/06/2016
Affinity Water,Water Rates/Charges (including sewage),Estates & Community Halls,146494.04,0.00,146494.04,03/06/2016
Affinity Water,Water Rates/Charges (including sewage),Estates & Community Halls,520.59,0.00,520.59,06/06/2016
Affinity Water,Water Rates/Charges (including sewage),Civic Centre Accommodation,-4473.28,0.00,-4473.28,17/06/2016
Affinity Water,Water Rates/Charges (including sewage),Depot,1227.27,0.00,1227.27,17/06/2016
Affinity Water,Water Rates/Charges (including sewage),Civic Centre Accommodation,4473.28,0.00,4473.28,17/06/2016
Affinity Water,Water Rates/Charges (including sewage),Civic Centre Accommodation,5578.85,0.00,5578.85,17/06/2016
Affinity Water,Water Rates/Charges (including sewage),Civic Centre Accommodation,5951.54,0.00,5951.54,20/06/2016
Affinity Water,Water Rates/Charges (including sewage),Estates & Community Halls,654.02,0.00,654.02,30/06/2016
Affinity Water,Water Rates/Charges (including sewage),Estates & Community Halls,3410.56,0.00,3410.56,30/06/2016
Affinity Water,Water Rates/Charges (including sewage),Estates & Community Halls,3543.90,0.00,3543.90,30/06/2016
Affinity Water,Water Rates/Charges (including sewage),1 Southdown Close (Pct),695.35,0.00,695.35,06/04/2016
Affinity Water,Water Rates/Charges (including sewage),7 Kenton Road,587.20,0.00,587.20,08/04/2016
Affinity Water,Water Rates/Charges (including sewage),Roxborough Park,1246.53,0.00,1246.53,11/04/2016
Affinity Water,Water Rates/Charges (including sewage),56 Welldon Cres. & 26 Harrow View,582.69,0.00,582.69,06/06/2016
Affinity Water,Water Rates/Charges (including sewage),Bedford House,3046.54,0.00,3046.54,29/06/2016
African Cultural Association,Other Professional Fees,Community Learning Trust,2124.00,0.00,2124.00,04/05/2016
African Cultural Association,Other Professional Fees,Community Learning Trust,2832.00,0.00,2832.00,04/05/2016
Age UK Harrow,Other Agencies/Local Authorities 3rd Party Payment,Voluntary Org Grants,2320.47,0.00,2320.47,23/05/2016
Age UK Harrow,"Counselling, Therapy",Service Level Agreement,20865.00,0.00,20865.00,03/06/2016
Age UK Harrow,"Counselling, Therapy",Service Level Agreement,20865.00,0.00,20865.00,23/06/2016
Aisa Medical Ltd,Consultants Fees,Mental Health - Non Pooled/ DoLS,550.17,0.00,550.17,08/06/2016
AKDesign Consultants Limited,Building Maintenance Exit Costs,Housing Repairs,523.00,104.60,627.60,20/04/2016
AKDesign Consultants Limited,Building Maintenance Exit Costs,Housing Repairs,695.00,139.00,834.00,15/06/2016
Akram Mollahassani,"Highways - Statutory Design, Supervision & Licence",Vehicle Accesses,1807.60,0.00,1807.60,28/04/2016
AKRAS Solutions Ltd,Consultants Fees,Mental Health - Non Pooled/ DoLS,1040.22,0.00,1040.22,25/04/2016
AKRAS Solutions Ltd,Consultants Fees,Mental Health - Non Pooled/ DoLS,2600.55,0.00,2600.55,25/04/2016
AKRAS Solutions Ltd,Consultants Fees,Mental Health - Non Pooled/ DoLS,2600.55,0.00,2600.55,25/04/2016
ALDWYCH (HARROW) LTD,Accommodation,Housing Needs,2790.00,0.00,2790.00,21/06/2016
ALDWYCH (HARROW) LTD,Accommodation,Housing Needs,3000.00,0.00,3000.00,21/06/2016
ALDWYCH (HARROW) LTD,Accommodation,Housing Needs,3592.00,0.00,3592.00,21/06/2016
Aldwych Harrow Ltd,Accommodation,Housing Needs,1525.92,0.00,1525.92,11/05/2016
Alexander Booth,Legal Fees/Advocacy,Barnet Council Legal Services,875.00,175.00,1050.00,25/05/2016
All Saints Playgroup,Voluntary Organisations TPP,Dsg Nursery Educ Grant 3yrs & 4yrs,7371.00,0.00,7371.00,11/04/2016
All Saints Playgroup,Voluntary Organisations TPP,Dsg Nursery Educ Grant 3yrs & 4yrs,9835.80,0.00,9835.80,08/06/2016
All Saints Pre-school,Voluntary Organisations TPP,2 year old offer,1716.00,0.00,1716.00,11/04/2016
All Saints Pre-school,Voluntary Organisations TPP,Dsg Nursery Educ Grant 3yrs & 4yrs,4843.80,0.00,4843.80,11/04/2016
All Saints Pre-school,Voluntary Organisations TPP,2 year old offer,2574.00,0.00,2574.00,08/06/2016
All Saints Pre-school,Voluntary Organisations TPP,Dsg Nursery Educ Grant 3yrs & 4yrs,8587.80,0.00,8587.80,08/06/2016
All Saints' Trust,Grants and Subscriptions,Harrow Academies Costed Statements,24000.00,0.00,24000.00,29/04/2016
Allfor Care Alpha Care Recruitment,Domiciliary Care,Personalisation - OP,514.89,0.00,514.89,15/04/2016
Allfor Care Alpha Care Recruitment,Domiciliary Care,Personalisation - OP,552.53,0.00,552.53,15/04/2016
Allfor Care Alpha Care Recruitment,Domiciliary Care,Personalisation - PD,893.16,0.00,893.16,15/04/2016
Allfor Care Alpha Care Recruitment,Domiciliary Care,Personalisation - OP,954.79,0.00,954.79,15/04/2016
Allfor Care Alpha Care Recruitment,Domiciliary Care,Personalisation - PD,1075.29,0.00,1075.29,15/04/2016
Allfor Care Alpha Care Recruitment,Domiciliary Care,Personalisation - PD,1652.12,0.00,1652.12,15/04/2016
Allfor Care Alpha Care Recruitment,Domiciliary Care,Personalisation - PD,1652.12,0.00,1652.12,15/04/2016
Allfor Care Alpha Care Recruitment,Domiciliary Care,Personalisation - PD,514.88,0.00,514.88,27/04/2016
Allfor Care Alpha Care Recruitment,Domiciliary Care,Personalisation - PD,530.99,0.00,530.99,27/04/2016
Allfor Care Alpha Care Recruitment,Domiciliary Care,Personalisation - PD,751.08,0.00,751.08,27/04/2016
Allfor Care Alpha Care Recruitment,Domiciliary Care,Personalisation - PD,751.08,0.00,751.08,27/04/2016
Allfor Care Alpha Care Recruitment,Domiciliary Care,Personalisation - PD,751.08,0.00,751.08,27/04/2016
Allfor Care Alpha Care Recruitment,Domiciliary Care,Personalisation - OP,1029.76,0.00,1029.76,27/04/2016
Allfor Care Alpha Care Recruitment,Domiciliary Care,Personalisation - OP,1029.76,0.00,1029.76,27/04/2016
Allfor Care Alpha Care Recruitment,Domiciliary Care,Personalisation - OP,1029.76,0.00,1029.76,27/04/2016
Allfor Care Alpha Care Recruitment,Domiciliary Care,Personalisation - OP,1040.72,0.00,1040.72,27/04/2016
Allfor Care Alpha Care Recruitment,Domiciliary Care,Personalisation - OP,1040.72,0.00,1040.72,27/04/2016
Allfor Care Alpha Care Recruitment,Domiciliary Care,Long Term Team - LD,1222.84,0.00,1222.84,27/04/2016
Allfor Care Alpha Care Recruitment,Domiciliary Care,Long Term Team - LD,1222.84,0.00,1222.84,27/04/2016
Allfor Care Alpha Care Recruitment,Domiciliary Care,Personalisation - OP,1415.92,0.00,1415.92,27/04/2016
Allfor Care Alpha Care Recruitment,Domiciliary Care,Personalisation - PD,1802.08,0.00,1802.08,27/04/2016
Allfor Care Alpha Care Recruitment,Domiciliary Care,Personalisation - PD,1802.08,0.00,1802.08,27/04/2016
Allfor Care Alpha Care Recruitment,Domiciliary Care,Personalisation - PD,1802.08,0.00,1802.08,27/04/2016
Allfor Care Alpha Care Recruitment,Domiciliary Care,Children With Disabilities Client Costs,506.52,0.00,506.52,29/04/2016
Allfor Care Alpha Care Recruitment,Domiciliary Care,Children With Disabilities Client Costs,506.52,0.00,506.52,29/04/2016
Allfor Care Alpha Care Recruitment,Domiciliary Care,Children With Disabilities Client Costs,506.52,0.00,506.52,29/04/2016
Allfor Care Alpha Care Recruitment,Domiciliary Care,Children With Disabilities Client Costs,506.52,0.00,506.52,29/04/2016
Allfor Care Alpha Care Recruitment,Domiciliary Care,Children With Disabilities Client Costs,506.52,0.00,506.52,29/04/2016
Allfor Care Alpha Care Recruitment,Domiciliary Care,Children With Disabilities Client Costs,651.24,0.00,651.24,29/04/2016
Allfor Care Alpha Care Recruitment,Domiciliary Care,Children With Disabilities Client Costs,723.60,0.00,723.60,29/04/2016
Allfor Care Alpha Care Recruitment,Domiciliary Care,Children With Disabilities Client Costs,723.60,0.00,723.60,29/04/2016
Allfor Care Alpha Care Recruitment,Domiciliary Care,Children With Disabilities Client Costs,1809.02,0.00,1809.02,29/04/2016
Allfor Care Alpha Care Recruitment,Domiciliary Care,Children With Disabilities Client Costs,1129.92,0.00,1129.92,29/04/2016
Allfor Care Alpha Care Recruitment,Domiciliary Care,Children With Disabilities Client Costs,751.44,0.00,751.44,29/04/2016
Allfor Care Alpha Care Recruitment,Domiciliary Care,Children With Disabilities Client Costs,1935.65,0.00,1935.65,29/04/2016
Allfor Care Alpha Care Recruitment,Domiciliary Care,Children With Disabilities Client Costs,751.44,0.00,751.44,29/04/2016
Allfor Care Alpha Care Recruitment,Domiciliary Care,Children With Disabilities Client Costs,1202.28,0.00,1202.28,29/04/2016
Allfor Care Alpha Care Recruitment,Domiciliary Care,Personalisation - PD,514.88,0.00,514.88,10/05/2016
Allfor Care Alpha Care Recruitment,Domiciliary Care,Personalisation - OP,675.80,0.00,675.80,10/05/2016
Allfor Care Alpha Care Recruitment,Domiciliary Care,Personalisation - OP,675.80,0.00,675.80,10/05/2016
Allfor Care Alpha Care Recruitment,Domiciliary Care,Personalisation - PD,1072.88,0.00,1072.88,10/05/2016
Allfor Care Alpha Care Recruitment,Domiciliary Care,Personalisation - PD,1072.88,0.00,1072.88,10/05/2016
Allfor Care Alpha Care Recruitment,Domiciliary Care,Personalisation - PD,1072.88,0.00,1072.88,10/05/2016
Allfor Care Alpha Care Recruitment,Domiciliary Care,Personalisation - PD,1507.31,0.00,1507.31,10/05/2016
Allfor Care Alpha Care Recruitment,Domiciliary Care,Personalisation - PD,1587.76,0.00,1587.76,10/05/2016
Allfor Care Alpha Care Recruitment,Domiciliary Care,Personalisation - PD,1587.76,0.00,1587.76,10/05/2016
Allfor Care Alpha Care Recruitment,Domiciliary Care,Personalisation - PD,1587.76,0.00,1587.76,10/05/2016
Allfor Care Alpha Care Recruitment,Domiciliary Care,Personalisation - OP,1652.12,0.00,1652.12,10/05/2016
Allfor Care Alpha Care Recruitment,Domiciliary Care,Personalisation - OP,1652.12,0.00,1652.12,10/05/2016
Allfor Care Alpha Care Recruitment,Domiciliary Care,Personalisation - OP,1652.12,0.00,1652.12,10/05/2016
Allfor Care Alpha Care Recruitment,Domiciliary Care,Personalisation - PD,1939.01,0.00,1939.01,10/05/2016
Allfor Care Alpha Care Recruitment,Domiciliary Care,Personalisation - OP,2477.88,0.00,2477.88,10/05/2016
Allfor Care Alpha Care Recruitment,Domiciliary Care,Personalisation - OP,2477.88,0.00,2477.88,10/05/2016
Allfor Care Alpha Care Recruitment,Domiciliary Care,Personalisation - PD,2807.71,0.00,2807.71,10/05/2016
Allfor Care Alpha Care Recruitment,Domiciliary Care,Children With Disabilities Client Costs,868.32,0.00,868.32,17/05/2016
Allfor Care Alpha Care Recruitment,Domiciliary Care,Children With Disabilities Client Costs,892.18,0.00,892.18,17/05/2016
Allfor Care Alpha Care Recruitment,Domiciliary Care,Children With Disabilities Client Costs,506.52,0.00,506.52,25/05/2016
Allfor Care Alpha Care Recruitment,Domiciliary Care,Children With Disabilities Client Costs,989.16,0.00,989.16,25/05/2016
Allfor Care Alpha Care Recruitment,Domiciliary Care,Children With Disabilities Client Costs,1591.94,0.00,1591.94,25/05/2016
Allfor Care Alpha Care Recruitment,Domiciliary Care,Children With Disabilities Client Costs,1104.24,0.00,1104.24,25/05/2016
Allfor Care Alpha Care Recruitment,Domiciliary Care,Children With Disabilities Client Costs,777.12,0.00,777.12,25/05/2016
Allfor Care Alpha Care Recruitment,Domiciliary Care,Personalisation - PD,1477.71,0.00,1477.71,07/06/2016
Allfor Care Alpha Care Recruitment,Domiciliary Care,Personalisation - PD,1619.94,0.00,1619.94,07/06/2016
Allfor Care Alpha Care Recruitment,Domiciliary Care,Personalisation - PD,2499.42,0.00,2499.42,07/06/2016
Allfor Care Alpha Care Recruitment,Domiciliary Care,Personalisation - PD,514.88,0.00,514.88,20/06/2016
Allfor Care Alpha Care Recruitment,Domiciliary Care,Personalisation - PD,751.08,0.00,751.08,20/06/2016
Allfor Care Alpha Care Recruitment,Domiciliary Care,Personalisation - PD,933.22,0.00,933.22,20/06/2016
Allfor Care Alpha Care Recruitment,Domiciliary Care,Personalisation - OP,1029.76,0.00,1029.76,20/06/2016
Allfor Care Alpha Care Recruitment,Domiciliary Care,Personalisation - PD,1072.88,0.00,1072.88,20/06/2016
Allfor Care Alpha Care Recruitment,Domiciliary Care,Personalisation - PD,1169.44,0.00,1169.44,20/06/2016
Allfor Care Alpha Care Recruitment,Domiciliary Care,Long Term Team - LD,1222.84,0.00,1222.84,20/06/2016
Allfor Care Alpha Care Recruitment,Domiciliary Care,Personalisation - OP,1652.12,0.00,1652.12,20/06/2016
Allfor Care Alpha Care Recruitment,Domiciliary Care,Personalisation - PD,1700.39,0.00,1700.39,20/06/2016
Allfor Care Alpha Care Recruitment,Domiciliary Care,Personalisation - PD,1802.08,0.00,1802.08,20/06/2016
Allfor Care Alpha Care Recruitment,Domiciliary Care,Personalisation - OP,2477.88,0.00,2477.88,20/06/2016
Allfor Care ISF,Social Care Personal Budgets,Personalisation - OP,1064.80,0.00,1064.80,18/04/2016
Allfor Care ISF,Adults & Social - Net P.B.'s,Personalisation - OP,-144.44,0.00,-144.44,18/04/2016
Allfor Care ISF,Social Care Personal Budgets,Personalisation - LD,1068.00,0.00,1068.00,18/04/2016
Allfor Care ISF,Adults & Social - Net P.B.'s,Personalisation - OP,-144.44,0.00,-144.44,18/05/2016
Allfor Care ISF,Social Care Personal Budgets,Personalisation - OP,1064.80,0.00,1064.80,18/05/2016
Allfor Care ISF,Social Care Personal Budgets,Personalisation - LD,1068.00,0.00,1068.00,18/05/2016
Allfor Care ISF,Social Care Personal Budgets,Personalisation - OP,1064.80,0.00,1064.80,21/06/2016
Allfor Care ISF,Adults & Social - Net P.B.'s,Personalisation - OP,-144.44,0.00,-144.44,21/06/2016
Allfor Care ISF,Social Care Personal Budgets,Personalisation - LD,1068.00,0.00,1068.00,21/06/2016
ALLPAY LTD,Section 17,CIN Team 3,5000.00,0.00,5000.00,30/06/2016
ALLPAY LTD,Other Agencies/Local Authorities 3rd Party Payment,Children Looked After Team 1,2000.00,0.00,2000.00,08/04/2016
ALLPAY LTD,Other Agencies/Local Authorities 3rd Party Payment,Children Looked After Team 1,2000.00,0.00,2000.00,08/04/2016
ALLPAY LTD,Other Agencies/Local Authorities 3rd Party Payment,MASH Team,2000.00,0.00,2000.00,08/04/2016
ALLPAY LTD,Other Agencies/Local Authorities 3rd Party Payment,MASH Team,2000.00,0.00,2000.00,08/04/2016
ALLPAY LTD,Miscellaneous Supplies & Services Cost,CIN Team 2,2000.00,0.00,2000.00,15/04/2016
ALLPAY LTD,Miscellaneous Supplies & Services Cost,CIN Team 2,2000.00,0.00,2000.00,15/04/2016
ALLPAY LTD,Miscellaneous Supplies & Services Cost,Children Looked After Team 1,-10000.00,0.00,-10000.00,29/04/2016
ALLPAY LTD,Miscellaneous Supplies & Services Cost,Children Looked After Team 1,-10000.00,0.00,-10000.00,29/04/2016
ALLPAY LTD,Miscellaneous Supplies & Services Cost,Children Looked After Team 1,10000.00,0.00,10000.00,29/04/2016
ALLPAY LTD,Miscellaneous Supplies & Services Cost,Children Looked After Team 1,10000.00,0.00,10000.00,29/04/2016
ALLPAY LTD,Miscellaneous Supplies & Services Cost,Children Looked After Team 1,10000.00,0.00,10000.00,03/05/2016
ALLPAY LTD,Miscellaneous Supplies & Services Cost,CIN Team 3,5000.00,0.00,5000.00,20/05/2016
ALLPAY LTD,Miscellaneous Supplies & Services Cost,Section 47 Team,5000.00,0.00,5000.00,20/05/2016
ALLPAY LTD,Miscellaneous Supplies & Services Cost,Children Looked After Team 1,-10000.00,0.00,-10000.00,24/05/2016
ALLPAY LTD,Miscellaneous Supplies & Services Cost,Children Looked After Team 1,10000.00,0.00,10000.00,24/05/2016
ALLPAY LTD,Miscellaneous Supplies & Services Cost,Children Looked After Team 1,10000.00,0.00,10000.00,26/05/2016
Alpha Laundry Systems,Building Maintenance Exit Costs,Cyclical Maintenance,1036.13,207.23,1243.36,27/04/2016
Alpha Laundry Systems,Building Maintenance Exit Costs,Cyclical Maintenance,1255.00,251.00,1506.00,25/05/2016
Alpha Laundry Systems,Building Maintenance Exit Costs,Cyclical Maintenance,958.72,191.74,1150.46,28/06/2016
Alpha Plus Group t/a Abingdon House,Residential Schools,Ind Residential Day School Placement,-9560.00,0.00,-9560.00,21/04/2016
Alpha Plus Group t/a Abingdon House,Residential Schools,Ind Residential Day School Placement,-9560.00,0.00,-9560.00,21/04/2016
Alpha Plus Group t/a Abingdon House,Residential Schools,Ind Residential Day School Placement,-9560.00,0.00,-9560.00,21/04/2016
Alpha Plus Group t/a Abingdon House,Residential Schools,Ind Residential Day School Placement,-9560.00,0.00,-9560.00,21/04/2016
Alpha Plus Group t/a Abingdon House,Residential Schools,Ind Residential Day School Placement,9560.00,0.00,9560.00,21/04/2016
Alpha Plus Group t/a Abingdon House,Residential Schools,Ind Residential Day School Placement,9560.00,0.00,9560.00,21/04/2016
Alpha Plus Group t/a Abingdon House,Residential Schools,Ind Residential Day School Placement,9560.00,0.00,9560.00,21/04/2016
Alpha Plus Group t/a Abingdon House,Residential Schools,Ind Residential Day School Placement,9560.00,0.00,9560.00,21/04/2016
Alpha Plus Group t/a Abingdon House,Residential Schools,Ind Residential Day School Placement,9560.00,0.00,9560.00,08/06/2016
Alpha Plus Group t/a Abingdon House,Residential Schools,Ind Residential Day School Placement,9560.00,0.00,9560.00,08/06/2016
Alpha Plus Group t/a Abingdon House,Residential Schools,Ind Residential Day School Placement,9560.00,0.00,9560.00,08/06/2016
Alpha Plus Group t/a Abingdon House,Residential Schools,Ind Residential Day School Placement,9560.00,0.00,9560.00,08/06/2016
Alpha Preparatory School,Voluntary Organisations TPP,Dsg Nursery Educ Grant 3yrs & 4yrs,3564.00,0.00,3564.00,11/04/2016
Alpha Preparatory School,Voluntary Organisations TPP,Dsg Nursery Educ Grant 3yrs & 4yrs,5643.00,0.00,5643.00,11/04/2016
Alpha Preparatory School,Voluntary Organisations TPP,Dsg Nursery Educ Grant 3yrs & 4yrs,12031.50,0.00,12031.50,08/06/2016
Amac Express Services,Transport (Private Hire),P-DSG Transport Educ - Ops,8592.76,1718.55,10311.31,13/04/2016
Amac Express Services,Transport (Private Hire),P-DSG Transport Educ - Ops,34371.04,0.00,34371.04,13/04/2016
Amac Express Services,Transport (Private Hire),P-DSG Transport Educ - Ops,7156.52,1431.30,8587.82,11/05/2016
Amac Express Services,Transport (Private Hire),P-DSG Transport Educ - Ops,28626.08,0.00,28626.08,11/05/2016
Amac Express Services,Transport (Private Hire),P-DSG Transport Educ - Ops,9099.72,1819.94,10919.66,09/06/2016
Amac Express Services,Transport (Private Hire),P-DSG Transport Educ - Ops,36398.88,0.00,36398.88,09/06/2016
Ambient Landscapes Ltd,Grounds Maintenance/Landscaping,Local Development Framework,5992.38,1198.48,7190.86,23/05/2016
Ambitious about Autism,Residential Placements,Long Term Team - LD,6800.00,0.00,6800.00,27/04/2016
Ambitious about Autism,Professional Services - Curriculum,TU - FE Colleges,18026.39,0.00,18026.39,03/05/2016
Ambitious about Autism,Professional Services - Curriculum,Ind Residential Day School Placement,22979.00,0.00,22979.00,03/06/2016
Ambitious about Autism,Professional Services - Curriculum,Ind Residential Day School Placement,31317.00,0.00,31317.00,03/06/2016
Amethyst Horticulture,Tree Work,Parks/Open Spaces & Playing Fields,780.10,156.02,936.12,25/05/2016
Amy Swinnerton & Associates,Conference Fees and Expenses,HRA Administration,800.00,160.00,960.00,15/06/2016
Amy Turner Design,Stationery & In House Printing,Business & Commercial Team,525.00,0.00,525.00,21/04/2016
Amy Turner Design,Stationery & In House Printing,Business & Commercial Team,850.00,0.00,850.00,21/04/2016
Amy Turner Design,Stationery & In House Printing,Business & Commercial Team,975.00,0.00,975.00,21/04/2016
Amy Turner Design,Stationery & In House Printing,Business & Commercial Team,1000.00,0.00,1000.00,21/04/2016
Amy Turner Design,Stationery & In House Printing,Business & Commercial Team,1150.00,0.00,1150.00,21/04/2016
Andrew Consultancy,Legal Fees/Advocacy,Barnet Council Legal Services,1276.80,0.00,1276.80,25/04/2016
Andrew Pote,Legal Fees/Advocacy,Barnet Council Legal Services,450.00,90.00,540.00,15/06/2016
Anna Walsh,Legal Fees/Advocacy,Barnet Council Legal Services,3950.00,790.00,4740.00,26/05/2016
AON Limited Accounts Division,Other Professional Fees,Insurance Services,1000.00,0.00,1000.00,04/05/2016
AON Limited Accounts Division,Other Professional Fees,Insurance Services,2951.02,0.00,2951.02,04/05/2016
AON Limited Accounts Division,Other Professional Fees,Insurance Services,23521.48,0.00,23521.48,04/05/2016
Aon UK Limited NST LIB,Insurance Premiums,Insurance Services,-422.58,0.00,-422.58,28/04/2016
Aon UK Limited NST LIB,Insurance Premiums,Insurance Services,-422.87,0.00,-422.87,28/04/2016
Aon UK Limited NST LIB,Insurance Premiums,Insurance Services,-529.16,0.00,-529.16,28/04/2016
Aon UK Limited NST LIB,Insurance Premiums,Insurance Services,-424.23,0.00,-424.23,10/06/2016
Aon UK Limited NST LIB,Insurance Premiums,General Housing Revenue Account (HRA),2847.55,0.00,2847.55,28/04/2016
Aon UK Limited NST LIB,Insurance Premiums,General Housing Revenue Account (HRA),2849.48,0.00,2849.48,28/04/2016
Aon UK Limited NST LIB,Insurance Premiums,General Housing Revenue Account (HRA),3565.74,0.00,3565.74,28/04/2016
Aon UK Limited NST LIB,Insurance Premiums,General Housing Revenue Account (HRA),3566.68,0.00,3566.68,17/05/2016
Aon UK Limited NST LIB,Insurance Premiums,General Housing Revenue Account (HRA),2858.67,0.00,2858.67,10/06/2016
Aon UK Limited NST LIB,Miscellaneous Income,General Housing Revenue Account (HRA),-227.54,0.00,-227.54,28/04/2016
Aon UK Limited NST LIB,Miscellaneous Income,General Housing Revenue Account (HRA),-227.70,0.00,-227.70,28/04/2016
Aon UK Limited NST LIB,Miscellaneous Income,General Housing Revenue Account (HRA),-284.93,0.00,-284.93,28/04/2016
Aon UK Limited NST LIB,Miscellaneous Income,General Housing Revenue Account (HRA),-285.01,0.00,-285.01,17/05/2016
Aon UK Limited NST LIB,Miscellaneous Income,General Housing Revenue Account (HRA),-228.43,0.00,-228.43,10/06/2016
Apetito Ltd,Catering  - Costs and Equipment,Adults Catering,524.37,0.00,524.37,31/05/2016
Apple Tree Day Nursery,Voluntary Organisations TPP,2 year old offer,536.25,0.00,536.25,11/04/2016
Apple Tree Day Nursery,Voluntary Organisations TPP,2 year old offer,1608.75,0.00,1608.75,11/04/2016
Apple Tree Day Nursery,Voluntary Organisations TPP,Dsg Nursery Educ Grant 3yrs & 4yrs,4914.00,0.00,4914.00,11/04/2016
Apple Tree Day Nursery,Voluntary Organisations TPP,Dsg Nursery Educ Grant 3yrs & 4yrs,7371.00,0.00,7371.00,11/04/2016
Apple Tree Day Nursery,Voluntary Organisations TPP,2 year old offer,536.25,0.00,536.25,08/06/2016
Apple Tree Day Nursery,Voluntary Organisations TPP,Dsg Nursery Educ Grant 3yrs & 4yrs,1513.20,0.00,1513.20,08/06/2016
Apple Tree Day Nursery,Voluntary Organisations TPP,2 year old offer,1608.75,0.00,1608.75,08/06/2016
Apple Tree Day Nursery,Voluntary Organisations TPP,2 year old offer,5362.50,0.00,5362.50,08/06/2016
Apple Tree Day Nursery,Voluntary Organisations TPP,Dsg Nursery Educ Grant 3yrs & 4yrs,10143.90,0.00,10143.90,08/06/2016
Apple Tree Day Nursery,Voluntary Organisations TPP,Dsg Nursery Educ Grant 3yrs & 4yrs,13827.45,0.00,13827.45,08/06/2016
APSE South and South West,Grants and Subscriptions,Corporate Director Community,3572.00,714.40,4286.40,04/05/2016
APSE South and South West,Conference Fees and Expenses,"Traffic, Highway & Asset Management",498.00,99.60,597.60,13/05/2016
Aqua Mist Fire Protection Ltd,Building Maintenance Exit Costs,Non-Delegated Building Maintenance,600.00,120.00,720.00,27/04/2016
Aquatint BSC Ltd,Printing (external),Harrow Arts Centre,1353.00,0.00,1353.00,14/06/2016
Aratrust,Other Professional Fees,Community Learning Trust,2179.00,0.00,2179.00,27/04/2016
Arbory Residential Home,Residential Placements,Long Term Team - OP,1943.57,0.00,1943.57,18/05/2016
Arbory Residential Home,Residential Placements,Long Term Team - OP,2008.36,0.00,2008.36,20/06/2016
Ardent,Landlord Repairs Exit Costs,,473.00,94.60,567.60,06/04/2016
Ardent,Landlord Repairs Exit Costs,,2200.00,440.00,2640.00,06/04/2016
Ardent,Landlord Repairs Exit Costs,,-5850.45,-1170.09,-7020.54,13/04/2016
Ardent,Landlord Repairs Exit Costs,,-585.70,-117.14,-702.84,13/04/2016
Ardent,Landlord Repairs Exit Costs,,-585.70,-117.14,-702.84,13/04/2016
Ardent,Landlord Repairs Exit Costs,,1250.85,250.17,1501.02,13/04/2016
Ardent,Landlord Repairs Exit Costs,,2875.82,575.16,3450.98,13/04/2016
Ardent,Landlord Repairs Exit Costs,,4361.50,872.30,5233.80,13/04/2016
Ardent,Landlord Repairs Exit Costs,,4760.50,952.10,5712.60,13/04/2016
Ardent,Landlord Repairs Exit Costs,,585.70,117.14,702.84,14/04/2016
Ardent,Landlord Repairs Exit Costs,,585.70,117.14,702.84,14/04/2016
Ardent,Landlord Repairs Exit Costs,,585.70,117.14,702.84,14/04/2016
Ardent,Landlord Repairs Exit Costs,,585.70,117.14,702.84,14/04/2016
Ardent,Landlord Repairs Exit Costs,,585.70,117.14,702.84,14/04/2016
Ardent,Landlord Repairs Exit Costs,,585.70,117.14,702.84,14/04/2016
Ardent,Landlord Repairs Exit Costs,,1585.50,317.10,1902.60,14/04/2016
Ardent,Landlord Repairs Exit Costs,,3520.50,704.10,4224.60,14/04/2016
Ardent,Landlord Repairs Exit Costs,,3652.50,730.50,4383.00,14/04/2016
Ardent,Landlord Repairs Exit Costs,,4720.50,944.10,5664.60,14/04/2016
Ardent,Landlord Repairs Exit Costs,,5850.45,1170.09,7020.54,14/04/2016
Ardent,Landlord Repairs Exit Costs,,5850.45,1170.09,7020.54,14/04/2016
Ardent,Landlord Repairs Exit Costs,,5876.95,1175.39,7052.34,14/04/2016
Ardent,Landlord Repairs Exit Costs,,9780.00,1956.00,11736.00,14/04/2016
Ardent,Landlord Repairs Exit Costs,,13450.00,2690.00,16140.00,14/04/2016
Ardent,Landlord Repairs Exit Costs,,2596.47,519.29,3115.76,22/04/2016
Ardent,Landlord Repairs Exit Costs,,3385.50,677.10,4062.60,22/04/2016
Ardent,Landlord Repairs Exit Costs,,-1750.00,-350.00,-2100.00,06/05/2016
Ardent,Landlord Repairs Exit Costs,,1750.00,350.00,2100.00,06/05/2016
Area Camden Ltd,Residential Placements,Childrens Placements,15500.00,0.00,15500.00,06/04/2016
Argos Business Solutions,Social Services Clients - Other Payments,CIN Team 3,494.07,98.81,592.88,18/05/2016
Argos Business Solutions,Social Services Clients - Other Payments,Cin Team 1,465.76,93.15,558.91,01/06/2016
Ark Elvin Academy,Grants and Subscriptions,CLA Pupil Premium Grant,500.00,0.00,500.00,27/05/2016
Armstrong York Asbestos,"Private Contractors, Third Party Payments",Housing Repairs,-1000.00,-200.00,-1200.00,11/05/2016
Arqiva Services Limited,"Equipment Lease, Purchase, Maintenance and Repair",Parking A/C-On Street Enfrcmnt,5455.00,1091.00,6546.00,13/06/2016
Arrow Transport & Solutions Ltd,Transport (Private Hire),P-DSG Transport Educ - Ops,480.00,96.00,576.00,27/04/2016
Arrow Transport & Solutions Ltd,Transport (Private Hire),P-DSG Transport Educ - Ops,1200.00,240.00,1440.00,04/05/2016
Arvato Government Services,Staff training (General),Revenues - Dso,500.00,100.00,600.00,31/05/2016
Ascensio Ltd,Consultants Fees,Hsg & Com Chg Ben Adm,780.00,156.00,936.00,03/05/2016
Ascensio Ltd,Staff training (General),Access Harrow,4240.00,848.00,5088.00,30/06/2016
Ascot Lawyers,Other Agencies/Local Authorities 3rd Party Payment,Motor Insurance,17500.00,0.00,17500.00,24/05/2016
Ascot Lawyers,Other Agencies/Local Authorities 3rd Party Payment,Motor Insurance,24200.00,0.00,24200.00,01/06/2016
Ascot Laywers,Other Agencies/Local Authorities 3rd Party Payment,Motor Insurance,7750.00,0.00,7750.00,13/04/2016
Ashgale House (Allied Care),Residential Placements,Long Term Team - PD,3580.76,0.00,3580.76,27/04/2016
Ashgale House (Allied Care),Adults & Social - Client Charges,Long Term Team - PD,-333.86,0.00,-333.86,27/04/2016
Ashgale House (Allied Care),Adults & Social - Client Charges,Long Term Team - PD,-344.99,0.00,-344.99,25/05/2016
Ashgale House (Allied Care),Residential Placements,Long Term Team - PD,3700.12,0.00,3700.12,25/05/2016
Ashgale House (Allied Care),Residential Placements,Long Term Team - PD,3580.75,0.00,3580.75,28/06/2016
Ashgale House (Allied Care),Adults & Social - Client Charges,Long Term Team - PD,-333.85,0.00,-333.85,28/06/2016
Ashridge Business School,Legal Fees/Advocacy,Joint Legal Services,19000.00,3800.00,22800.00,11/05/2016
Asian Business Publications Limited,Other Professional Fees,HPT-Help2Let,500.00,100.00,600.00,16/06/2016
Asian People's Disability Alliance,Day Care Payments,Personalisation - LD,630.50,0.00,630.50,28/04/2016
Asian People's Disability Alliance,Day Care Payments,Personalisation - LD,1197.76,0.00,1197.76,28/04/2016
Asian People's Disability Alliance,Day Care Payments,Personalisation - LD,1197.95,0.00,1197.95,28/04/2016
Asian People's Disability Alliance,Day Care Payments,Personalisation - LD,504.40,0.00,504.40,31/05/2016
Asian People's Disability Alliance,Day Care Payments,Personalisation - LD,1008.64,0.00,1008.64,31/05/2016
Asian People's Disability Alliance,Day Care Payments,Personalisation - LD,1008.80,0.00,1008.80,31/05/2016
Asian People's Disability Alliance,Day Care Payments,Personalisation - LD,567.45,0.00,567.45,29/06/2016
Asian People's Disability Alliance,Day Care Payments,Personalisation - LD,1134.72,0.00,1134.72,29/06/2016
Asian People's Disability Alliance,Day Care Payments,Personalisation - LD,1134.90,0.00,1134.90,29/06/2016
Aspen Village Ltd,Nursing Care,Long Term Team - PD,2655.47,0.00,2655.47,27/04/2016
Aspen Village Ltd,Recovery of Costs (External - Non Vatable),Long Term Team - PD,-480.00,0.00,-480.00,27/04/2016
Aspen Village Ltd,Nursing Care,Long Term Team - OP,2194.50,0.00,2194.50,27/04/2016
Aspen Village Ltd,Adults & Social - Client Charges,Long Term Team - PD,-349.54,0.00,-349.54,27/04/2016
Aspen Village Ltd,Residential Placements,Long Term Team - PD,1300.71,0.00,1300.71,27/04/2016
Aspen Village Ltd,Residential Placements,Long Term Team - PD,3272.14,0.00,3272.14,27/04/2016
Aspen Village Ltd,Recovery of Costs (External - Non Vatable),Long Term Team - PD,-496.00,0.00,-496.00,25/05/2016
Aspen Village Ltd,Nursing Care,Long Term Team - PD,2743.99,0.00,2743.99,25/05/2016
Aspen Village Ltd,Nursing Care,Long Term Team - OP,2267.65,0.00,2267.65,25/05/2016
Aspen Village Ltd,Adults & Social - Client Charges,Long Term Team - PD,-361.19,0.00,-361.19,25/05/2016
Aspen Village Ltd,Residential Placements,Long Term Team - PD,1344.07,0.00,1344.07,25/05/2016
Aspen Village Ltd,Residential Placements,Long Term Team - PD,3381.21,0.00,3381.21,25/05/2016
Aspen Village Ltd,Nursing Care,Long Term Team - PD,2655.47,0.00,2655.47,28/06/2016
Aspen Village Ltd,Recovery of Costs (External - Non Vatable),Long Term Team - PD,-480.00,0.00,-480.00,28/06/2016
Aspen Village Ltd,Nursing Care,Long Term Team - OP,2194.50,0.00,2194.50,28/06/2016
Aspen Village Ltd,Residential Placements,Long Term Team - PD,3272.15,0.00,3272.15,28/06/2016
Aspen Village Ltd,Residential Placements,Long Term Team - PD,1300.72,0.00,1300.72,28/06/2016
Aspen Village Ltd,Adults & Social - Client Charges,Long Term Team - PD,-349.55,0.00,-349.55,28/06/2016
Aspire House,Residential Placements,Childrens Placements,19744.86,0.00,19744.86,06/05/2016
Aspire House,Residential Placements,Childrens Placements,21106.66,0.00,21106.66,07/06/2016
Aspri Medical Centre,Miscellaneous Supplies & Services Cost,Harrow: Health Check Programme,1125.00,0.00,1125.00,22/06/2016
Assoc of Directors of Public Health,Miscellaneous Supplies & Services Cost,Harrow Public Health,2000.00,0.00,2000.00,19/04/2016
Assoc of Directors of Public Health,Miscellaneous Supplies & Services Cost,Harrow Public Health,2500.00,0.00,2500.00,20/04/2016
Associated Newspapers Ltd,Advertising,Liquor Licensing,3000.00,600.00,3600.00,07/06/2016
Association of Directors Childrens,Other Agencies/Local Authorities 3rd Party Payment,Childrens Strategic Management,2351.25,470.25,2821.50,24/06/2016
Aston House,Adults & Social - Client Charges,Long Term Team - OP,-590.36,0.00,-590.36,27/04/2016
Aston House,Recovery of Costs (External - Non Vatable),Long Term Team - OP,-480.00,0.00,-480.00,27/04/2016
Aston House,Nursing Care,Long Term Team - OP,2756.19,0.00,2756.19,27/04/2016
Aston House,Nursing Care,Long Term Team - OP,2848.06,0.00,2848.06,25/05/2016
Aston House,Recovery of Costs (External - Non Vatable),Long Term Team - OP,-496.00,0.00,-496.00,25/05/2016
Aston House,Adults & Social - Client Charges,Long Term Team - OP,-610.04,0.00,-610.04,25/05/2016
Aston House,Adults & Social - Client Charges,Long Term Team - OP,-590.35,0.00,-590.35,28/06/2016
Aston House,Recovery of Costs (External - Non Vatable),Long Term Team - OP,-480.00,0.00,-480.00,28/06/2016
Aston House,Nursing Care,Long Term Team - OP,2756.18,0.00,2756.18,28/06/2016
ASW Ecology,Consultants Fees,,499.00,99.80,598.80,06/06/2016
Atkins Limited,Consultants Fees,,2780.00,556.00,3336.00,11/04/2016
Atkins Limited,Consultants Fees,,6602.50,1320.50,7923.00,11/04/2016
Atkins Limited,Consultants Fees,,-2500.00,-500.00,-3000.00,04/05/2016
Atkins Limited,Consultants Fees,,2500.00,500.00,3000.00,04/05/2016
Atkins Limited,Consultants Fees,,3130.00,626.00,3756.00,04/05/2016
Atkins Limited,Consultants Fees,,1677.53,335.51,2013.04,10/05/2016
Atkins Limited,Consultants Fees,Structures Maintenance,565.00,113.00,678.00,14/06/2016
Atomwide LTD,"Computer Software, Purchase and Maintenance",Schools Finance Team Trading A/C,7535.60,1507.12,9042.72,10/05/2016
AUTHORISED PUBLICATIONS,Stationery & In House Printing,Corporate Anti Fraud Team,1000.00,200.00,1200.00,25/05/2016
Autism Consultants Ltd,Day Care Payments,Personalisation - LD,3306.00,0.00,3306.00,28/04/2016
Autism Consultants Ltd,Day Care Payments,Personalisation - LD,2610.00,0.00,2610.00,31/05/2016
Autism Consultants Ltd,Day Care Payments,Personalisation - LD,3480.00,0.00,3480.00,29/06/2016
Autism Wessex,Residential Placements,Long Term Team - LD,1971.43,0.00,1971.43,27/04/2016
Autism Wessex,Residential Placements,Long Term Team - LD,4105.93,0.00,4105.93,27/04/2016
Autism Wessex,Adults & Social - Client Charges,Long Term Team - LD,-344.79,0.00,-344.79,27/04/2016
Autism Wessex,Residential Placements,Long Term Team - LD,2037.14,0.00,2037.14,25/05/2016
Autism Wessex,Residential Placements,Long Term Team - LD,4242.79,0.00,4242.79,25/05/2016
Autism Wessex,Adults & Social - Client Charges,Long Term Team - LD,-356.28,0.00,-356.28,25/05/2016
Autism Wessex,Adults & Social - Client Charges,Long Term Team - LD,-344.78,0.00,-344.78,28/06/2016
Autism Wessex,Residential Placements,Long Term Team - LD,4105.93,0.00,4105.93,28/06/2016
Autism Wessex,Residential Placements,Long Term Team - LD,1971.43,0.00,1971.43,28/06/2016
Auto Items Ltd,Fire Extinguishers,TFL funded revenue schemes,1228.00,245.60,1473.60,27/04/2016
Avanti House School,Grants and Subscriptions,Harrow Academies Costed Statements,12000.00,0.00,12000.00,29/04/2016
Avanti House School,Grants and Subscriptions,Harrow Academies Costed Statements,14539.82,0.00,14539.82,02/06/2016
Avery Healthcare,Adults & Social - Client Charges,Long Term Team - OP,-541.29,0.00,-541.29,28/04/2016
Avery Healthcare,Nursing Care,Long Term Team - OP,1345.93,0.00,1345.93,28/04/2016
Avery Healthcare,Recovery of Costs (External - Non Vatable),Long Term Team - OP,-208.00,0.00,-208.00,28/04/2016
Avery Healthcare,Nursing Care,Long Term Team - OP,1194.35,0.00,1194.35,28/04/2016
Avery Healthcare,Adults & Social - Client Charges,Long Term Team - OP,-1084.03,0.00,-1084.03,28/04/2016
Avery Healthcare,Recovery of Costs (External - Non Vatable),Long Term Team - OP,-480.00,0.00,-480.00,28/04/2016
Avery Healthcare,Nursing Care,Long Term Team - OP,2649.47,0.00,2649.47,28/04/2016
Avery Healthcare,Nursing Care,Long Term Team - OP,2649.47,0.00,2649.47,28/04/2016
Avery Healthcare,Adults & Social - Client Charges,Long Term Team - OP,-994.67,0.00,-994.67,28/04/2016
Avery Healthcare,Recovery of Costs (External - Non Vatable),Long Term Team - OP,-480.00,0.00,-480.00,28/04/2016
Avery Healthcare,Nursing Care,Long Term Team - OP,111.43,0.00,111.43,28/04/2016
Avery Healthcare,Residential Placements,Long Term Team - OP,2100.00,0.00,2100.00,28/04/2016
Avery Healthcare,Adults & Social - Client Charges,Long Term Team - OP,-800.01,0.00,-800.01,28/04/2016
Avery Healthcare,Nursing Care,Long Term Team - OP,1320.00,0.00,1320.00,28/04/2016
Avery Healthcare,Adults & Social - Client Charges,Long Term Team - OP,-848.79,0.00,-848.79,28/04/2016
Avery Healthcare,Recovery of Costs (External - Non Vatable),Long Term Team - OP,-480.00,0.00,-480.00,28/04/2016
Avery Healthcare,Nursing Care,Long Term Team - OP,2649.47,0.00,2649.47,28/04/2016
Avery Healthcare,Adults & Social - Client Charges,Long Term Team - OP,-541.29,0.00,-541.29,28/04/2016
Avery Healthcare,Residential Placements,Long Term Team - OP,1932.00,0.00,1932.00,28/04/2016
Avery Healthcare,Residential Placements,Long Term Team - OP,1971.43,0.00,1971.43,28/04/2016
Avery Healthcare,Adults & Social - Client Charges,Long Term Team - OP,-541.29,0.00,-541.29,28/04/2016
Avery Healthcare,Residential Placements,Long Term Team - OP,1997.14,0.00,1997.14,28/04/2016
Avery Healthcare,Adults & Social - Client Charges,Long Term Team - OP,-541.29,0.00,-541.29,28/04/2016
Avery Healthcare,Residential Placements,Long Term Team - OP,1997.14,0.00,1997.14,28/04/2016
Avery Healthcare,Adults & Social - Client Charges,Long Term Team - OP,-541.29,0.00,-541.29,28/04/2016
Avery Healthcare,Residential Placements,Long Term Team - OP,1997.14,0.00,1997.14,28/04/2016
Avery Healthcare,Adults & Social - Client Charges,Long Term Team - OP,-541.29,0.00,-541.29,28/04/2016
Avery Healthcare,Recovery of Costs (External - Non Vatable),Long Term Team - OP,-480.00,0.00,-480.00,28/04/2016
Avery Healthcare,Nursing Care,Long Term Team - OP,2756.19,0.00,2756.19,28/04/2016
Avery Healthcare,Adults & Social - Client Charges,Long Term Team - OP,-806.27,0.00,-806.27,28/04/2016
Avery Healthcare,Nursing Care,Long Term Team - OP,2649.47,0.00,2649.47,28/04/2016
Avery Healthcare,Recovery of Costs (External - Non Vatable),Long Term Team - OP,-480.00,0.00,-480.00,28/04/2016
Avery Healthcare,Adults & Social - Client Charges,Long Term Team - OP,-688.89,0.00,-688.89,28/04/2016
Avery Healthcare,Nursing Care,Long Term Team - OP,2623.76,0.00,2623.76,28/04/2016
Avery Healthcare,Recovery of Costs (External - Non Vatable),Long Term Team - OP,-480.00,0.00,-480.00,28/04/2016
Avery Healthcare,Adults & Social - Client Charges,Long Term Team - OP,-662.01,0.00,-662.01,28/04/2016
Avery Healthcare,Adults & Social - Client Charges,Long Term Team - OP,-615.99,0.00,-615.99,28/04/2016
Avery Healthcare,Residential Placements,Long Term Team - OP,2100.00,0.00,2100.00,28/04/2016
Avery Healthcare,Nursing Care,Long Term Team - OP,2696.61,0.00,2696.61,28/04/2016
Avery Healthcare,Recovery of Costs (External - Non Vatable),Long Term Team - OP,-480.00,0.00,-480.00,28/04/2016
Avery Healthcare,Adults & Social - Client Charges,Long Term Team - OP,-719.61,0.00,-719.61,28/04/2016
Avery Healthcare,Nursing Care,Long Term Team - OP,2655.47,0.00,2655.47,28/04/2016
Avery Healthcare,Recovery of Costs (External - Non Vatable),Long Term Team - OP,-480.00,0.00,-480.00,28/04/2016
Avery Healthcare,Adults & Social - Client Charges,Long Term Team - OP,-660.64,0.00,-660.64,28/04/2016
Avery Healthcare,Nursing Care,Long Term Team - OP,2704.76,0.00,2704.76,28/04/2016
Avery Healthcare,Recovery of Costs (External - Non Vatable),Long Term Team - OP,-480.00,0.00,-480.00,28/04/2016
Avery Healthcare,Adults & Social - Client Charges,Long Term Team - OP,-704.01,0.00,-704.01,28/04/2016
Avery Healthcare,Nursing Care,Long Term Team - OP,2649.47,0.00,2649.47,28/04/2016
Avery Healthcare,Recovery of Costs (External - Non Vatable),Long Term Team - OP,-480.00,0.00,-480.00,28/04/2016
Avery Healthcare,Adults & Social - Client Charges,Long Term Team - OP,-642.56,0.00,-642.56,28/04/2016
Avery Healthcare,Residential Placements,Long Term Team - PD,1607.14,0.00,1607.14,28/04/2016
Avery Healthcare,Nursing Care,Long Term Team - OP,-355.29,0.00,-355.29,28/04/2016
Avery Healthcare,Recovery of Costs (External - Non Vatable),Long Term Team - OP,-480.00,0.00,-480.00,28/04/2016
Avery Healthcare,Nursing Care,Long Term Team - OP,3000.00,0.00,3000.00,28/04/2016
Avery Healthcare,Adults & Social - Client Charges,Long Term Team - OP,-541.29,0.00,-541.29,28/04/2016
Avery Healthcare,Nursing Care,Long Term Team - OP,2649.47,0.00,2649.47,28/04/2016
Avery Healthcare,Recovery of Costs (External - Non Vatable),Long Term Team - OP,-480.00,0.00,-480.00,28/04/2016
Avery Healthcare,Adults & Social - Client Charges,Long Term Team - OP,-541.29,0.00,-541.29,28/04/2016
Avery Healthcare,Adults & Social - Client Charges,Long Term Team - OP,-541.29,0.00,-541.29,28/04/2016
Avery Healthcare,Recovery of Costs (External - Non Vatable),Long Term Team - OP,-480.00,0.00,-480.00,28/04/2016
Avery Healthcare,Nursing Care,Long Term Team - OP,2649.47,0.00,2649.47,28/04/2016
Avery Healthcare,Recovery of Costs (External - Non Vatable),Long Term Team - OP,-480.00,0.00,-480.00,28/04/2016
Avery Healthcare,Adults & Social - Client Charges,Long Term Team - OP,-541.29,0.00,-541.29,28/04/2016
Avery Healthcare,Nursing Care,Long Term Team - OP,2649.47,0.00,2649.47,28/04/2016
Avery Healthcare,Nursing Care,Long Term Team - OP,2649.47,0.00,2649.47,28/04/2016
Avery Healthcare,Recovery of Costs (External - Non Vatable),Long Term Team - OP,-480.00,0.00,-480.00,28/04/2016
Avery Healthcare,Adults & Social - Client Charges,Long Term Team - OP,-541.29,0.00,-541.29,28/04/2016
Avery Healthcare,Nursing Care,Long Term Team - OP,2649.47,0.00,2649.47,28/04/2016
Avery Healthcare,Recovery of Costs (External - Non Vatable),Long Term Team - OP,-480.00,0.00,-480.00,28/04/2016
Avery Healthcare,Adults & Social - Client Charges,Long Term Team - OP,-541.29,0.00,-541.29,28/04/2016
Avery Healthcare,Nursing Care,Long Term Team - OP,2649.47,0.00,2649.47,28/04/2016
Avery Healthcare,Recovery of Costs (External - Non Vatable),Long Term Team - OP,-480.00,0.00,-480.00,28/04/2016
Avery Healthcare,Adults & Social - Client Charges,Long Term Team - OP,-531.21,0.00,-531.21,28/04/2016
Avery Healthcare,Nursing Care,Long Term Team - OP,2735.19,0.00,2735.19,28/04/2016
Avery Healthcare,Recovery of Costs (External - Non Vatable),Long Term Team - OP,-480.00,0.00,-480.00,28/04/2016
Avery Healthcare,Adults & Social - Client Charges,Long Term Team - OP,-589.11,0.00,-589.11,28/04/2016
Avery Healthcare,Nursing Care,Long Term Team - OP,2696.61,0.00,2696.61,28/04/2016
Avery Healthcare,Recovery of Costs (External - Non Vatable),Long Term Team - OP,-480.00,0.00,-480.00,28/04/2016
Avery Healthcare,Adults & Social - Client Charges,Long Term Team - OP,-541.29,0.00,-541.29,28/04/2016
Avery Healthcare,Residential Placements,Long Term Team - OP,2314.29,0.00,2314.29,28/04/2016
Avery Healthcare,Adults & Social - Client Charges,Long Term Team - OP,-601.16,0.00,-601.16,28/04/2016
Avery Healthcare,Adults & Social - Client Charges,Long Term Team - OP,-541.29,0.00,-541.29,28/04/2016
Avery Healthcare,Residential Placements,Long Term Team - OP,2314.29,0.00,2314.29,28/04/2016
Avery Healthcare,Adults & Social - Client Charges,Long Term Team - OP,-526.41,0.00,-526.41,28/04/2016
Avery Healthcare,Nursing Care,Long Term Team - OP,2785.71,0.00,2785.71,28/04/2016
Avery Healthcare,Recovery of Costs (External - Non Vatable),Long Term Team - OP,-480.00,0.00,-480.00,28/04/2016
Avery Healthcare,Adults & Social - Client Charges,Long Term Team - OP,-532.71,0.00,-532.71,28/04/2016
Avery Healthcare,Residential Placements,Long Term Team - OP,2314.29,0.00,2314.29,28/04/2016
Avery Healthcare,Adults & Social - Client Charges,Long Term Team - OP,-541.29,0.00,-541.29,28/04/2016
Avery Healthcare,Residential Placements,Long Term Team - OP,2357.14,0.00,2357.14,28/04/2016
Avery Healthcare,Recovery of Costs (External - Non Vatable),Long Term Team - OP,-480.00,0.00,-480.00,28/04/2016
Avery Healthcare,Nursing Care,Long Term Team - OP,3000.00,0.00,3000.00,28/04/2016
Avery Healthcare,Adults & Social - Client Charges,Long Term Team - OP,-541.29,0.00,-541.29,28/04/2016
Avery Healthcare,Nursing Care,Long Term Team - OP,2649.47,0.00,2649.47,28/04/2016
Avery Healthcare,Recovery of Costs (External - Non Vatable),Long Term Team - OP,-480.00,0.00,-480.00,28/04/2016
Avery Healthcare,Nursing Care,Long Term Team - OP,2649.47,0.00,2649.47,28/04/2016
Avery Healthcare,Recovery of Costs (External - Non Vatable),Long Term Team - OP,-480.00,0.00,-480.00,28/04/2016
Avery Healthcare,Nursing Care,Long Term Team - PD,2649.47,0.00,2649.47,28/04/2016
Avery Healthcare,Recovery of Costs (External - Non Vatable),Long Term Team - PD,-480.00,0.00,-480.00,28/04/2016
Avery Healthcare,Recovery of Costs (External - Non Vatable),Long Term Team - OP,-480.00,0.00,-480.00,28/04/2016
Avery Healthcare,Nursing Care,Long Term Team - OP,2696.61,0.00,2696.61,28/04/2016
Avery Healthcare,Nursing Care,Long Term Team - OP,2709.47,0.00,2709.47,28/04/2016
Avery Healthcare,Recovery of Costs (External - Non Vatable),Long Term Team - OP,-480.00,0.00,-480.00,28/04/2016
Avery Healthcare,Recovery of Costs (External - Non Vatable),Long Term Team - OP,-480.00,0.00,-480.00,28/04/2016
Avery Healthcare,Nursing Care,Long Term Team - OP,3000.00,0.00,3000.00,28/04/2016
Avery Healthcare,Recovery of Costs (External - Non Vatable),Long Term Team - OP,-480.00,0.00,-480.00,28/04/2016
Avery Healthcare,Nursing Care,Long Term Team - OP,3664.29,0.00,3664.29,28/04/2016
Avery Healthcare,Adults & Social - Client Charges,Long Term Team - OP,-501.60,0.00,-501.60,28/04/2016
Avery Healthcare,Adults & Social - Client Charges,Long Term Team - OP,-484.93,0.00,-484.93,28/04/2016
Avery Healthcare,Respite Costs,Long Term Team - OP,5698.29,0.00,5698.29,28/04/2016
Avery Healthcare,Adults & Social - Client Charges,Long Term Team - OP,-541.29,0.00,-541.29,28/04/2016
Avery Healthcare,Nursing Care,Long Term Team - OP,9964.28,0.00,9964.28,28/04/2016
Avery Healthcare,Nursing Care,Long Term Team - OP,13275.00,0.00,13275.00,28/04/2016
Avery Healthcare,Nursing Care,Long Term Team - OP,1390.79,0.00,1390.79,27/05/2016
Avery Healthcare,Adults & Social - Client Charges,Long Term Team - OP,-559.33,0.00,-559.33,27/05/2016
Avery Healthcare,Recovery of Costs (External - Non Vatable),Long Term Team - OP,-208.00,0.00,-208.00,27/05/2016
Avery Healthcare,Nursing Care,Long Term Team - OP,1168.54,0.00,1168.54,27/05/2016
Avery Healthcare,Nursing Care,Long Term Team - OP,2737.79,0.00,2737.79,27/05/2016
Avery Healthcare,Recovery of Costs (External - Non Vatable),Long Term Team - OP,-496.00,0.00,-496.00,27/05/2016
Avery Healthcare,Adults & Social - Client Charges,Long Term Team - OP,-1120.16,0.00,-1120.16,27/05/2016
Avery Healthcare,Adults & Social - Client Charges,Long Term Team - OP,-826.68,0.00,-826.68,27/05/2016
Avery Healthcare,Residential Placements,Long Term Team - OP,2170.00,0.00,2170.00,27/05/2016
Avery Healthcare,Nursing Care,Long Term Team - OP,1364.00,0.00,1364.00,27/05/2016
Avery Healthcare,Adults & Social - Client Charges,Long Term Team - OP,-877.08,0.00,-877.08,27/05/2016
Avery Healthcare,Nursing Care,Long Term Team - OP,2737.79,0.00,2737.79,27/05/2016
Avery Healthcare,Recovery of Costs (External - Non Vatable),Long Term Team - OP,-496.00,0.00,-496.00,27/05/2016
Avery Healthcare,Residential Placements,Long Term Team - OP,1996.40,0.00,1996.40,27/05/2016
Avery Healthcare,Adults & Social - Client Charges,Long Term Team - OP,-559.33,0.00,-559.33,27/05/2016
Avery Healthcare,Adults & Social - Client Charges,Long Term Team - OP,-559.33,0.00,-559.33,27/05/2016
Avery Healthcare,Residential Placements,Long Term Team - OP,2037.14,0.00,2037.14,27/05/2016
Avery Healthcare,Adults & Social - Client Charges,Long Term Team - OP,-559.33,0.00,-559.33,27/05/2016
Avery Healthcare,Residential Placements,Long Term Team - OP,2063.71,0.00,2063.71,27/05/2016
Avery Healthcare,Residential Placements,Long Term Team - OP,2063.71,0.00,2063.71,27/05/2016
Avery Healthcare,Adults & Social - Client Charges,Long Term Team - OP,-559.33,0.00,-559.33,27/05/2016
Avery Healthcare,Adults & Social - Client Charges,Long Term Team - OP,-559.33,0.00,-559.33,27/05/2016
Avery Healthcare,Residential Placements,Long Term Team - OP,2063.71,0.00,2063.71,27/05/2016
Avery Healthcare,Adults & Social - Client Charges,Long Term Team - OP,-833.15,0.00,-833.15,27/05/2016
Avery Healthcare,Nursing Care,Long Term Team - OP,2848.06,0.00,2848.06,27/05/2016
Avery Healthcare,Recovery of Costs (External - Non Vatable),Long Term Team - OP,-496.00,0.00,-496.00,27/05/2016
Avery Healthcare,Adults & Social - Client Charges,Long Term Team - OP,-711.85,0.00,-711.85,27/05/2016
Avery Healthcare,Recovery of Costs (External - Non Vatable),Long Term Team - OP,-496.00,0.00,-496.00,27/05/2016
Avery Healthcare,Nursing Care,Long Term Team - OP,2737.79,0.00,2737.79,27/05/2016
Avery Healthcare,Recovery of Costs (External - Non Vatable),Long Term Team - OP,-496.00,0.00,-496.00,27/05/2016
Avery Healthcare,Nursing Care,Long Term Team - OP,2711.22,0.00,2711.22,27/05/2016
Avery Healthcare,Adults & Social - Client Charges,Long Term Team - OP,-684.08,0.00,-684.08,27/05/2016
Avery Healthcare,Adults & Social - Client Charges,Long Term Team - OP,-636.52,0.00,-636.52,27/05/2016
Avery Healthcare,Residential Placements,Long Term Team - OP,2170.00,0.00,2170.00,27/05/2016
Avery Healthcare,Nursing Care,Long Term Team - OP,2786.50,0.00,2786.50,27/05/2016
Avery Healthcare,Recovery of Costs (External - Non Vatable),Long Term Team - OP,-496.00,0.00,-496.00,27/05/2016
Avery Healthcare,Adults & Social - Client Charges,Long Term Team - OP,-743.60,0.00,-743.60,27/05/2016
Avery Healthcare,Nursing Care,Long Term Team - OP,2743.99,0.00,2743.99,27/05/2016
Avery Healthcare,Recovery of Costs (External - Non Vatable),Long Term Team - OP,-496.00,0.00,-496.00,27/05/2016
Avery Healthcare,Adults & Social - Client Charges,Long Term Team - OP,-682.66,0.00,-682.66,27/05/2016
Avery Healthcare,Adults & Social - Client Charges,Long Term Team - OP,-727.48,0.00,-727.48,27/05/2016
Avery Healthcare,Recovery of Costs (External - Non Vatable),Long Term Team - OP,-496.00,0.00,-496.00,27/05/2016
Avery Healthcare,Nursing Care,Long Term Team - OP,2794.92,0.00,2794.92,27/05/2016
Avery Healthcare,Nursing Care,Long Term Team - OP,2737.79,0.00,2737.79,27/05/2016
Avery Healthcare,Recovery of Costs (External - Non Vatable),Long Term Team - OP,-496.00,0.00,-496.00,27/05/2016
Avery Healthcare,Adults & Social - Client Charges,Long Term Team - OP,-663.98,0.00,-663.98,27/05/2016
Avery Healthcare,Residential Placements,Long Term Team - PD,1660.71,0.00,1660.71,27/05/2016
Avery Healthcare,Adults & Social - Client Charges,Long Term Team - OP,-559.33,0.00,-559.33,27/05/2016
Avery Healthcare,Nursing Care,Long Term Team - OP,3100.00,0.00,3100.00,27/05/2016
Avery Healthcare,Recovery of Costs (External - Non Vatable),Long Term Team - OP,-496.00,0.00,-496.00,27/05/2016
Avery Healthcare,Nursing Care,Long Term Team - OP,-367.13,0.00,-367.13,27/05/2016
Avery Healthcare,Adults & Social - Client Charges,Long Term Team - OP,-559.33,0.00,-559.33,27/05/2016
Avery Healthcare,Recovery of Costs (External - Non Vatable),Long Term Team - OP,-496.00,0.00,-496.00,27/05/2016
Avery Healthcare,Nursing Care,Long Term Team - OP,2737.79,0.00,2737.79,27/05/2016
Avery Healthcare,Nursing Care,Long Term Team - OP,2737.79,0.00,2737.79,27/05/2016
Avery Healthcare,Recovery of Costs (External - Non Vatable),Long Term Team - OP,-496.00,0.00,-496.00,27/05/2016
Avery Healthcare,Adults & Social - Client Charges,Long Term Team - OP,-559.33,0.00,-559.33,27/05/2016
Avery Healthcare,Nursing Care,Long Term Team - OP,2737.79,0.00,2737.79,27/05/2016
Avery Healthcare,Recovery of Costs (External - Non Vatable),Long Term Team - OP,-496.00,0.00,-496.00,27/05/2016
Avery Healthcare,Adults & Social - Client Charges,Long Term Team - OP,-559.33,0.00,-559.33,27/05/2016
Avery Healthcare,Nursing Care,Long Term Team - OP,2737.79,0.00,2737.79,27/05/2016
Avery Healthcare,Adults & Social - Client Charges,Long Term Team - OP,-559.33,0.00,-559.33,27/05/2016
Avery Healthcare,Recovery of Costs (External - Non Vatable),Long Term Team - OP,-496.00,0.00,-496.00,27/05/2016
Avery Healthcare,Nursing Care,Long Term Team - OP,2737.79,0.00,2737.79,27/05/2016
Avery Healthcare,Recovery of Costs (External - Non Vatable),Long Term Team - OP,-496.00,0.00,-496.00,27/05/2016
Avery Healthcare,Adults & Social - Client Charges,Long Term Team - OP,-559.33,0.00,-559.33,27/05/2016
Avery Healthcare,Nursing Care,Long Term Team - OP,2737.79,0.00,2737.79,27/05/2016
Avery Healthcare,Recovery of Costs (External - Non Vatable),Long Term Team - OP,-496.00,0.00,-496.00,27/05/2016
Avery Healthcare,Adults & Social - Client Charges,Long Term Team - OP,-548.92,0.00,-548.92,27/05/2016
Avery Healthcare,Adults & Social - Client Charges,Long Term Team - OP,-608.75,0.00,-608.75,27/05/2016
Avery Healthcare,Recovery of Costs (External - Non Vatable),Long Term Team - OP,-496.00,0.00,-496.00,27/05/2016
Avery Healthcare,Nursing Care,Long Term Team - OP,2826.36,0.00,2826.36,27/05/2016
Avery Healthcare,Nursing Care,Long Term Team - OP,2786.50,0.00,2786.50,27/05/2016
Avery Healthcare,Recovery of Costs (External - Non Vatable),Long Term Team - OP,-496.00,0.00,-496.00,27/05/2016
Avery Healthcare,Adults & Social - Client Charges,Long Term Team - OP,-559.33,0.00,-559.33,27/05/2016
Avery Healthcare,Adults & Social - Client Charges,Long Term Team - OP,-621.20,0.00,-621.20,27/05/2016
Avery Healthcare,Residential Placements,Long Term Team - OP,2391.43,0.00,2391.43,27/05/2016
Avery Healthcare,Adults & Social - Client Charges,Long Term Team - OP,-559.33,0.00,-559.33,27/05/2016
Avery Healthcare,Residential Placements,Long Term Team - OP,2391.43,0.00,2391.43,27/05/2016
Avery Healthcare,Adults & Social - Client Charges,Long Term Team - OP,-543.96,0.00,-543.96,27/05/2016
Avery Healthcare,Nursing Care,Long Term Team - OP,2878.57,0.00,2878.57,27/05/2016
Avery Healthcare,Recovery of Costs (External - Non Vatable),Long Term Team - OP,-496.00,0.00,-496.00,27/05/2016
Avery Healthcare,Residential Placements,Long Term Team - OP,2391.43,0.00,2391.43,27/05/2016
Avery Healthcare,Adults & Social - Client Charges,Long Term Team - OP,-550.47,0.00,-550.47,27/05/2016
Avery Healthcare,Adults & Social - Client Charges,Long Term Team - OP,-559.33,0.00,-559.33,27/05/2016
Avery Healthcare,Residential Placements,Long Term Team - OP,2435.71,0.00,2435.71,27/05/2016
Avery Healthcare,Adults & Social - Client Charges,Long Term Team - OP,-559.33,0.00,-559.33,27/05/2016
Avery Healthcare,Nursing Care,Long Term Team - OP,3100.00,0.00,3100.00,27/05/2016
Avery Healthcare,Recovery of Costs (External - Non Vatable),Long Term Team - OP,-496.00,0.00,-496.00,27/05/2016
Avery Healthcare,Nursing Care,Long Term Team - OP,2737.79,0.00,2737.79,27/05/2016
Avery Healthcare,Recovery of Costs (External - Non Vatable),Long Term Team - OP,-496.00,0.00,-496.00,27/05/2016
Avery Healthcare,Recovery of Costs (External - Non Vatable),Long Term Team - OP,-496.00,0.00,-496.00,27/05/2016
Avery Healthcare,Nursing Care,Long Term Team - OP,2737.79,0.00,2737.79,27/05/2016
Avery Healthcare,Recovery of Costs (External - Non Vatable),Long Term Team - PD,-496.00,0.00,-496.00,27/05/2016
Avery Healthcare,Nursing Care,Long Term Team - PD,2737.79,0.00,2737.79,27/05/2016
Avery Healthcare,Nursing Care,Long Term Team - OP,2799.79,0.00,2799.79,27/05/2016
Avery Healthcare,Recovery of Costs (External - Non Vatable),Long Term Team - OP,-496.00,0.00,-496.00,27/05/2016
Avery Healthcare,Adults & Social - Client Charges,Long Term Team - OP,-559.33,0.00,-559.33,27/05/2016
Avery Healthcare,Nursing Care,Long Term Team - OP,3100.00,0.00,3100.00,27/05/2016
Avery Healthcare,Recovery of Costs (External - Non Vatable),Long Term Team - OP,-496.00,0.00,-496.00,27/05/2016
Avery Healthcare,Nursing Care,Long Term Team - OP,3100.00,0.00,3100.00,27/05/2016
Avery Healthcare,Adults & Social - Client Charges,Long Term Team - OP,-518.32,0.00,-518.32,27/05/2016
Avery Healthcare,Nursing Care,Long Term Team - OP,3786.43,0.00,3786.43,27/05/2016
Avery Healthcare,Recovery of Costs (External - Non Vatable),Long Term Team - OP,-496.00,0.00,-496.00,27/05/2016
Avery Healthcare,Respite Costs,Long Term Team - OP,4623.43,0.00,4623.43,27/05/2016
Avery Healthcare,Adults & Social - Client Charges,Long Term Team - OP,-501.09,0.00,-501.09,27/05/2016
Avery Healthcare,Nursing Care,Long Term Team - OP,13717.50,0.00,13717.50,27/05/2016
Avery Healthcare,Recovery of Costs (External - Non Vatable),Long Term Team - OP,-1984.00,0.00,-1984.00,27/05/2016
Avery Healthcare,Nursing Care,Long Term Team - OP,15942.85,0.00,15942.85,27/05/2016
Avery Healthcare,Adults & Social - Client Charges,Long Term Team - OP,986.02,0.00,986.02,29/06/2016
Avery Healthcare,Respite Costs,Long Term Team - OP,-9097.72,0.00,-9097.72,29/06/2016
Avery Healthcare,Adults & Social - Client Charges,Long Term Team - OP,-541.28,0.00,-541.28,29/06/2016
Avery Healthcare,Nursing Care,Long Term Team - OP,1345.93,0.00,1345.93,29/06/2016
Avery Healthcare,Nursing Care,Long Term Team - OP,2649.47,0.00,2649.47,29/06/2016
Avery Healthcare,Recovery of Costs (External - Non Vatable),Long Term Team - OP,-480.00,0.00,-480.00,29/06/2016
Avery Healthcare,Adults & Social - Client Charges,Long Term Team - OP,-1084.03,0.00,-1084.03,29/06/2016
Avery Healthcare,Adults & Social - Client Charges,Long Term Team - OP,-800.02,0.00,-800.02,29/06/2016
Avery Healthcare,Residential Placements,Long Term Team - OP,2100.00,0.00,2100.00,29/06/2016
Avery Healthcare,Nursing Care,Long Term Team - OP,1320.00,0.00,1320.00,29/06/2016
Avery Healthcare,Adults & Social - Client Charges,Long Term Team - OP,-848.78,0.00,-848.78,29/06/2016
Avery Healthcare,Recovery of Costs (External - Non Vatable),Long Term Team - OP,-480.00,0.00,-480.00,29/06/2016
Avery Healthcare,Nursing Care,Long Term Team - OP,2649.47,0.00,2649.47,29/06/2016
Avery Healthcare,Adults & Social - Client Charges,Long Term Team - OP,-541.28,0.00,-541.28,29/06/2016
Avery Healthcare,Residential Placements,Long Term Team - OP,1932.00,0.00,1932.00,29/06/2016
Avery Healthcare,Adults & Social - Client Charges,Long Term Team - OP,-541.28,0.00,-541.28,29/06/2016
Avery Healthcare,Residential Placements,Long Term Team - OP,1971.43,0.00,1971.43,29/06/2016
Avery Healthcare,Residential Placements,Long Term Team - OP,1997.15,0.00,1997.15,29/06/2016
Avery Healthcare,Adults & Social - Client Charges,Long Term Team - OP,-541.28,0.00,-541.28,29/06/2016
Avery Healthcare,Residential Placements,Long Term Team - OP,1997.15,0.00,1997.15,29/06/2016
Avery Healthcare,Adults & Social - Client Charges,Long Term Team - OP,-541.28,0.00,-541.28,29/06/2016
Avery Healthcare,Adults & Social - Client Charges,Long Term Team - OP,-541.28,0.00,-541.28,29/06/2016
Avery Healthcare,Residential Placements,Long Term Team - OP,1997.15,0.00,1997.15,29/06/2016
Avery Healthcare,Adults & Social - Client Charges,Long Term Team - OP,-806.27,0.00,-806.27,29/06/2016
Avery Healthcare,Nursing Care,Long Term Team - OP,2756.18,0.00,2756.18,29/06/2016
Avery Healthcare,Recovery of Costs (External - Non Vatable),Long Term Team - OP,-480.00,0.00,-480.00,29/06/2016
Avery Healthcare,Nursing Care,Long Term Team - OP,2649.47,0.00,2649.47,29/06/2016
Avery Healthcare,Recovery of Costs (External - Non Vatable),Long Term Team - OP,-480.00,0.00,-480.00,29/06/2016
Avery Healthcare,Adults & Social - Client Charges,Long Term Team - OP,-688.88,0.00,-688.88,29/06/2016
Avery Healthcare,Adults & Social - Client Charges,Long Term Team - OP,-662.02,0.00,-662.02,29/06/2016
Avery Healthcare,Recovery of Costs (External - Non Vatable),Long Term Team - OP,-480.00,0.00,-480.00,29/06/2016
Avery Healthcare,Nursing Care,Long Term Team - OP,2623.75,0.00,2623.75,29/06/2016
Avery Healthcare,Residential Placements,Long Term Team - OP,2100.00,0.00,2100.00,29/06/2016
Avery Healthcare,Adults & Social - Client Charges,Long Term Team - OP,-615.98,0.00,-615.98,29/06/2016
Avery Healthcare,Nursing Care,Long Term Team - OP,2696.62,0.00,2696.62,29/06/2016
Avery Healthcare,Recovery of Costs (External - Non Vatable),Long Term Team - OP,-480.00,0.00,-480.00,29/06/2016
Avery Healthcare,Adults & Social - Client Charges,Long Term Team - OP,-719.62,0.00,-719.62,29/06/2016
Avery Healthcare,Adults & Social - Client Charges,Long Term Team - OP,-660.65,0.00,-660.65,29/06/2016
Avery Healthcare,Recovery of Costs (External - Non Vatable),Long Term Team - OP,-480.00,0.00,-480.00,29/06/2016
Avery Healthcare,Nursing Care,Long Term Team - OP,2655.47,0.00,2655.47,29/06/2016
Avery Healthcare,Adults & Social - Client Charges,Long Term Team - OP,-704.02,0.00,-704.02,29/06/2016
Avery Healthcare,Recovery of Costs (External - Non Vatable),Long Term Team - OP,-480.00,0.00,-480.00,29/06/2016
Avery Healthcare,Nursing Care,Long Term Team - OP,2704.75,0.00,2704.75,29/06/2016
Avery Healthcare,Adults & Social - Client Charges,Long Term Team - OP,-642.55,0.00,-642.55,29/06/2016
Avery Healthcare,Recovery of Costs (External - Non Vatable),Long Term Team - OP,-480.00,0.00,-480.00,29/06/2016
Avery Healthcare,Nursing Care,Long Term Team - OP,2649.47,0.00,2649.47,29/06/2016
Avery Healthcare,Residential Placements,Long Term Team - PD,1607.15,0.00,1607.15,29/06/2016
Avery Healthcare,Adults & Social - Client Charges,Long Term Team - OP,-541.28,0.00,-541.28,29/06/2016
Avery Healthcare,Nursing Care,Long Term Team - OP,3000.00,0.00,3000.00,29/06/2016
Avery Healthcare,Nursing Care,Long Term Team - OP,-355.28,0.00,-355.28,29/06/2016
Avery Healthcare,Recovery of Costs (External - Non Vatable),Long Term Team - OP,-480.00,0.00,-480.00,29/06/2016
Avery Healthcare,Adults & Social - Client Charges,Long Term Team - OP,-541.28,0.00,-541.28,29/06/2016
Avery Healthcare,Recovery of Costs (External - Non Vatable),Long Term Team - OP,-480.00,0.00,-480.00,29/06/2016
Avery Healthcare,Nursing Care,Long Term Team - OP,2649.47,0.00,2649.47,29/06/2016
Avery Healthcare,Adults & Social - Client Charges,Long Term Team - OP,-541.28,0.00,-541.28,29/06/2016
Avery Healthcare,Recovery of Costs (External - Non Vatable),Long Term Team - OP,-480.00,0.00,-480.00,29/06/2016
Avery Healthcare,Nursing Care,Long Term Team - OP,2649.47,0.00,2649.47,29/06/2016
Avery Healthcare,Nursing Care,Long Term Team - OP,2649.47,0.00,2649.47,29/06/2016
Avery Healthcare,Recovery of Costs (External - Non Vatable),Long Term Team - OP,-480.00,0.00,-480.00,29/06/2016
Avery Healthcare,Adults & Social - Client Charges,Long Term Team - OP,-541.28,0.00,-541.28,29/06/2016
Avery Healthcare,Nursing Care,Long Term Team - OP,2649.47,0.00,2649.47,29/06/2016
Avery Healthcare,Recovery of Costs (External - Non Vatable),Long Term Team - OP,-480.00,0.00,-480.00,29/06/2016
Avery Healthcare,Adults & Social - Client Charges,Long Term Team - OP,-541.28,0.00,-541.28,29/06/2016
Avery Healthcare,Adults & Social - Client Charges,Long Term Team - OP,-541.28,0.00,-541.28,29/06/2016
Avery Healthcare,Recovery of Costs (External - Non Vatable),Long Term Team - OP,-480.00,0.00,-480.00,29/06/2016
Avery Healthcare,Nursing Care,Long Term Team - OP,2649.47,0.00,2649.47,29/06/2016
Avery Healthcare,Nursing Care,Long Term Team - OP,2649.47,0.00,2649.47,29/06/2016
Avery Healthcare,Recovery of Costs (External - Non Vatable),Long Term Team - OP,-480.00,0.00,-480.00,29/06/2016
Avery Healthcare,Adults & Social - Client Charges,Long Term Team - OP,-531.22,0.00,-531.22,29/06/2016
Avery Healthcare,Nursing Care,Long Term Team - OP,2735.18,0.00,2735.18,29/06/2016
Avery Healthcare,Recovery of Costs (External - Non Vatable),Long Term Team - OP,-480.00,0.00,-480.00,29/06/2016
Avery Healthcare,Adults & Social - Client Charges,Long Term Team - OP,-589.12,0.00,-589.12,29/06/2016
Avery Healthcare,Adults & Social - Client Charges,Long Term Team - OP,-541.28,0.00,-541.28,29/06/2016
Avery Healthcare,Recovery of Costs (External - Non Vatable),Long Term Team - OP,-480.00,0.00,-480.00,29/06/2016
Avery Healthcare,Nursing Care,Long Term Team - OP,2696.62,0.00,2696.62,29/06/2016
Avery Healthcare,Residential Placements,Long Term Team - OP,2314.28,0.00,2314.28,29/06/2016
Avery Healthcare,Adults & Social - Client Charges,Long Term Team - OP,-601.15,0.00,-601.15,29/06/2016
Avery Healthcare,Residential Placements,Long Term Team - OP,2314.28,0.00,2314.28,29/06/2016
Avery Healthcare,Adults & Social - Client Charges,Long Term Team - OP,-541.28,0.00,-541.28,29/06/2016
Avery Healthcare,Recovery of Costs (External - Non Vatable),Long Term Team - OP,-480.00,0.00,-480.00,29/06/2016
Avery Healthcare,Nursing Care,Long Term Team - OP,2785.72,0.00,2785.72,29/06/2016
Avery Healthcare,Adults & Social - Client Charges,Long Term Team - OP,-526.42,0.00,-526.42,29/06/2016
Avery Healthcare,Adults & Social - Client Charges,Long Term Team - OP,-532.72,0.00,-532.72,29/06/2016
Avery Healthcare,Residential Placements,Long Term Team - OP,2314.28,0.00,2314.28,29/06/2016
Avery Healthcare,Nursing Care,Long Term Team - OP,3000.00,0.00,3000.00,29/06/2016
Avery Healthcare,Adults & Social - Client Charges,Long Term Team - OP,-541.28,0.00,-541.28,29/06/2016
Avery Healthcare,Recovery of Costs (External - Non Vatable),Long Term Team - OP,-480.00,0.00,-480.00,29/06/2016
Avery Healthcare,Nursing Care,Long Term Team - OP,2649.47,0.00,2649.47,29/06/2016
Avery Healthcare,Recovery of Costs (External - Non Vatable),Long Term Team - OP,-480.00,0.00,-480.00,29/06/2016
Avery Healthcare,Recovery of Costs (External - Non Vatable),Long Term Team - OP,-480.00,0.00,-480.00,29/06/2016
Avery Healthcare,Nursing Care,Long Term Team - OP,2649.47,0.00,2649.47,29/06/2016
Avery Healthcare,Nursing Care,Long Term Team - PD,2649.47,0.00,2649.47,29/06/2016
Avery Healthcare,Recovery of Costs (External - Non Vatable),Long Term Team - PD,-480.00,0.00,-480.00,29/06/2016
Avery Healthcare,Nursing Care,Long Term Team - OP,2709.47,0.00,2709.47,29/06/2016
Avery Healthcare,Recovery of Costs (External - Non Vatable),Long Term Team - OP,-480.00,0.00,-480.00,29/06/2016
Avery Healthcare,Adults & Social - Client Charges,Long Term Team - OP,-541.28,0.00,-541.28,29/06/2016
Avery Healthcare,Nursing Care,Long Term Team - OP,3000.00,0.00,3000.00,29/06/2016
Avery Healthcare,Recovery of Costs (External - Non Vatable),Long Term Team - OP,-480.00,0.00,-480.00,29/06/2016
Avery Healthcare,Nursing Care,Long Term Team - OP,3000.00,0.00,3000.00,29/06/2016
Avery Healthcare,Recovery of Costs (External - Non Vatable),Long Term Team - OP,-480.00,0.00,-480.00,29/06/2016
Avery Healthcare,Nursing Care,Long Term Team - OP,3664.28,0.00,3664.28,29/06/2016
Avery Healthcare,Adults & Social - Client Charges,Long Term Team - OP,-501.60,0.00,-501.60,29/06/2016
Avery Healthcare,Recovery of Costs (External - Non Vatable),Long Term Team - OP,-480.00,0.00,-480.00,29/06/2016
Avery Healthcare,Nursing Care,Long Term Team - OP,3857.15,0.00,3857.15,29/06/2016
Avery Healthcare,Residential Placements,Long Term Team - OP,7020.00,0.00,7020.00,29/06/2016
Avery Healthcare,Residential Placements,Long Term Team - OP,6552.00,0.00,6552.00,29/06/2016
Avery Healthcare,Adults & Social - Client Charges,Long Term Team - OP,-1470.95,0.00,-1470.95,29/06/2016
Avery Healthcare,Nursing Care,Long Term Team - OP,14737.50,0.00,14737.50,29/06/2016
AVI Contracts Ltd,Landlord Repairs Exit Costs,,-21528.47,-4305.69,-25834.16,11/04/2016
AVI Contracts Ltd,Landlord Repairs Exit Costs,,-18251.10,-3650.22,-21901.32,11/04/2016
AVI Contracts Ltd,Building Maintenance Exit Costs,,3000.00,600.00,3600.00,11/04/2016
AVI Contracts Ltd,Landlord Repairs Exit Costs,,18251.10,3650.22,21901.32,11/04/2016
AVI Contracts Ltd,Landlord Repairs Exit Costs,,18251.10,3650.22,21901.32,11/04/2016
AVI Contracts Ltd,Landlord Repairs Exit Costs,,21528.47,4305.69,25834.16,11/04/2016
AVI Contracts Ltd,Landlord Repairs Exit Costs,,21528.47,4305.69,25834.16,11/04/2016
AVI Contracts Ltd,Landlord Repairs Exit Costs,,-21528.47,-4305.69,-25834.16,19/04/2016
AVI Contracts Ltd,Landlord Repairs Exit Costs,,-18251.10,-3650.22,-21901.32,19/04/2016
AVI Contracts Ltd,Landlord Repairs Exit Costs,,20311.10,4062.22,24373.32,19/04/2016
AVI Contracts Ltd,Landlord Repairs Exit Costs,,22568.47,4513.69,27082.16,19/04/2016
AVI Contracts Ltd,Landlord Repairs Exit Costs,,5474.76,1094.95,6569.71,27/04/2016
AVI Contracts Ltd,Landlord Repairs Exit Costs,,2000.00,400.00,2400.00,22/06/2016
AVI Contracts Ltd,Landlord Repairs Exit Costs,,2000.00,400.00,2400.00,22/06/2016
AVI Contracts Ltd,Landlord Repairs Exit Costs,,3840.00,768.00,4608.00,22/06/2016
AVI Contracts Ltd,Landlord Repairs Exit Costs,,3900.00,780.00,4680.00,22/06/2016
AVI Contracts Ltd,Landlord Repairs Exit Costs,,4175.00,835.00,5010.00,22/06/2016
AVI Contracts Ltd,Landlord Repairs Exit Costs,,4650.00,930.00,5580.00,22/06/2016
AVI Contracts Ltd,Landlord Repairs Exit Costs,,5820.00,1164.00,6984.00,22/06/2016
Avica UK Limited,Cleaning and Domestic Materials,Transport S S - Ops,279.19,55.84,335.03,29/06/2016
Avica UK Limited,Cleaning and Domestic Materials,P-DSG Transport Educ - Ops,279.18,55.84,335.02,29/06/2016
Avica UK Limited,Cleaning and Domestic Materials,Roxborough Park,684.30,136.86,821.16,04/05/2016
Avica UK Limited,Cleaning and Domestic Materials,Kenmore NRC,620.21,124.04,744.25,20/06/2016
AVON ESTATES,Accommodation,Housing Needs,3600.00,0.00,3600.00,21/06/2016
Avondale Park Primary School,Grants and Subscriptions,CLA Pupil Premium Grant,1500.00,0.00,1500.00,27/05/2016
Ayer Associates Limited,Consultants Fees,,2200.00,440.00,2640.00,15/04/2016
Ayer Associates Limited,Consultants Fees,,12800.00,2560.00,15360.00,15/04/2016
Ayer Associates Limited,Consultants Fees,,3840.00,768.00,4608.00,13/05/2016
Ayer Associates Limited,Consultants Fees,,4125.00,825.00,4950.00,15/06/2016
Ayer Associates Limited,Consultants Fees,,6000.00,1200.00,7200.00,15/06/2016
Ayer Associates Limited,Building Maintenance Exit Costs,,2687.50,537.50,3225.00,17/06/2016
Ayerst Environmental Ltd,Building Maintenance Exit Costs,Housing Repairs,495.00,99.00,594.00,18/05/2016
Ayerst Environmental Ltd,Building Maintenance Exit Costs,Housing Repairs,495.00,99.00,594.00,25/05/2016
Ayerst Environmental Ltd,Building Maintenance Exit Costs,Housing Repairs,495.00,99.00,594.00,14/06/2016
Ayerst Environmental Ltd,Building Maintenance Exit Costs,Housing Repairs,825.00,165.00,990.00,14/06/2016
Ayerst Environmental Ltd,Building Maintenance Exit Costs,Housing Repairs,990.00,198.00,1188.00,14/06/2016
Ayerst Environmental Ltd,Other Professional Fees,Asset Data & Planning,430.00,86.00,516.00,20/06/2016
Ayerst Environmental Ltd,Building Maintenance Exit Costs,,2400.00,480.00,2880.00,28/06/2016
Ayerst Environmental Ltd,Building Maintenance Exit Costs,,825.00,165.00,990.00,29/06/2016
Aylward Primary School,Voluntary Organisations TPP,Dsg Nursery Educ Grant 3yrs & 4yrs,10179.00,0.00,10179.00,11/04/2016
Aylward Primary School,Grants and Subscriptions,Harrow Academies ARMS,52995.00,0.00,52995.00,27/04/2016
Aylward Primary School,Grants and Subscriptions,Harrow Academies Costed Statements,78000.00,0.00,78000.00,29/04/2016
Aylward Primary School,Grants and Subscriptions,Harrow Academies Costed Statements,1151.32,0.00,1151.32,02/06/2016
Aylward Primary School,Voluntary Organisations TPP,Dsg Nursery Educ Grant 3yrs & 4yrs,13851.45,0.00,13851.45,08/06/2016
Back Care Solutions Ltd,"Equipment Lease, Purchase, Maintenance and Repair",Housing Needs Staffing Costs,35.49,7.10,42.59,25/05/2016
Back Care Solutions Ltd,"Equipment Lease, Purchase, Maintenance and Repair",Housing Needs Staffing Costs,99.50,19.90,119.40,25/05/2016
Back Care Solutions Ltd,"Equipment Lease, Purchase, Maintenance and Repair",Housing Needs Staffing Costs,104.00,20.80,124.80,25/05/2016
Back Care Solutions Ltd,"Equipment Lease, Purchase, Maintenance and Repair",Housing Needs Staffing Costs,416.00,83.20,499.20,25/05/2016
Bacon Lane Surgery,Miscellaneous Supplies & Services Cost,Harrow: Health Check Programme,-21309.67,0.00,-21309.67,06/05/2016
Baltimore Consulting Group,Miscellaneous Supplies & Services Cost,Mental Health - Non Pooled/ DoLS,1200.00,240.00,1440.00,04/05/2016
Baltimore Consulting Group,Miscellaneous Supplies & Services Cost,Mental Health - Non Pooled/ DoLS,1800.00,360.00,2160.00,10/05/2016
Baltimore Consulting Group,Miscellaneous Supplies & Services Cost,Mental Health - Non Pooled/ DoLS,1600.00,320.00,1920.00,17/05/2016
Baltimore Consulting Group,Miscellaneous Supplies & Services Cost,Mental Health - Non Pooled/ DoLS,1600.00,320.00,1920.00,24/05/2016
Baltimore Consulting Group,Miscellaneous Supplies & Services Cost,Mental Health - Non Pooled/ DoLS,1600.00,320.00,1920.00,01/06/2016
Baltimore Consulting Group,Miscellaneous Supplies & Services Cost,Mental Health - Non Pooled/ DoLS,1600.00,320.00,1920.00,07/06/2016
Baltimore Consulting Group,Consultants Fees,Mental Health - Non Pooled/ DoLS,1200.00,240.00,1440.00,10/06/2016
Baltimore Consulting Group,Miscellaneous Supplies & Services Cost,Mental Health - Non Pooled/ DoLS,1600.00,320.00,1920.00,14/06/2016
Baltimore Consulting Group,Miscellaneous Supplies & Services Cost,Mental Health - Non Pooled/ DoLS,1600.00,320.00,1920.00,21/06/2016
Baltimore Consulting Group,Miscellaneous Supplies & Services Cost,Mental Health - Non Pooled/ DoLS,1600.00,320.00,1920.00,28/06/2016
Banking Automation Ltd,Computer Purchases,Cashiers Services,5367.12,1073.42,6440.54,11/05/2016
Banking Automation Ltd,Computer Purchases,Cashiers Services,530.35,106.07,636.42,08/06/2016
Banking Automation Ltd,Computer Purchases,,750.00,150.00,900.00,27/04/2016
Barbour Logic Ltd,"Computer Software, Purchase and Maintenance",Parking TPO back office,19999.00,3999.80,23998.80,25/05/2016
Barnardo Services Ltd,Social Services Clients - Other Payments,Cin Team 1,2301.00,0.00,2301.00,20/06/2016
Barnardos,Foster Payments,Childrens Placements,597.00,0.00,597.00,06/04/2016
Barnardos,Foster Payments,Childrens Placements,597.00,0.00,597.00,06/05/2016
Bartec Auto ID Ltd,"Computer Software, Purchase and Maintenance",,5700.00,1140.00,6840.00,27/04/2016
Bartec Auto ID Ltd,Refuse Collection,Trade Waste,2850.00,570.00,3420.00,22/06/2016
Barts Health NHS Trust,Miscellaneous Supplies & Services Cost,Harrow: Sexual Health Services,2072.00,0.00,2072.00,27/04/2016
Barts Health NHS Trust,Miscellaneous Supplies & Services Cost,Harrow: Sexual Health Services,2072.00,0.00,2072.00,23/05/2016
Barts Health NHS Trust,Miscellaneous Supplies & Services Cost,Harrow: Sexual Health Services,2072.00,0.00,2072.00,23/05/2016
Barts Health NHS Trust,Miscellaneous Supplies & Services Cost,Harrow: Sexual Health Services,2072.00,0.00,2072.00,23/05/2016
Barts Health NHS Trust,Miscellaneous Supplies & Services Cost,Barnet: Sexual Health Services,6574.00,0.00,6574.00,23/05/2016
Barts Health NHS Trust,Miscellaneous Supplies & Services Cost,Barnet: Sexual Health Services,6574.00,0.00,6574.00,23/05/2016
Barts Health NHS Trust,Miscellaneous Supplies & Services Cost,Barnet: Sexual Health Services,6574.00,0.00,6574.00,23/05/2016
Barts Health NHS Trust,Miscellaneous Supplies & Services Cost,Barnet: Sexual Health Services,6574.00,0.00,6574.00,23/05/2016
Barts Health NHS Trust,Miscellaneous Supplies & Services Cost,Barnet: Sexual Health Services,6574.00,0.00,6574.00,23/05/2016
BAYERISCHE LANDESBANK,Interest Payments,Interest Payable (borrowing),118602.74,0.00,118602.74,02/06/2016
Beacon Care,Residential Placements,Long Term Team - LD,3306.94,0.00,3306.94,27/04/2016
Beacon Care,Residential Placements,Long Term Team - LD,3417.17,0.00,3417.17,25/05/2016
Beacon Care,Residential Placements,Long Term Team - LD,3306.95,0.00,3306.95,28/06/2016
BEAM Clinic,Miscellaneous Supplies & Services Cost,Long Term Team - OP,2507.91,0.00,2507.91,11/04/2016
Beech Haven,Residential Placements,Interim Funding,3085.71,0.00,3085.71,27/04/2016
Beech Haven,Residential Placements,Interim Funding,3188.57,0.00,3188.57,25/05/2016
Beech Haven,Residential Placements,Interim Funding,3085.72,0.00,3085.72,28/06/2016
Beech Tree House,Residential Placements,Long Term Team - LD,6096.00,0.00,6096.00,27/04/2016
Beech Tree House,Residential Placements,Long Term Team - LD,6299.20,0.00,6299.20,25/05/2016
Beech Tree House,Residential Placements,Long Term Team - LD,6096.00,0.00,6096.00,28/06/2016
Belmont Montessori Nursery ( Butter,Voluntary Organisations TPP,2 year old offer,1787.50,0.00,1787.50,11/04/2016
Belmont Montessori Nursery ( Butter,Voluntary Organisations TPP,Dsg Nursery Educ Grant 3yrs & 4yrs,10459.80,0.00,10459.80,11/04/2016
Belmont Montessori Nursery ( Butter,Voluntary Organisations TPP,2 year old offer,2860.00,0.00,2860.00,08/06/2016
Belmont Montessori Nursery ( Butter,Voluntary Organisations TPP,Dsg Nursery Educ Grant 3yrs & 4yrs,17236.05,0.00,17236.05,08/06/2016
Bemrose Booth Ltd,"Equipment Lease, Purchase, Maintenance and Repair",Car Parking,803.40,160.68,964.08,16/06/2016
Bemrose Booth Ltd,"Equipment Lease, Purchase, Maintenance and Repair",Car Parking,1205.10,241.02,1446.12,16/06/2016
Bentley Wood High School,Grants and Subscriptions,Harrow Academies ARMS,39690.00,0.00,39690.00,27/04/2016
Bentley Wood High School,Grants and Subscriptions,Harrow Academies ARMS,49833.33,0.00,49833.33,27/04/2016
Bentley Wood High School,Grants and Subscriptions,Harrow Academies Costed Statements,36000.00,0.00,36000.00,29/04/2016
Bentley Wood High School,Grants and Subscriptions,CLA Pupil Premium Grant,500.00,0.00,500.00,27/05/2016
Bentley Wood High School,Grants and Subscriptions,Harrow Academies Costed Statements,6396.39,0.00,6396.39,02/06/2016
Benwick Primary School,Grants and Subscriptions,CLA Pupil Premium Grant,1000.00,0.00,1000.00,27/05/2016
Berrymans Lace Mawer,Legal Fees/Advocacy,Liability Insurance,-1092.00,-218.40,-1310.40,14/04/2016
Berrymans Lace Mawer,Legal Fees/Advocacy,Liability Insurance,1092.00,218.40,1310.40,14/04/2016
Berrymans Lace Mawer,Legal Fees/Advocacy,Liability Insurance,1279.00,255.80,1534.80,15/04/2016
Berrymans Lace Mawer,Legal Fees/Advocacy,Liability Insurance,-1010.00,-202.00,-1212.00,18/04/2016
Berrymans Lace Mawer,Legal Fees/Advocacy,Liability Insurance,1010.00,202.00,1212.00,18/04/2016
Berrymans Lace Mawer,Legal Fees/Advocacy,Liability Insurance,-1279.00,-255.80,-1534.80,06/05/2016
Berrymans Lace Mawer,Legal Fees/Advocacy,Liability Insurance,-1273.70,-254.74,-1528.44,06/05/2016
Berrymans Lace Mawer,Legal Fees/Advocacy,Liability Insurance,-2112.00,-422.40,-2534.40,07/06/2016
Berrymans Lace Mawer,Legal Fees/Advocacy,Liability Insurance,-761.40,-152.28,-913.68,07/06/2016
Berrymans Lace Mawer,Legal Fees/Advocacy,Liability Insurance,761.40,152.28,913.68,07/06/2016
Berrymans Lace Mawer,Legal Fees/Advocacy,Liability Insurance,2112.00,422.40,2534.40,07/06/2016
Berrymans Lace Mawer,Legal Fees/Advocacy,Liability Insurance,761.40,152.28,913.68,08/06/2016
Berrymans Lace Mawer,Legal Fees/Advocacy,Liability Insurance,2112.00,422.40,2534.40,08/06/2016
Bettercare Keys Ltd,Residential Placements,Childrens Placements,11514.33,0.00,11514.33,07/06/2016
Beverley F Nunnery & Co,Legal Fees/Advocacy,Barnet Council Legal Services,1021.43,204.29,1225.72,15/04/2016
BFS Group Ltd,Catering  - Costs and Equipment,Civic Centre Rest,254.70,50.94,305.64,04/04/2016
BFS Group Ltd,Catering  - Costs and Equipment,Civic Centre Rest,1071.32,0.00,1071.32,04/04/2016
BFS Group Ltd,Catering  - Costs and Equipment,Civic Centre Rest,261.08,52.22,313.30,13/04/2016
BFS Group Ltd,Catering  - Costs and Equipment,Civic Centre Rest,313.89,0.00,313.89,13/04/2016
BFS Group Ltd,Catering  - Costs and Equipment,Civic Centre Rest,264.05,52.81,316.86,27/04/2016
BFS Group Ltd,Catering  - Costs and Equipment,Civic Centre Rest,566.90,0.00,566.90,27/04/2016
BFS Group Ltd,Catering  - Costs and Equipment,Civic Centre Rest,64.67,12.93,77.60,07/06/2016
BFS Group Ltd,Catering  - Costs and Equipment,Civic Centre Rest,503.17,0.00,503.17,07/06/2016
BFS Group Ltd,Catering  - Costs and Equipment,Civic Centre Rest,214.87,42.97,257.84,07/06/2016
BFS Group Ltd,Catering  - Costs and Equipment,Civic Centre Rest,831.69,0.00,831.69,07/06/2016
BFS Group Ltd,Catering  - Costs and Equipment,Civic Centre Rest,636.72,127.34,764.06,07/06/2016
BFS Group Ltd,Catering  - Costs and Equipment,Civic Centre Rest,946.35,0.00,946.35,07/06/2016
BFS Group Ltd,Catering  - Costs and Equipment,Civic Centre Rest,172.86,34.57,207.43,15/06/2016
BFS Group Ltd,Catering  - Costs and Equipment,Civic Centre Rest,574.28,0.00,574.28,15/06/2016
BFS Group Ltd,Catering  - Costs and Equipment,Civic Centre Rest,303.76,60.75,364.51,15/06/2016
BFS Group Ltd,Catering  - Costs and Equipment,Civic Centre Rest,429.16,0.00,429.16,15/06/2016
BFS Group Ltd,Catering  - Costs and Equipment,Civic Centre Rest,261.58,52.32,313.90,15/06/2016
BFS Group Ltd,Catering  - Costs and Equipment,Civic Centre Rest,529.95,0.00,529.95,15/06/2016
BFS Group Ltd,Catering  - Costs and Equipment,Civic Centre Rest,344.96,68.99,413.95,15/06/2016
BFS Group Ltd,Catering  - Costs and Equipment,Civic Centre Rest,698.93,0.00,698.93,15/06/2016
BFS Group Ltd,Catering  - Costs and Equipment,Civic Centre Rest,271.03,54.21,325.24,17/06/2016
BFS Group Ltd,Catering  - Costs and Equipment,Civic Centre Rest,437.95,0.00,437.95,17/06/2016
BFS Group Ltd,Catering  - Costs and Equipment,Bedford House,204.59,40.92,245.51,20/04/2016
BFS Group Ltd,Catering  - Costs and Equipment,Bedford House,2167.27,0.00,2167.27,20/04/2016
BFS Group Ltd,Catering  - Costs and Equipment,Bedford House,394.45,78.89,473.34,08/06/2016
BFS Group Ltd,Catering  - Costs and Equipment,Bedford House,1754.49,0.00,1754.49,08/06/2016
BFS Group Ltd,Catering  - Costs and Equipment,14/15 Kenton Road,154.72,0.00,154.72,22/06/2016
BFS Group Ltd,Catering  - Costs and Equipment,14/15 Kenton Road,353.35,70.67,424.02,22/06/2016
BFS Interiors,Furniture Purchase and Repair,Harrow Help,2200.00,440.00,2640.00,15/04/2016
BFS Interiors,Furniture Purchase and Repair,Harrow Help,-620.00,-124.00,-744.00,06/05/2016
BFS Interiors,Furniture Purchase and Repair,Harrow Help,620.00,124.00,744.00,06/05/2016
BFS Interiors,Furniture Purchase and Repair,Harrow Help,-1000.00,-200.00,-1200.00,23/05/2016
BFS Interiors,Furniture Purchase and Repair,Harrow Help,1000.00,200.00,1200.00,23/05/2016
BFS Interiors,Furniture Purchase and Repair,Harrow Help,-2200.00,-440.00,-2640.00,25/05/2016
BFS Interiors,Furniture Purchase and Repair,Harrow Help,2200.00,440.00,2640.00,25/05/2016
BFS Interiors,Furniture Purchase and Repair,Harrow Help,620.00,124.00,744.00,26/05/2016
BFS Interiors,Furniture Purchase and Repair,Harrow Help,1000.00,200.00,1200.00,26/05/2016
BFS Interiors,Furniture Purchase and Repair,Harrow Help,2140.00,428.00,2568.00,15/06/2016
BHH LIFT Accomodation Services,Rents,Vaughan NRC,27904.23,5580.85,33485.08,13/06/2016
BHH LIFT Accomodation Services,Rents,Vaughan NRC,27904.23,5580.85,33485.08,13/06/2016
BHH LIFT Accomodation Services,Rents,Vaughan NRC,27904.23,5580.85,33485.08,13/06/2016
BHH LIFT Accomodation Services.,Rents,PFI - Neighbourhood Resource Centres,28529.02,5705.80,34234.82,27/04/2016
BHH LIFT Accomodation Services.,Rents,PFI - Neighbourhood Resource Centres,28529.02,5705.80,34234.82,11/05/2016
BHH LIFT Accomodation Services.,Rents,PFI - Neighbourhood Resource Centres,28529.02,5705.80,34234.82,13/06/2016
BHH LIFT Accomodation Services..,Rents,PFI - Neighbourhood Resource Centres,26689.47,5337.89,32027.36,27/04/2016
BHH LIFT Accomodation Services..,Rents,PFI - Neighbourhood Resource Centres,26689.47,5337.89,32027.36,11/05/2016
BHH LIFT Accomodation Services..,Rents,PFI - Neighbourhood Resource Centres,-26689.47,-5337.89,-32027.36,13/05/2016
BHH LIFT Accomodation Services..,Rents,PFI - Neighbourhood Resource Centres,26689.47,5337.89,32027.36,13/05/2016
BHH LIFT Accomodation Services..,Rents,PFI - Neighbourhood Resource Centres,26689.47,5337.89,32027.36,13/06/2016
BHH LIFT Accomodation Services..,Other Professional Fees,Kenmore NRC,1767.45,0.00,1767.45,30/06/2016
Bibi Badejo,Legal Fees/Advocacy,Hounslow Inter Authority Agreement,1000.00,200.00,1200.00,01/06/2016
Birch Tree House,Semi Independent,Leaving Care Placements,2491.47,0.00,2491.47,06/04/2016
Birch Tree House,Semi Independent,Leaving Care Placements,3135.03,0.00,3135.03,06/04/2016
Birch Tree House,Semi Independent,Childrens Placements,3135.03,0.00,3135.03,06/04/2016
Birch Tree House,Semi Independent,Leaving Care Placements,2411.10,0.00,2411.10,06/05/2016
Birch Tree House,Semi Independent,Leaving Care Placements,2730.51,0.00,2730.51,06/05/2016
Birch Tree House,Semi Independent,Childrens Placements,3033.90,0.00,3033.90,06/05/2016
Birch Tree House,Semi Independent,Leaving Care Placements,2491.47,0.00,2491.47,07/06/2016
Birch Tree House,Semi Independent,Childrens Placements,3135.03,0.00,3135.03,07/06/2016
Bisley Office Furniture,Furniture Purchase and Repair,,4137.23,827.45,4964.68,12/05/2016
Bisley Office Furniture,Furniture Purchase and Repair,,5995.45,1199.09,7194.54,12/05/2016
Black & White Fire Safety Ltd,Landlord Repairs Exit Costs,Cyclical Maintenance,4679.75,935.95,5615.70,13/04/2016
Black & White Fire Safety Ltd,Landlord Repairs Exit Costs,Cyclical Maintenance,4679.75,935.95,5615.70,13/04/2016
Black & White Fire Safety Ltd,Landlord Repairs Exit Costs,Cyclical Maintenance,4679.75,935.95,5615.70,20/04/2016
Black & White Fire Safety Ltd,Landlord Repairs Exit Costs,Cyclical Maintenance,1448.00,289.60,1737.60,27/04/2016
Black & White Fire Safety Ltd,Landlord Repairs Exit Costs,,15002.22,3000.44,18002.66,11/05/2016
Black & White Fire Safety Ltd,Landlord Repairs Exit Costs,,15002.22,3000.44,18002.66,11/05/2016
Black & White Fire Safety Ltd,Landlord Repairs Exit Costs,Cyclical Maintenance,480.00,96.00,576.00,12/05/2016
Black & White Fire Safety Ltd,Landlord Repairs Exit Costs,Cyclical Maintenance,1341.00,268.20,1609.20,25/05/2016
Black & White Fire Safety Ltd,Landlord Repairs Exit Costs,Cyclical Maintenance,480.00,96.00,576.00,20/06/2016
Black & White Fire Safety Ltd,Landlord Repairs Exit Costs,Cyclical Maintenance,720.00,144.00,864.00,20/06/2016
Black & White Fire Safety Ltd,Landlord Repairs Exit Costs,Cyclical Maintenance,720.00,144.00,864.00,20/06/2016
Black & White Fire Safety Ltd,Landlord Repairs Exit Costs,Cyclical Maintenance,720.00,144.00,864.00,20/06/2016
Black & White Fire Safety Ltd,Landlord Repairs Exit Costs,Cyclical Maintenance,989.00,197.80,1186.80,28/06/2016
Blake Newport Associates Ltd,Legal Fees/Advocacy,Capital Team,33420.00,6684.00,40104.00,27/04/2016
Blake Newport Associates Ltd,Legal Fees/Advocacy,Capital Team,36876.68,7375.34,44252.02,25/05/2016
Blake Newport Associates Ltd,Legal Fees/Advocacy,Capital Team,40599.95,8119.99,48719.94,28/06/2016
Blanche Nevile School,Other Professional Fees,Other LA Special Schools,63378.33,0.00,63378.33,24/05/2016
Blaser Mills Solicitors,Other Agencies/Local Authorities 3rd Party Payment,Liability Insurance,9680.00,0.00,9680.00,10/05/2016
Blossom Park Healthcare Ltd,Residential Placements,Long Term Team - LD,6364.29,0.00,6364.29,27/04/2016
Blossom Park Healthcare Ltd,Adults & Social - Client Charges,Long Term Team - LD,-376.50,0.00,-376.50,27/04/2016
Blossom Park Healthcare Ltd,Residential Placements,Long Term Team - OP,6028.29,0.00,6028.29,27/04/2016
Blossom Park Healthcare Ltd,Residential Placements,Long Term Team - OP,6028.29,0.00,6028.29,27/04/2016
Blossom Park Healthcare Ltd,Residential Placements,Long Term Team - LD,8585.86,0.00,8585.86,25/05/2016
Blossom Park Healthcare Ltd,Adults & Social - Client Charges,Long Term Team - LD,-389.05,0.00,-389.05,25/05/2016
Blossom Park Healthcare Ltd,Residential Placements,Long Term Team - LD,17760.00,0.00,17760.00,26/05/2016
Blossom Park Healthcare Ltd,Residential Placements,Long Term Team - LD,6364.28,0.00,6364.28,28/06/2016
Blossom Park Healthcare Ltd,Adults & Social - Client Charges,Long Term Team - LD,-376.50,0.00,-376.50,28/06/2016
Blue Butterfly Montessori,Voluntary Organisations TPP,Dsg Nursery Educ Grant 3yrs & 4yrs,6669.00,0.00,6669.00,11/04/2016
Blue Butterfly Montessori,Voluntary Organisations TPP,Dsg Nursery Educ Grant 3yrs & 4yrs,13354.20,0.00,13354.20,08/06/2016
Bluebird Care - ISF,Social Care Personal Budgets,Personalisation - OP,562.24,0.00,562.24,18/04/2016
Bluebird Care - ISF,Social Care Personal Budgets,Personalisation - LD,726.00,0.00,726.00,18/04/2016
Bluebird Care - ISF,Social Care Personal Budgets,Personalisation - LD,762.32,0.00,762.32,18/04/2016
Bluebird Care - ISF,Social Care Personal Budgets,Personalisation - OP,849.16,0.00,849.16,18/04/2016
Bluebird Care - ISF,Social Care Personal Budgets,Personalisation - OP,1185.80,0.00,1185.80,18/04/2016
Bluebird Care - ISF,Social Care Personal Budgets,Personalisation - OP,1352.00,0.00,1352.00,18/04/2016
Bluebird Care - ISF,Social Care Personal Budgets,Personalisation - OP,1524.60,0.00,1524.60,18/04/2016
Bluebird Care - ISF,Social Care Personal Budgets,Personalisation - OP,3291.20,0.00,3291.20,18/04/2016
Bluebird Care - ISF,Adults & Social - Net P.B.'s,Personalisation - OP,-755.77,0.00,-755.77,18/04/2016
Bluebird Care - ISF,Social Care Personal Budgets,Personalisation - PD,2845.14,0.00,2845.14,18/04/2016
Bluebird Care - ISF,Social Care Personal Budgets,Personalisation - OP,562.24,0.00,562.24,18/05/2016
Bluebird Care - ISF,Social Care Personal Budgets,Personalisation - LD,726.00,0.00,726.00,18/05/2016
Bluebird Care - ISF,Social Care Personal Budgets,Personalisation - LD,762.32,0.00,762.32,18/05/2016
Bluebird Care - ISF,Social Care Personal Budgets,Personalisation - OP,849.16,0.00,849.16,18/05/2016
Bluebird Care - ISF,Social Care Personal Budgets,Personalisation - OP,1355.20,0.00,1355.20,18/05/2016
Bluebird Care - ISF,Adults & Social - Net P.B.'s,Personalisation - OP,-311.20,0.00,-311.20,18/05/2016
Bluebird Care - ISF,Social Care Personal Budgets,Personalisation - OP,1185.80,0.00,1185.80,18/05/2016
Bluebird Care - ISF,Social Care Personal Budgets,Personalisation - OP,1352.00,0.00,1352.00,18/05/2016
Bluebird Care - ISF,Social Care Personal Budgets,Personalisation - OP,1524.60,0.00,1524.60,18/05/2016
Bluebird Care - ISF,Social Care Personal Budgets,Personalisation - OP,562.24,0.00,562.24,21/06/2016
Bluebird Care - ISF,Social Care Personal Budgets,Personalisation - LD,726.00,0.00,726.00,21/06/2016
Bluebird Care - ISF,Social Care Personal Budgets,Personalisation - LD,762.32,0.00,762.32,21/06/2016
Bluebird Care - ISF,Social Care Personal Budgets,Personalisation - OP,849.16,0.00,849.16,21/06/2016
Bluebird Care - ISF,Adults & Social - Net P.B.'s,Personalisation - OP,-311.20,0.00,-311.20,21/06/2016
Bluebird Care - ISF,Social Care Personal Budgets,Personalisation - OP,1355.20,0.00,1355.20,21/06/2016
Bluebird Care - ISF,Social Care Personal Budgets,Personalisation - OP,1185.80,0.00,1185.80,21/06/2016
Bluebird Care - ISF,Social Care Personal Budgets,Personalisation - OP,1352.00,0.00,1352.00,21/06/2016
Bluebird Care - ISF,Social Care Personal Budgets,Personalisation - OP,1524.60,0.00,1524.60,21/06/2016
Bluebird Care (Harrow),Domiciliary Care,Personalisation - OP,1738.32,0.00,1738.32,27/04/2016
Bluebird Care (Harrow),Domiciliary Care,Personalisation - OP,1638.32,0.00,1638.32,25/05/2016
Bluefrontier,Private Contractors for Back Office Services,Communication-LAMCO,1000.00,200.00,1200.00,25/05/2016
Bluefrontier,Private Contractors for Back Office Services,Business & Commercial Team,2718.00,543.60,3261.60,27/04/2016
Bluefrontier,Private Contractors for Back Office Services,Business & Commercial Team,1040.00,208.00,1248.00,18/05/2016
Bluefrontier,Private Contractors for Back Office Services,Business & Commercial Team,2080.00,416.00,2496.00,07/06/2016
Bluefrontier,Private Contractors for Back Office Services,Business & Commercial Team,1040.00,208.00,1248.00,28/06/2016
Bluefrontier,Private Contractors for Back Office Services,Business & Commercial Team,1254.00,250.80,1504.80,28/06/2016
BMR Construction Ltd,Building Maintenance Exit Costs,,12037.91,2407.58,14445.49,01/04/2016
BMR Construction Ltd,Landlord Repairs Exit Costs,,14012.42,2802.48,16814.90,01/04/2016
BMR Construction Ltd,Landlord Repairs Exit Costs,,3380.81,676.16,4056.97,04/04/2016
BMR Construction Ltd,Other Professional Fees,,8750.00,1750.00,10500.00,15/04/2016
BMR Construction Ltd,Landlord Repairs Exit Costs,,7045.71,1409.14,8454.85,19/04/2016
BMR Construction Ltd,Landlord Repairs Exit Costs,,16255.69,3251.14,19506.83,19/04/2016
BMR Construction Ltd,Landlord Repairs Exit Costs,,2787.71,557.54,3345.25,26/05/2016
BMR Construction Ltd,Landlord Repairs Exit Costs,,28902.72,5780.54,34683.26,26/05/2016
BMR Construction Ltd,Building Maintenance Exit Costs,,3353.63,670.73,4024.36,31/05/2016
BNP Paribas,Consultants Fees,Development Control,4950.00,990.00,5940.00,11/04/2016
BNP Paribas,Consultants Fees,Development Control,5500.00,1100.00,6600.00,06/05/2016
BNP Paribas,Consultants Fees,Development Control,1955.00,391.00,2346.00,23/05/2016
BNP Paribas,Consultants Fees,Development Control,5500.00,1100.00,6600.00,25/05/2016
Booktrust,Books & Publications,CLA Pupil Premium Grant,814.80,162.96,977.76,16/05/2016
Booktrust,Books & Publications,CLA Pupil Premium Grant,2802.24,0.00,2802.24,16/05/2016
Boots St Annes,Miscellaneous Supplies & Services Cost,Harrow: Tobacco Control,335.00,0.00,335.00,26/04/2016
Boots St Annes,Miscellaneous Supplies & Services Cost,Harrow: Tobacco Control,395.68,19.78,415.46,26/04/2016
Boots St Annes,Miscellaneous Supplies & Services Cost,Harrow: Tobacco Control,355.00,0.00,355.00,30/06/2016
Boots St Annes,Miscellaneous Supplies & Services Cost,Harrow: Tobacco Control,353.07,17.65,370.72,30/06/2016
Boots St Georges,Miscellaneous Supplies & Services Cost,Harrow: Tobacco Control,348.99,17.45,366.44,04/05/2016
Boots St Georges,Miscellaneous Supplies & Services Cost,Harrow: Tobacco Control,367.20,0.00,367.20,04/05/2016
Boots St Georges,Miscellaneous Supplies & Services Cost,Harrow: Tobacco Control,213.60,0.00,213.60,30/06/2016
Boots St Georges,Miscellaneous Supplies & Services Cost,Harrow: Tobacco Control,419.59,20.98,440.57,30/06/2016
Boots Wealdstone,Miscellaneous Supplies & Services Cost,Harrow: Tobacco Control,265.40,0.00,265.40,26/04/2016
Boots Wealdstone,Miscellaneous Supplies & Services Cost,Harrow: Tobacco Control,281.52,14.08,295.60,26/04/2016
Boots Wealdstone,Miscellaneous Supplies & Services Cost,Harrow: Tobacco Control,243.40,12.17,255.57,30/06/2016
Boots Wealdstone,Miscellaneous Supplies & Services Cost,Harrow: Tobacco Control,263.60,0.00,263.60,30/06/2016
Boys & Girls Nursery,Voluntary Organisations TPP,2 year old offer,2145.00,0.00,2145.00,11/04/2016
Boys & Girls Nursery,Voluntary Organisations TPP,Dsg Nursery Educ Grant 3yrs & 4yrs,17784.00,0.00,17784.00,11/04/2016
Boys & Girls Nursery,Voluntary Organisations TPP,2 year old offer,2145.00,0.00,2145.00,08/06/2016
Boys & Girls Nursery,Voluntary Organisations TPP,Dsg Nursery Educ Grant 3yrs & 4yrs,30748.80,0.00,30748.80,08/06/2016
Bracey & Clarke,Costs Relating to the Holding of Elections,Divisional Director Commissioning Servs,8359.80,1671.96,10031.76,16/06/2016
Brake Bros Foodservice Ltd,Catering  - Costs and Equipment,Civic Centre Rest,765.71,0.00,765.71,27/06/2016
Bramble.cc Ltd,Other Professional Fees,Library Projects,37952.27,7590.45,45542.72,08/06/2016
Brambles,Residential Placements,Long Term Team - LD,3345.69,0.00,3345.69,27/04/2016
Brambles,Adults & Social - Client Charges,Long Term Team - LD,-344.79,0.00,-344.79,27/04/2016
Brambles,Adults & Social - Client Charges,Long Term Team - LD,-356.28,0.00,-356.28,25/05/2016
Brambles,Residential Placements,Long Term Team - LD,3457.21,0.00,3457.21,25/05/2016
Brambles,Adults & Social - Client Charges,Long Term Team - LD,-344.78,0.00,-344.78,28/06/2016
Brambles,Residential Placements,Long Term Team - LD,3345.68,0.00,3345.68,28/06/2016
Bramford Primary School,Grants and Subscriptions,CLA Pupil Premium Grant,500.00,0.00,500.00,27/05/2016
Brancaster Care Homes Ltd,Residential Placements,Long Term Team - OP,3767.14,0.00,3767.14,27/04/2016
Brancaster Care Homes Ltd,Residential Placements,Long Term Team - OP,3892.71,0.00,3892.71,26/05/2016
Brancaster Care Homes Ltd,Residential Placements,Long Term Team - OP,3767.15,0.00,3767.15,30/06/2016
Brent Council,Secure Placement  for Children,P-DSG Transport Educ - Ops,900.00,0.00,900.00,05/04/2016
Brent Council,Secure Placement  for Children,P-DSG Transport Educ - Ops,1260.00,0.00,1260.00,26/04/2016
Brent Council,Secure Placement  for Children,P-DSG Transport Educ - Ops,540.00,0.00,540.00,01/06/2016
Brent Council,Burials/Cremations,Protection of Property,816.07,0.00,816.07,08/04/2016
Brent Council,Professional Services - Curriculum,Dsg Outborough Placement-Fees,154290.64,0.00,154290.64,15/06/2016
Brent Council,Professional Services - Curriculum,Other LA Special Schools,156769.15,0.00,156769.15,15/06/2016
Bridge Networks Ltd,"Equipment Lease, Purchase, Maintenance and Repair",,700.00,140.00,840.00,26/04/2016
Bridge Networks Ltd,"Equipment Lease, Purchase, Maintenance and Repair",,802.00,160.40,962.40,26/04/2016
Bright Futures Care Ltd,Residential Schools,Ind & Non Maint Res Sch,-24510.61,0.00,-24510.61,30/06/2016
Bright Futures Care Ltd,Residential Schools,Ind Residential Day School Placement,24510.61,0.00,24510.61,30/06/2016
Bright Kidz Pre-School Ltd,Voluntary Organisations TPP,Dsg Nursery Educ Grant 3yrs & 4yrs,6828.30,0.00,6828.30,11/04/2016
Bright Kidz Pre-School Ltd,Voluntary Organisations TPP,Dsg Nursery Educ Grant 3yrs & 4yrs,9060.30,0.00,9060.30,08/06/2016
Bright Stars Nursery,Voluntary Organisations TPP,Dsg Nursery Educ Grant 3yrs & 4yrs,1053.00,0.00,1053.00,11/04/2016
Bright Stars Nursery,Voluntary Organisations TPP,2 year old offer,1608.75,0.00,1608.75,11/04/2016
Bright Stars Nursery,Voluntary Organisations TPP,Dsg Nursery Educ Grant 3yrs & 4yrs,563.55,0.00,563.55,08/06/2016
Bright Stars Nursery,Voluntary Organisations TPP,2 year old offer,1608.75,0.00,1608.75,08/06/2016
Bright Start Day Care,Voluntary Organisations TPP,2 year old offer,3217.50,0.00,3217.50,11/04/2016
Bright Start Day Care,Voluntary Organisations TPP,Dsg Nursery Educ Grant 3yrs & 4yrs,5967.00,0.00,5967.00,11/04/2016
Bright Start Day Care,Voluntary Organisations TPP,2 year old offer,4207.50,0.00,4207.50,08/06/2016
Bright Start Day Care,Voluntary Organisations TPP,Dsg Nursery Educ Grant 3yrs & 4yrs,8097.15,0.00,8097.15,08/06/2016
Bright Start Daycare Stanmore,Voluntary Organisations TPP,2 year old offer,1072.50,0.00,1072.50,11/04/2016
Bright Start Daycare Stanmore,Voluntary Organisations TPP,Dsg Nursery Educ Grant 3yrs & 4yrs,1702.80,0.00,1702.80,08/06/2016
Bright Start Daycare Stanmore,Voluntary Organisations TPP,2 year old offer,8580.00,0.00,8580.00,08/06/2016
British Parking Association,Grants and Subscriptions,Car Parking,1098.00,219.60,1317.60,01/06/2016
British Standards Institution,Other Agencies/Local Authorities 3rd Party Payment,Building Control Chargeable,899.00,179.80,1078.80,12/05/2016
British Standards Institution,Other Agencies/Local Authorities 3rd Party Payment,Building Control Chargeable,639.00,127.80,766.80,19/05/2016
British Youth Council,Other Professional Fees,Youth Development,500.00,0.00,500.00,20/04/2016
British Youth Council,Other Professional Fees,Youth Development,540.00,0.00,540.00,10/05/2016
Broadview Priory,Residential Schools,Ind & Non Maint Res Sch,60000.00,0.00,60000.00,15/04/2016
Brook House (Barchester Healthcare),Adults & Social - Client Charges,Long Term Team - PD,-429.21,0.00,-429.21,27/04/2016
Brook House (Barchester Healthcare),Recovery of Costs (External - Non Vatable),Long Term Team - PD,-480.00,0.00,-480.00,27/04/2016
Brook House (Barchester Healthcare),Nursing Care,Long Term Team - PD,4076.19,0.00,4076.19,27/04/2016
Brook House (Barchester Healthcare),Nursing Care,Long Term Team - PD,4212.06,0.00,4212.06,25/05/2016
Brook House (Barchester Healthcare),Recovery of Costs (External - Non Vatable),Long Term Team - PD,-496.00,0.00,-496.00,25/05/2016
Brook House (Barchester Healthcare),Adults & Social - Client Charges,Long Term Team - PD,-443.52,0.00,-443.52,25/05/2016
Brook House (Barchester Healthcare),Nursing Care,Long Term Team - PD,4076.18,0.00,4076.18,28/06/2016
Brook House (Barchester Healthcare),Recovery of Costs (External - Non Vatable),Long Term Team - PD,-480.00,0.00,-480.00,28/06/2016
Brook House (Barchester Healthcare),Adults & Social - Client Charges,Long Term Team - PD,-429.22,0.00,-429.22,28/06/2016
Brookdale Healthcare Ltd,Adults & Social - Client Charges,Long Term Team - LD,-437.06,0.00,-437.06,27/04/2016
Brookdale Healthcare Ltd,Residential Placements,Long Term Team - LD,10950.00,0.00,10950.00,27/04/2016
Brookdale Healthcare Ltd,Adults & Social - Client Charges,Long Term Team - LD,-451.63,0.00,-451.63,26/05/2016
Brookdale Healthcare Ltd,Residential Placements,Long Term Team - LD,11315.00,0.00,11315.00,26/05/2016
Brookdale Healthcare Ltd,Residential Placements,Long Term Team - LD,10950.00,0.00,10950.00,30/06/2016
Brookdale Healthcare Ltd,Adults & Social - Client Charges,Long Term Team - LD,-437.05,0.00,-437.05,30/06/2016
Browne Jacobson LLP,Legal Fees/Advocacy,Liability Insurance,611.00,122.20,733.20,25/05/2016
Browne Jacobson LLP,Legal Fees/Advocacy,Liability Insurance,-611.00,-122.20,-733.20,27/05/2016
Browne Jacobson LLP,Legal Fees/Advocacy,Liability Insurance,611.00,122.20,733.20,27/05/2016
Bruel & Kjaer UK Ltd,"Equipment Lease, Purchase, Maintenance and Repair",,34861.15,6972.23,41833.38,24/05/2016
Brunswick Park Medical Practice,Miscellaneous Supplies & Services Cost,Barnet: Health Check Programme,700.00,0.00,700.00,27/06/2016
Bryn Melyn Care,Residential Placements,Childrens Placements,5931.43,0.00,5931.43,06/04/2016
Bryn Melyn Care,Residential Placements,Childrens Placements,21611.43,0.00,21611.43,06/04/2016
Bryn Melyn Care,Residential Placements,Childrens Placements,29874.29,0.00,29874.29,06/04/2016
Bryn Melyn Care,Residential Placements,Childrens Placements,-716.12,0.00,-716.12,06/05/2016
Bryn Melyn Care,Residential Placements,Childrens Placements,-515.89,0.00,-515.89,06/05/2016
Bryn Melyn Care,Residential Placements,Childrens Placements,20914.29,0.00,20914.29,06/05/2016
Bryn Melyn Care,Residential Placements,Childrens Placements,21942.86,0.00,21942.86,06/05/2016
Bryn Melyn Care,Residential Placements,Childrens Placements,21611.43,0.00,21611.43,07/06/2016
Bryn Melyn Care,Residential Placements,Childrens Placements,22674.29,0.00,22674.29,07/06/2016
BT,"Equipment Lease, Purchase, Maintenance and Repair",Procurement Bt,9843.58,1968.72,11812.30,11/05/2016
BT,"Equipment Lease, Purchase, Maintenance and Repair",Procurement Bt,10043.75,2008.75,12052.50,13/06/2016
BT,"Equipment Lease, Purchase, Maintenance and Repair",Procurement Bt,10125.85,2025.17,12151.02,30/06/2016
BT OpenReach,"Equipment Lease, Purchase, Maintenance and Repair",,3196.37,639.27,3835.64,28/04/2016
Bt Plc,Mobile Phone Charges,Procurement Bt,25478.04,5095.61,30573.65,15/04/2016
BT Redcare,"Equipment Lease, Purchase, Maintenance and Repair",Closed Circuit TV Management,16509.25,3301.85,19811.10,27/04/2016
Bubar Montessori Nursery,Voluntary Organisations TPP,Dsg Nursery Educ Grant 3yrs & 4yrs,3240.00,0.00,3240.00,11/04/2016
Bubar Montessori Nursery,Voluntary Organisations TPP,Dsg Nursery Educ Grant 3yrs & 4yrs,5254.20,0.00,5254.20,08/06/2016
Bubsy Pre-School,Voluntary Organisations TPP,Dsg Nursery Educ Grant 3yrs & 4yrs,4722.30,0.00,4722.30,11/04/2016
Bubsy Pre-School,Voluntary Organisations TPP,2 year old offer,5069.63,0.00,5069.63,11/04/2016
Bubsy Pre-School,Voluntary Organisations TPP,2 year old offer,5362.50,0.00,5362.50,11/04/2016
Bubsy Pre-School,Voluntary Organisations TPP,Dsg Nursery Educ Grant 3yrs & 4yrs,6381.90,0.00,6381.90,11/04/2016
Bubsy Pre-School,Voluntary Organisations TPP,2 year old offer,4335.37,0.00,4335.37,08/06/2016
Bubsy Pre-School,Voluntary Organisations TPP,2 year old offer,6501.00,0.00,6501.00,08/06/2016
Bubsy Pre-School,Voluntary Organisations TPP,Dsg Nursery Educ Grant 3yrs & 4yrs,9147.90,0.00,9147.90,08/06/2016
Bubsy Pre-School,Voluntary Organisations TPP,Dsg Nursery Educ Grant 3yrs & 4yrs,11325.75,0.00,11325.75,08/06/2016
Buckingham Montessori School,Voluntary Organisations TPP,2 year old offer,3753.75,0.00,3753.75,11/04/2016
Buckingham Montessori School,Voluntary Organisations TPP,Dsg Nursery Educ Grant 3yrs & 4yrs,13338.00,0.00,13338.00,11/04/2016
Buckingham Montessori School,Voluntary Organisations TPP,2 year old offer,9116.25,0.00,9116.25,08/06/2016
Buckingham Montessori School,Voluntary Organisations TPP,Dsg Nursery Educ Grant 3yrs & 4yrs,15512.25,0.00,15512.25,08/06/2016
Buckinghamshire County Council,Other Professional Fees,HR - Organisational Development,19966.67,3993.33,23960.00,27/04/2016
Buckinghamshire County Council,Other Professional Fees,Personnel Management,-38000.00,0.00,-38000.00,16/05/2016
Buckinghamshire County Council,Other Professional Fees,Personnel Management,14230.00,0.00,14230.00,01/06/2016
Buildtrust Ltd,Landlord Repairs Exit Costs,,34504.89,6900.98,41405.87,30/06/2016
Bupa Care Homes,Adults & Social - Client Charges,Long Term Team - OP,-589.59,0.00,-589.59,27/04/2016
Bupa Care Homes,Residential Placements,Long Term Team - OP,1932.00,0.00,1932.00,27/04/2016
Bupa Care Homes,Adults & Social - Client Charges,Long Term Team - OP,-609.24,0.00,-609.24,25/05/2016
Bupa Care Homes,Residential Placements,Long Term Team - OP,1996.40,0.00,1996.40,25/05/2016
Bupa Care Homes,Residential Placements,Long Term Team - OP,1932.00,0.00,1932.00,28/06/2016
Bupa Care Homes,Adults & Social - Client Charges,Long Term Team - OP,-589.58,0.00,-589.58,28/06/2016
Bupa Care Homes,Nursing Care,Long Term Team - OP,2645.19,0.00,2645.19,27/04/2016
Bupa Care Homes,Recovery of Costs (External - Non Vatable),Long Term Team - OP,-480.00,0.00,-480.00,27/04/2016
Bupa Care Homes,Adults & Social - Client Charges,Long Term Team - OP,-513.69,0.00,-513.69,27/04/2016
Bupa Care Homes,Nursing Care,Long Term Team - OP,2733.36,0.00,2733.36,25/05/2016
Bupa Care Homes,Recovery of Costs (External - Non Vatable),Long Term Team - OP,-496.00,0.00,-496.00,25/05/2016
Bupa Care Homes,Adults & Social - Client Charges,Long Term Team - OP,-530.81,0.00,-530.81,25/05/2016
Bupa Care Homes,Adults & Social - Client Charges,Long Term Team - OP,-513.68,0.00,-513.68,28/06/2016
Bupa Care Homes,Recovery of Costs (External - Non Vatable),Long Term Team - OP,-480.00,0.00,-480.00,28/06/2016
Bupa Care Homes,Nursing Care,Long Term Team - OP,2645.18,0.00,2645.18,28/06/2016
Bupa Care Homes,Adults & Social - Client Charges,Long Term Team - OP,-716.79,0.00,-716.79,27/04/2016
Bupa Care Homes,Recovery of Costs (External - Non Vatable),Long Term Team - OP,-480.00,0.00,-480.00,27/04/2016
Bupa Care Homes,Nursing Care,Long Term Team - OP,2782.24,0.00,2782.24,27/04/2016
Bupa Care Homes,Nursing Care,Long Term Team - OP,2874.98,0.00,2874.98,25/05/2016
Bupa Care Homes,Recovery of Costs (External - Non Vatable),Long Term Team - OP,-496.00,0.00,-496.00,25/05/2016
Bupa Care Homes,Adults & Social - Client Charges,Long Term Team - OP,-740.68,0.00,-740.68,25/05/2016
Bupa Care Homes,Nursing Care,Long Term Team - OP,2782.25,0.00,2782.25,28/06/2016
Bupa Care Homes,Recovery of Costs (External - Non Vatable),Long Term Team - OP,-480.00,0.00,-480.00,28/06/2016
Bupa Care Homes,Adults & Social - Client Charges,Long Term Team - OP,-716.78,0.00,-716.78,28/06/2016
Bupa Care Homes,Adults & Social - Client Charges,Long Term Team - PD,-344.79,0.00,-344.79,27/04/2016
Bupa Care Homes,Nursing Care,Long Term Team - PD,4402.33,0.00,4402.33,27/04/2016
Bupa Care Homes,Recovery of Costs (External - Non Vatable),Long Term Team - PD,-480.00,0.00,-480.00,27/04/2016
Bupa Care Homes,Adults & Social - Client Charges,Long Term Team - PD,-356.28,0.00,-356.28,26/05/2016
Bupa Care Homes,Nursing Care,Long Term Team - PD,4549.07,0.00,4549.07,26/05/2016
Bupa Care Homes,Recovery of Costs (External - Non Vatable),Long Term Team - PD,-496.00,0.00,-496.00,26/05/2016
Bupa Care Homes,Recovery of Costs (External - Non Vatable),Long Term Team - PD,-480.00,0.00,-480.00,30/06/2016
Bupa Care Homes,Nursing Care,Long Term Team - PD,4402.33,0.00,4402.33,30/06/2016
Bupa Care Homes,Adults & Social - Client Charges,Long Term Team - PD,-344.78,0.00,-344.78,30/06/2016
Bushey Academy,Other Professional Fees,Dsg Outborough Placement-Fees,1250.00,0.00,1250.00,20/06/2016
Bushey House Beaumont,Adults & Social - Client Charges,Long Term Team - OP,-552.39,0.00,-552.39,27/04/2016
Bushey House Beaumont,Residential Placements,Long Term Team - OP,1997.14,0.00,1997.14,27/04/2016
Bushey House Beaumont,Residential Placements,Long Term Team - OP,1997.14,0.00,1997.14,27/04/2016
Bushey House Beaumont,Adults & Social - Client Charges,Long Term Team - OP,-528.43,0.00,-528.43,27/04/2016
Bushey House Beaumont,Residential Placements,Long Term Team - OP,2063.71,0.00,2063.71,25/05/2016
Bushey House Beaumont,Adults & Social - Client Charges,Long Term Team - OP,-570.80,0.00,-570.80,25/05/2016
Bushey House Beaumont,Adults & Social - Client Charges,Long Term Team - OP,-552.38,0.00,-552.38,28/06/2016
Bushey House Beaumont,Residential Placements,Long Term Team - OP,1997.15,0.00,1997.15,28/06/2016
Busy Bees Pre-School,Voluntary Organisations TPP,2 year old offer,2145.00,0.00,2145.00,11/04/2016
Busy Bees Pre-School,Voluntary Organisations TPP,Dsg Nursery Educ Grant 3yrs & 4yrs,3669.30,0.00,3669.30,11/04/2016
Busy Bees Pre-School,Voluntary Organisations TPP,2 year old offer,3217.50,0.00,3217.50,08/06/2016
Busy Bees Pre-School,Voluntary Organisations TPP,Dsg Nursery Educ Grant 3yrs & 4yrs,10842.75,0.00,10842.75,08/06/2016
Buttress,Consultants Fees,,29330.78,5866.16,35196.94,22/04/2016
Buttress,Consultants Fees,,12890.97,2578.19,15469.16,12/05/2016
Buttress,Consultants Fees,,14410.97,2882.19,17293.16,25/05/2016
Buttress,Consultants Fees,,27457.34,5491.47,32948.81,29/06/2016
Buzy Bees Montessori School,Voluntary Organisations TPP,2 year old offer,3753.75,0.00,3753.75,11/04/2016
Buzy Bees Montessori School,Voluntary Organisations TPP,Dsg Nursery Educ Grant 3yrs & 4yrs,7651.80,0.00,7651.80,11/04/2016
Buzy Bees Montessori School,Voluntary Organisations TPP,2 year old offer,3011.25,0.00,3011.25,08/06/2016
Buzy Bees Montessori School,Voluntary Organisations TPP,Dsg Nursery Educ Grant 3yrs & 4yrs,8470.35,0.00,8470.35,08/06/2016
BuzyBees Montessori School,Section 17,Children Looked After Team 1,945.00,0.00,945.00,21/04/2016
BUZYBEES MONTESSORI SCHOOL,Section 17,Children Looked After Team 1,875.00,0.00,875.00,21/06/2016
BYRON COURT PRIMARY SCHOOL,Residential Schools,Schools Excellence Fund,2400.00,0.00,2400.00,15/04/2016
BYRON COURT PRIMARY SCHOOL,Grants and Subscriptions,CLA Pupil Premium Grant,1500.00,0.00,1500.00,27/05/2016
C & K Healthcare Ltd,Adults & Social - Client Charges,Long Term Team - OP,1723.80,0.00,1723.80,27/04/2016
C & K Healthcare Ltd,Residential Placements,Long Term Team - OP,2271.43,0.00,2271.43,27/04/2016
C & K Healthcare Ltd,Adults & Social - Client Charges,Long Term Team - OP,-541.29,0.00,-541.29,27/04/2016
C & K Healthcare Ltd,Adults & Social - Client Charges,Long Term Team - OP,-1723.80,0.00,-1723.80,25/05/2016
C & K Healthcare Ltd,Residential Placements,Long Term Team - OP,2347.14,0.00,2347.14,25/05/2016
C & K Healthcare Ltd,Adults & Social - Client Charges,Long Term Team - OP,-559.33,0.00,-559.33,25/05/2016
C & K Healthcare Ltd,Adults & Social - Client Charges,Interim Funding,-1723.80,0.00,-1723.80,25/05/2016
C & K Healthcare Ltd,Residential Placements,Interim Funding,6480.00,0.00,6480.00,25/05/2016
C & K Healthcare Ltd,Residential Placements,Long Term Team - OP,2271.43,0.00,2271.43,28/06/2016
C & K Healthcare Ltd,Adults & Social - Client Charges,Long Term Team - OP,-541.28,0.00,-541.28,28/06/2016
C E Flynn Builders & Decorators,Landlord Repairs Exit Costs,,8380.00,0.00,8380.00,25/05/2016
C2 Furniture Contracts Limited,Landlord Repairs Exit Costs,Business & Commercial Team,1457.00,291.40,1748.40,13/04/2016
C2 Furniture Contracts Limited,Other Professional Fees,,-4903.00,-980.60,-5883.60,16/05/2016
C2 Furniture Contracts Limited,Other Professional Fees,,4903.00,980.60,5883.60,16/05/2016
C2 Furniture Contracts Limited,Furniture Purchase and Repair,,4903.00,980.60,5883.60,16/05/2016
C2 Furniture Contracts Limited,Other Professional Fees,,1460.00,292.00,1752.00,24/05/2016
Cadmap Ltd,Other Professional Fees,,1950.00,390.00,2340.00,06/04/2016
Cadmap Ltd,Other Professional Fees,,950.00,190.00,1140.00,01/06/2016
CALM Training Services,Staff training (General),The Firs,1510.00,302.00,1812.00,24/06/2016
Cambian Asperger Syndrome Services,Residential Schools,Ind & Non Maint Res Sch,44298.93,0.00,44298.93,15/04/2016
Cambian Asperger Syndrome Services,Residential Schools,Ind & Non Maint Res Sch,974.58,0.00,974.58,24/06/2016
Cambian Asperger Syndrome Services,Residential Schools,Ind & Non Maint Res Sch,44298.93,0.00,44298.93,24/06/2016
Cambian Autism Services Ltd,Residential Schools,Ind & Non Maint Res Sch,1042.86,0.00,1042.86,15/04/2016
Cambian Autism Services Ltd,Residential Schools,Ind & Non Maint Res Sch,1233.96,0.00,1233.96,15/04/2016
Cambian Autism Services Ltd,Residential Schools,Ind & Non Maint Res Sch,47390.07,0.00,47390.07,15/04/2016
Cambian Autism Services Ltd,Residential Schools,Ind & Non Maint Res Sch,56096.04,0.00,56096.04,15/04/2016
Cambian Autism Services Ltd,Residential Schools,Ind & Non Maint Res Sch,-56096.04,0.00,-56096.04,18/05/2016
Cambian Autism Services Ltd,Residential Schools,Ind & Non Maint Res Sch,-47390.07,0.00,-47390.07,18/05/2016
Cambian Autism Services Ltd,Residential Schools,Ind & Non Maint Res Sch,-1042.86,0.00,-1042.86,18/05/2016
Cambian Autism Services Ltd,Residential Schools,Ind & Non Maint Res Sch,1042.86,0.00,1042.86,18/05/2016
Cambian Autism Services Ltd,Residential Schools,Ind & Non Maint Res Sch,47390.07,0.00,47390.07,18/05/2016
Cambian Autism Services Ltd,Residential Schools,Ind & Non Maint Res Sch,56096.04,0.00,56096.04,18/05/2016
Cambian Childcare Ltd,Adults & Social - Client Charges,Long Term Team - LD,-344.79,0.00,-344.79,27/04/2016
Cambian Childcare Ltd,Residential Placements,Long Term Team - LD,1971.43,0.00,1971.43,27/04/2016
Cambian Childcare Ltd,Residential Placements,Long Term Team - LD,3264.00,0.00,3264.00,27/04/2016
Cambian Childcare Ltd,Residential Placements,Long Term Team - LD,2037.14,0.00,2037.14,25/05/2016
Cambian Childcare Ltd,Residential Placements,Long Term Team - LD,3372.80,0.00,3372.80,25/05/2016
Cambian Childcare Ltd,Adults & Social - Client Charges,Long Term Team - LD,-356.28,0.00,-356.28,25/05/2016
Cambian Childcare Ltd,Residential Placements,Long Term Team - LD,1971.43,0.00,1971.43,28/06/2016
Cambian Childcare Ltd,Residential Placements,Long Term Team - LD,3264.00,0.00,3264.00,28/06/2016
Cambian Childcare Ltd,Adults & Social - Client Charges,Long Term Team - LD,-344.78,0.00,-344.78,28/06/2016
Cambridgeshire County Council,Residential Schools,Dsg Outborough Placement-Fees,1672.96,0.00,1672.96,24/06/2016
Cameron Makenzie Bathrooms by Desig,Landlord Repairs Exit Costs,,14130.00,2826.00,16956.00,29/06/2016
Camphill Devon Community Ltd,Adults & Social - Client Charges,Long Term Team - LD,-344.79,0.00,-344.79,27/04/2016
Camphill Devon Community Ltd,Residential Placements,Long Term Team - LD,2041.97,0.00,2041.97,27/04/2016
Camphill Devon Community Ltd,Residential Placements,Long Term Team - LD,2110.04,0.00,2110.04,25/05/2016
Camphill Devon Community Ltd,Adults & Social - Client Charges,Long Term Team - LD,-356.28,0.00,-356.28,25/05/2016
Camphill Devon Community Ltd,Residential Placements,Long Term Team - LD,2041.97,0.00,2041.97,28/06/2016
Camphill Devon Community Ltd,Adults & Social - Client Charges,Long Term Team - LD,-344.78,0.00,-344.78,28/06/2016
CANDLE COURT NURSING HOME,Recovery of Costs (External - Non Vatable),Long Term Team - OP,-576.00,0.00,-576.00,18/05/2016
CANDLE COURT NURSING HOME,Nursing Care,Long Term Team - OP,3214.29,0.00,3214.29,18/05/2016
CANDLE COURT NURSING HOME,Nursing Care,Long Term Team - OP,-1607.14,0.00,-1607.14,18/05/2016
CANDLE COURT NURSING HOME,Recovery of Costs (External - Non Vatable),Long Term Team - OP,-480.00,0.00,-480.00,18/05/2016
CANDLE COURT NURSING HOME,Nursing Care,Long Term Team - OP,3214.29,0.00,3214.29,18/05/2016
CANDLE COURT NURSING HOME,Adults & Social - Client Charges,Long Term Team - OP,-626.27,0.00,-626.27,18/05/2016
CANDLE COURT NURSING HOME,Nursing Care,Long Term Team - OP,2571.43,0.00,2571.43,18/05/2016
CANDLE COURT NURSING HOME,Nursing Care,Long Term Team - OP,3615.90,0.00,3615.90,18/05/2016
CANDLE COURT NURSING HOME,Recovery of Costs (External - Non Vatable),Long Term Team - OP,-480.00,0.00,-480.00,18/05/2016
CANDLE COURT NURSING HOME,Nursing Care,Long Term Team - OP,5610.00,0.00,5610.00,24/05/2016
CANDLE COURT NURSING HOME,Nursing Care,Long Term Team - OP,3321.43,0.00,3321.43,20/06/2016
CANDLE COURT NURSING HOME,Nursing Care,Long Term Team - OP,-1660.71,0.00,-1660.71,20/06/2016
CANDLE COURT NURSING HOME,Adults & Social - Client Charges,Long Term Team - OP,-647.15,0.00,-647.15,20/06/2016
CANDLE COURT NURSING HOME,Nursing Care,Long Term Team - OP,3321.43,0.00,3321.43,20/06/2016
CANDLE COURT NURSING HOME,Recovery of Costs (External - Non Vatable),Long Term Team - OP,-496.00,0.00,-496.00,20/06/2016
CANDLE COURT NURSING HOME,Nursing Care,Long Term Team - OP,2657.14,0.00,2657.14,20/06/2016
CANDLE COURT NURSING HOME,Recovery of Costs (External - Non Vatable),Long Term Team - OP,-496.00,0.00,-496.00,20/06/2016
CANDLE COURT NURSING HOME,Nursing Care,Long Term Team - OP,3736.43,0.00,3736.43,20/06/2016
Cannon Barn Montessori School,Voluntary Organisations TPP,Dsg Nursery Educ Grant 3yrs & 4yrs,18954.00,0.00,18954.00,11/04/2016
Cannon Barn Montessori School,Voluntary Organisations TPP,Dsg Nursery Educ Grant 3yrs & 4yrs,28138.50,0.00,28138.50,08/06/2016
Cannon Lane Pre-School,Voluntary Organisations TPP,Dsg Nursery Educ Grant 3yrs & 4yrs,10354.50,0.00,10354.50,11/04/2016
Cannon Lane Pre-School,Voluntary Organisations TPP,Dsg Nursery Educ Grant 3yrs & 4yrs,15001.35,0.00,15001.35,08/06/2016
Cannon Lane Primary School,Legal Fees/Advocacy,Gla Elections,500.00,0.00,500.00,18/05/2016
Canons Day Nursery,Voluntary Organisations TPP,2 year old offer,5898.75,0.00,5898.75,11/04/2016
Canons Day Nursery,Voluntary Organisations TPP,Dsg Nursery Educ Grant 3yrs & 4yrs,13689.00,0.00,13689.00,11/04/2016
Canons Day Nursery,Voluntary Organisations TPP,2 year old offer,10188.75,0.00,10188.75,08/06/2016
Canons Day Nursery,Voluntary Organisations TPP,Dsg Nursery Educ Grant 3yrs & 4yrs,19015.80,0.00,19015.80,08/06/2016
Canons High School,Grants and Subscriptions,Harrow Academies Costed Statements,102000.00,0.00,102000.00,16/05/2016
Canons High School,Grants and Subscriptions,CLA Pupil Premium Grant,1500.00,0.00,1500.00,27/05/2016
Canons High School,Grants and Subscriptions,Harrow Academies Costed Statements,13690.22,0.00,13690.22,29/06/2016
Cansford Laboratories,Social Services Clients - Other Payments,Children Looked After Team 1,2965.00,593.00,3558.00,16/06/2016
Capel Manor College,Residential Schools,TU - FE Colleges,6423.90,0.00,6423.90,17/06/2016
Capita Business Services Ltd,Grants and Subscriptions,It/Sims Team,97053.30,19410.66,116463.96,14/04/2016
Capita Business Services Ltd,Grants and Subscriptions,It/Sims Team,-97053.30,-19410.66,-116463.96,06/05/2016
Capita Business Services Ltd,"Computer Software, Purchase and Maintenance",Performance,6000.00,1200.00,7200.00,14/06/2016
Capita Business Services Ltd,Conference Fees and Expenses,Children Looked After Team 1,897.50,179.50,1077.00,12/04/2016
Capita Business Services Ltd,"Computer Software, Purchase and Maintenance",CS Licences,112399.44,22479.89,134879.33,13/05/2016
Capita Business Services Ltd,Other Professional Fees,DSG EMS Support,30000.00,6000.00,36000.00,09/06/2016
Capita Business Travel Ltd,Travel Expenses (Staff),Council Business Travel,1040.96,0.00,1040.96,27/04/2016
Capita Business Travel Ltd,Travel Expenses (Staff),Council Business Travel,1321.08,0.00,1321.08,25/05/2016
Capita Business Travel Ltd,Travel Expenses (Staff),Council Business Travel,1893.26,0.00,1893.26,28/06/2016
Capita Business Travel-Hotels,Travel Expenses (Staff),Council Business Travel,192.05,0.00,192.05,23/06/2016
Capita Business Travel-Hotels,Travel Expenses (Staff),Council Business Travel,272.25,54.45,326.70,23/06/2016
Capita Business Travel-Hotels,Travel Expenses (Staff),Council Business Travel,99.50,0.00,99.50,23/06/2016
Capita Business Travel-Hotels,Travel Expenses (Staff),Council Business Travel,543.86,108.77,652.63,23/06/2016
Capita Education Services Ltd,"Computer Software, Purchase and Maintenance",Children & Families Centres,9348.15,1869.63,11217.78,06/04/2016
Capita Resourcing Ltd,Agency Staff,CRB,1874.00,374.80,2248.80,06/05/2016
Capita Resourcing Ltd,Agency Staff,CRB,8903.00,0.00,8903.00,06/05/2016
Capita Resourcing Ltd,Agency Staff,CRB,1039.00,207.80,1246.80,25/05/2016
Capita Resourcing Ltd,Agency Staff,CRB,5368.00,0.00,5368.00,25/05/2016
Capita Resourcing Ltd,Agency Staff,CRB,2145.00,429.00,2574.00,22/06/2016
Capita Resourcing Ltd,Agency Staff,CRB,11236.00,0.00,11236.00,22/06/2016
Capital Home Care,Domiciliary Care,Personalisation - OP,527.10,0.00,527.10,04/05/2016
Capital Home Care,Domiciliary Care,Personalisation - OP,563.24,0.00,563.24,04/05/2016
Capital Home Care,Domiciliary Care,Personalisation - OP,577.30,0.00,577.30,04/05/2016
Capital Home Care,Domiciliary Care,Personalisation - OP,585.71,0.00,585.71,04/05/2016
Capital Home Care,Domiciliary Care,Personalisation - OP,593.99,0.00,593.99,04/05/2016
Capital Home Care,Domiciliary Care,Personalisation - OP,598.13,0.00,598.13,04/05/2016
Capital Home Care,Domiciliary Care,Personalisation - OP,644.32,0.00,644.32,04/05/2016
Capital Home Care,Domiciliary Care,Personalisation - OP,644.32,0.00,644.32,04/05/2016
Capital Home Care,Domiciliary Care,Personalisation - OP,702.80,0.00,702.80,04/05/2016
Capital Home Care,Domiciliary Care,Personalisation - OP,702.80,0.00,702.80,04/05/2016
Capital Home Care,Domiciliary Care,Personalisation - OP,761.41,0.00,761.41,04/05/2016
Capital Home Care,Domiciliary Care,Personalisation - OP,811.61,0.00,811.61,04/05/2016
Capital Home Care,Domiciliary Care,Personalisation - OP,837.00,0.00,837.00,04/05/2016
Capital Home Care,Domiciliary Care,Personalisation - PD,878.50,0.00,878.50,04/05/2016
Capital Home Care,Domiciliary Care,Personalisation - OP,878.50,0.00,878.50,04/05/2016
Capital Home Care,Domiciliary Care,Personalisation - OP,1129.50,0.00,1129.50,04/05/2016
Capital Home Care,Domiciliary Care,Personalisation - OP,1196.39,0.00,1196.39,04/05/2016
Capital Home Care,Domiciliary Care,Personalisation - OP,1439.11,0.00,1439.11,04/05/2016
Capital Home Care,Domiciliary Care,Personalisation - OP,1493.45,0.00,1493.45,04/05/2016
Capital Home Care,Domiciliary Care,Personalisation - OP,1522.69,0.00,1522.69,04/05/2016
Capital Home Care,Domiciliary Care,Personalisation - PD,1522.69,0.00,1522.69,04/05/2016
Capital Home Care,Domiciliary Care,Personalisation - OP,1546.16,0.00,1546.16,04/05/2016
Capital Home Care,Domiciliary Care,Personalisation - OP,1639.91,0.00,1639.91,04/05/2016
Capital Home Care,Domiciliary Care,Personalisation - OP,1639.91,0.00,1639.91,04/05/2016
Capital Home Care,Domiciliary Care,Personalisation - OP,1991.31,0.00,1991.31,04/05/2016
Capital Home Care,Domiciliary Care,Personalisation - OP,2244.32,0.00,2244.32,04/05/2016
Capital Home Care,Domiciliary Care,Personalisation - OP,2668.88,0.00,2668.88,04/05/2016
Capital Home Care,Domiciliary Care,Personalisation - OP,3338.30,0.00,3338.30,04/05/2016
Capital Home Care,Domiciliary Care,Personalisation - OP,527.10,0.00,527.10,20/05/2016
Capital Home Care,Domiciliary Care,Personalisation - OP,527.10,0.00,527.10,20/05/2016
Capital Home Care,Domiciliary Care,Personalisation - OP,571.03,0.00,571.03,20/05/2016
Capital Home Care,Domiciliary Care,Personalisation - OP,577.30,0.00,577.30,20/05/2016
Capital Home Care,Domiciliary Care,Personalisation - OP,579.81,0.00,579.81,20/05/2016
Capital Home Care,Domiciliary Care,Personalisation - OP,585.71,0.00,585.71,20/05/2016
Capital Home Care,Domiciliary Care,Personalisation - OP,598.13,0.00,598.13,20/05/2016
Capital Home Care,Domiciliary Care,Personalisation - PD,644.19,0.00,644.19,20/05/2016
Capital Home Care,Domiciliary Care,Personalisation - OP,644.32,0.00,644.32,20/05/2016
Capital Home Care,Domiciliary Care,Personalisation - OP,644.32,0.00,644.32,20/05/2016
Capital Home Care,Domiciliary Care,Personalisation - OP,702.80,0.00,702.80,20/05/2016
Capital Home Care,Domiciliary Care,Personalisation - OP,702.80,0.00,702.80,20/05/2016
Capital Home Care,Domiciliary Care,Personalisation - OP,702.80,0.00,702.80,20/05/2016
Capital Home Care,Domiciliary Care,Long Term Team - PD,734.17,0.00,734.17,20/05/2016
Capital Home Care,Domiciliary Care,Long Term Team - PD,56.48,0.00,56.48,20/05/2016
Capital Home Care,Domiciliary Care,Personalisation - OP,811.61,0.00,811.61,20/05/2016
Capital Home Care,Domiciliary Care,Personalisation - OP,815.75,0.00,815.75,20/05/2016
Capital Home Care,Domiciliary Care,Personalisation - OP,819.89,0.00,819.89,20/05/2016
Capital Home Care,Domiciliary Care,Personalisation - PD,878.50,0.00,878.50,20/05/2016
Capital Home Care,Domiciliary Care,Personalisation - OP,878.50,0.00,878.50,20/05/2016
Capital Home Care,Domiciliary Care,Personalisation - OP,1171.29,0.00,1171.29,20/05/2016
Capital Home Care,Domiciliary Care,Personalisation - OP,1288.51,0.00,1288.51,20/05/2016
Capital Home Care,Domiciliary Care,Personalisation - OP,1288.51,0.00,1288.51,20/05/2016
Capital Home Care,Domiciliary Care,Personalisation - OP,1522.69,0.00,1522.69,20/05/2016
Capital Home Care,Domiciliary Care,Personalisation - PD,1522.69,0.00,1522.69,20/05/2016
Capital Home Care,Domiciliary Care,Personalisation - OP,1522.69,0.00,1522.69,20/05/2016
Capital Home Care,Domiciliary Care,Personalisation - OP,1546.16,0.00,1546.16,20/05/2016
Capital Home Care,Domiciliary Care,Personalisation - OP,1639.91,0.00,1639.91,20/05/2016
Capital Home Care,Domiciliary Care,Personalisation - OP,1991.31,0.00,1991.31,20/05/2016
Capital Home Care,Domiciliary Care,Personalisation - OP,2334.30,0.00,2334.30,20/05/2016
Capital Home Care,Domiciliary Care,Personalisation - OP,2668.88,0.00,2668.88,20/05/2016
Capital Home Care,Domiciliary Care,Personalisation - OP,3803.28,0.00,3803.28,20/05/2016
Capital Home Care,Domiciliary Care,Personalisation - OP,527.10,0.00,527.10,23/05/2016
Capital Home Care,Domiciliary Care,Personalisation - OP,527.10,0.00,527.10,23/05/2016
Capital Home Care,Domiciliary Care,Long Term Team - OP,527.10,0.00,527.10,23/05/2016
Capital Home Care,Domiciliary Care,Personalisation - OP,577.30,0.00,577.30,23/05/2016
Capital Home Care,Domiciliary Care,Personalisation - OP,579.81,0.00,579.81,23/05/2016
Capital Home Care,Domiciliary Care,Personalisation - OP,585.71,0.00,585.71,23/05/2016
Capital Home Care,Domiciliary Care,Personalisation - OP,598.13,0.00,598.13,23/05/2016
Capital Home Care,Domiciliary Care,Personalisation - OP,602.40,0.00,602.40,23/05/2016
Capital Home Care,Domiciliary Care,Personalisation - OP,614.95,0.00,614.95,23/05/2016
Capital Home Care,Domiciliary Care,Personalisation - OP,624.24,0.00,624.24,23/05/2016
Capital Home Care,Domiciliary Care,Personalisation - OP,644.19,0.00,644.19,23/05/2016
Capital Home Care,Domiciliary Care,Personalisation - OP,702.80,0.00,702.80,23/05/2016
Capital Home Care,Domiciliary Care,Personalisation - OP,702.80,0.00,702.80,23/05/2016
Capital Home Care,Domiciliary Care,Personalisation - OP,761.41,0.00,761.41,23/05/2016
Capital Home Care,Domiciliary Care,Long Term Team - PD,790.65,0.00,790.65,23/05/2016
Capital Home Care,Domiciliary Care,Personalisation - OP,811.61,0.00,811.61,23/05/2016
Capital Home Care,Domiciliary Care,Personalisation - OP,819.89,0.00,819.89,23/05/2016
Capital Home Care,Domiciliary Care,Personalisation - OP,878.50,0.00,878.50,23/05/2016
Capital Home Care,Domiciliary Care,Personalisation - PD,878.50,0.00,878.50,23/05/2016
Capital Home Care,Domiciliary Care,Personalisation - OP,995.59,0.00,995.59,23/05/2016
Capital Home Care,Domiciliary Care,Personalisation - OP,1171.29,0.00,1171.29,23/05/2016
Capital Home Care,Domiciliary Care,Personalisation - OP,1288.51,0.00,1288.51,23/05/2016
Capital Home Care,Domiciliary Care,Personalisation - OP,1317.75,0.00,1317.75,23/05/2016
Capital Home Care,Domiciliary Care,Personalisation - OP,1522.69,0.00,1522.69,23/05/2016
Capital Home Care,Domiciliary Care,Personalisation - PD,1522.69,0.00,1522.69,23/05/2016
Capital Home Care,Domiciliary Care,Personalisation - OP,1522.69,0.00,1522.69,23/05/2016
Capital Home Care,Domiciliary Care,Personalisation - OP,1546.16,0.00,1546.16,23/05/2016
Capital Home Care,Domiciliary Care,Personalisation - OP,1639.91,0.00,1639.91,23/05/2016
Capital Home Care,Domiciliary Care,Personalisation - OP,1724.00,0.00,1724.00,23/05/2016
Capital Home Care,Domiciliary Care,Personalisation - OP,1757.00,0.00,1757.00,23/05/2016
Capital Home Care,Domiciliary Care,Personalisation - OP,2668.88,0.00,2668.88,23/05/2016
Capital Home Care,Domiciliary Care,Personalisation - OP,3720.82,0.00,3720.82,23/05/2016
Capital Home Care,Domiciliary Care,Personalisation - OP,527.10,0.00,527.10,03/06/2016
Capital Home Care,Domiciliary Care,Personalisation - PD,548.06,0.00,548.06,03/06/2016
Capital Home Care,Domiciliary Care,Personalisation - OP,560.00,0.00,560.00,03/06/2016
Capital Home Care,Domiciliary Care,Personalisation - OP,577.30,0.00,577.30,03/06/2016
Capital Home Care,Domiciliary Care,Personalisation - OP,579.81,0.00,579.81,03/06/2016
Capital Home Care,Domiciliary Care,Personalisation - OP,585.71,0.00,585.71,03/06/2016
Capital Home Care,Domiciliary Care,Personalisation - OP,585.71,0.00,585.71,03/06/2016
Capital Home Care,Domiciliary Care,Personalisation - OP,585.71,0.00,585.71,03/06/2016
Capital Home Care,Domiciliary Care,Personalisation - OP,585.71,0.00,585.71,03/06/2016
Capital Home Care,Domiciliary Care,Personalisation - OP,598.13,0.00,598.13,03/06/2016
Capital Home Care,Domiciliary Care,Personalisation - OP,627.50,0.00,627.50,03/06/2016
Capital Home Care,Domiciliary Care,Personalisation - OP,644.19,0.00,644.19,03/06/2016
Capital Home Care,Domiciliary Care,Personalisation - OP,702.80,0.00,702.80,03/06/2016
Capital Home Care,Domiciliary Care,Personalisation - OP,761.41,0.00,761.41,03/06/2016
Capital Home Care,Domiciliary Care,Personalisation - OP,761.41,0.00,761.41,03/06/2016
Capital Home Care,Domiciliary Care,Long Term Team - PD,790.65,0.00,790.65,03/06/2016
Capital Home Care,Domiciliary Care,Personalisation - OP,811.61,0.00,811.61,03/06/2016
Capital Home Care,Domiciliary Care,Personalisation - OP,819.89,0.00,819.89,03/06/2016
Capital Home Care,Domiciliary Care,Personalisation - PD,878.50,0.00,878.50,03/06/2016
Capital Home Care,Domiciliary Care,Personalisation - OP,878.50,0.00,878.50,03/06/2016
Capital Home Care,Domiciliary Care,Personalisation - OP,1112.81,0.00,1112.81,03/06/2016
Capital Home Care,Domiciliary Care,Personalisation - OP,1171.29,0.00,1171.29,03/06/2016
Capital Home Care,Domiciliary Care,Personalisation - OP,1238.31,0.00,1238.31,03/06/2016
Capital Home Care,Domiciliary Care,Personalisation - OP,1288.51,0.00,1288.51,03/06/2016
Capital Home Care,Domiciliary Care,Personalisation - OP,1405.60,0.00,1405.60,03/06/2016
Capital Home Care,Domiciliary Care,Personalisation - OP,1405.60,0.00,1405.60,03/06/2016
Capital Home Care,Domiciliary Care,Personalisation - OP,1443.25,0.00,1443.25,03/06/2016
Capital Home Care,Domiciliary Care,Personalisation - PD,1522.69,0.00,1522.69,03/06/2016
Capital Home Care,Domiciliary Care,Personalisation - OP,1522.69,0.00,1522.69,03/06/2016
Capital Home Care,Domiciliary Care,Personalisation - OP,1546.16,0.00,1546.16,03/06/2016
Capital Home Care,Domiciliary Care,Personalisation - OP,1639.91,0.00,1639.91,03/06/2016
Capital Home Care,Domiciliary Care,Personalisation - OP,1674.82,0.00,1674.82,03/06/2016
Capital Home Care,Domiciliary Care,Personalisation - OP,1832.30,0.00,1832.30,03/06/2016
Capital Home Care,Domiciliary Care,Personalisation - OP,2623.08,0.00,2623.08,03/06/2016
Capital Home Care,Domiciliary Care,Personalisation - OP,3730.49,0.00,3730.49,03/06/2016
Capital Home Care,Domiciliary Care,Personalisation - OP,524.00,0.00,524.00,23/06/2016
Capital Home Care,Domiciliary Care,Personalisation - OP,527.10,0.00,527.10,23/06/2016
Capital Home Care,Domiciliary Care,Personalisation - OP,527.10,0.00,527.10,23/06/2016
Capital Home Care,Domiciliary Care,Personalisation - OP,577.30,0.00,577.30,23/06/2016
Capital Home Care,Domiciliary Care,Personalisation - OP,585.71,0.00,585.71,23/06/2016
Capital Home Care,Domiciliary Care,Personalisation - OP,585.71,0.00,585.71,23/06/2016
Capital Home Care,Domiciliary Care,Personalisation - OP,585.71,0.00,585.71,23/06/2016
Capital Home Care,Domiciliary Care,Personalisation - OP,585.71,0.00,585.71,23/06/2016
Capital Home Care,Domiciliary Care,Personalisation - OP,585.71,0.00,585.71,23/06/2016
Capital Home Care,Domiciliary Care,Personalisation - OP,598.13,0.00,598.13,23/06/2016
Capital Home Care,Domiciliary Care,Personalisation - OP,627.50,0.00,627.50,23/06/2016
Capital Home Care,Domiciliary Care,Personalisation - OP,644.32,0.00,644.32,23/06/2016
Capital Home Care,Domiciliary Care,Personalisation - OP,652.60,0.00,652.60,23/06/2016
Capital Home Care,Domiciliary Care,Personalisation - OP,665.15,0.00,665.15,23/06/2016
Capital Home Care,Domiciliary Care,Personalisation - OP,702.80,0.00,702.80,23/06/2016
Capital Home Care,Domiciliary Care,Personalisation - OP,761.41,0.00,761.41,23/06/2016
Capital Home Care,Domiciliary Care,Long Term Team - PD,790.65,0.00,790.65,23/06/2016
Capital Home Care,Domiciliary Care,Personalisation - OP,811.61,0.00,811.61,23/06/2016
Capital Home Care,Domiciliary Care,Personalisation - OP,819.89,0.00,819.89,23/06/2016
Capital Home Care,Domiciliary Care,Personalisation - PD,878.50,0.00,878.50,23/06/2016
Capital Home Care,Domiciliary Care,Personalisation - OP,878.50,0.00,878.50,23/06/2016
Capital Home Care,Domiciliary Care,Personalisation - OP,962.21,0.00,962.21,23/06/2016
Capital Home Care,Domiciliary Care,Personalisation - OP,978.90,0.00,978.90,23/06/2016
Capital Home Care,Domiciliary Care,Personalisation - OP,1288.51,0.00,1288.51,23/06/2016
Capital Home Care,Domiciliary Care,Personalisation - OP,1405.60,0.00,1405.60,23/06/2016
Capital Home Care,Domiciliary Care,Personalisation - OP,1405.60,0.00,1405.60,23/06/2016
Capital Home Care,Domiciliary Care,Personalisation - PD,1464.21,0.00,1464.21,23/06/2016
Capital Home Care,Domiciliary Care,Personalisation - OP,1522.69,0.00,1522.69,23/06/2016
Capital Home Care,Domiciliary Care,Personalisation - OP,1546.16,0.00,1546.16,23/06/2016
Capital Home Care,Domiciliary Care,Personalisation - OP,1639.91,0.00,1639.91,23/06/2016
Capital Home Care,Domiciliary Care,Personalisation - OP,1724.00,0.00,1724.00,23/06/2016
Capital Home Care,Domiciliary Care,Personalisation - OP,1757.00,0.00,1757.00,23/06/2016
Capital Home Care,Domiciliary Care,Personalisation - OP,1874.09,0.00,1874.09,23/06/2016
Capital Home Care,Domiciliary Care,Personalisation - OP,1932.70,0.00,1932.70,23/06/2016
Capital Home Care,Domiciliary Care,Personalisation - OP,2476.49,0.00,2476.49,23/06/2016
Capital Home Care,Domiciliary Care,Personalisation - OP,3865.40,0.00,3865.40,23/06/2016
Capital Home Care (UK) Ltd - ISF,Social Care Personal Budgets,Personalisation - PD,508.20,0.00,508.20,18/04/2016
Capital Home Care (UK) Ltd - ISF,Adults & Social - Net P.B.'s,Personalisation - OP,-25.16,0.00,-25.16,18/04/2016
Capital Home Care (UK) Ltd - ISF,Social Care Personal Budgets,Personalisation - OP,564.64,0.00,564.64,18/04/2016
Capital Home Care (UK) Ltd - ISF,Social Care Personal Budgets,Personalisation - PD,548.40,0.00,548.40,18/04/2016
Capital Home Care (UK) Ltd - ISF,Social Care Personal Budgets,Personalisation - OP,553.16,0.00,553.16,18/04/2016
Capital Home Care (UK) Ltd - ISF,Social Care Personal Budgets,Personalisation - OP,564.84,0.00,564.84,18/04/2016
Capital Home Care (UK) Ltd - ISF,Social Care Personal Budgets,Personalisation - PD,572.56,0.00,572.56,18/04/2016
Capital Home Care (UK) Ltd - ISF,Adults & Social - Net P.B.'s,Personalisation - OP,-103.96,0.00,-103.96,18/04/2016
Capital Home Care (UK) Ltd - ISF,Social Care Personal Budgets,Personalisation - OP,677.60,0.00,677.60,18/04/2016
Capital Home Care (UK) Ltd - ISF,Social Care Personal Budgets,Personalisation - PD,645.16,0.00,645.16,18/04/2016
Capital Home Care (UK) Ltd - ISF,Social Care Personal Budgets,Personalisation - OP,664.68,0.00,664.68,18/04/2016
Capital Home Care (UK) Ltd - ISF,Social Care Personal Budgets,Personalisation - OP,750.20,0.00,750.20,18/04/2016
Capital Home Care (UK) Ltd - ISF,Social Care Personal Budgets,Personalisation - OP,790.36,0.00,790.36,18/04/2016
Capital Home Care (UK) Ltd - ISF,Social Care Personal Budgets,Personalisation - OP,903.44,0.00,903.44,18/04/2016
Capital Home Care (UK) Ltd - ISF,Social Care Personal Budgets,Personalisation - OP,903.60,0.00,903.60,18/04/2016
Capital Home Care (UK) Ltd - ISF,Social Care Personal Budgets,Personalisation - OP,927.80,0.00,927.80,18/04/2016
Capital Home Care (UK) Ltd - ISF,Social Care Personal Budgets,Personalisation - OP,1016.40,0.00,1016.40,18/04/2016
Capital Home Care (UK) Ltd - ISF,Adults & Social - Net P.B.'s,Personalisation - OP,-69.44,0.00,-69.44,18/04/2016
Capital Home Care (UK) Ltd - ISF,Social Care Personal Budgets,Personalisation - OP,1129.16,0.00,1129.16,18/04/2016
Capital Home Care (UK) Ltd - ISF,Social Care Personal Budgets,Personalisation - PD,1137.40,0.00,1137.40,18/04/2016
Capital Home Care (UK) Ltd - ISF,Social Care Personal Budgets,Personalisation - OP,1468.00,0.00,1468.00,18/04/2016
Capital Home Care (UK) Ltd - ISF,Adults & Social - Net P.B.'s,Personalisation - OP,-210.20,0.00,-210.20,18/04/2016
Capital Home Care (UK) Ltd - ISF,Adults & Social - Net P.B.'s,Personalisation - OP,-53.96,0.00,-53.96,18/04/2016
Capital Home Care (UK) Ltd - ISF,Social Care Personal Budgets,Personalisation - OP,1355.20,0.00,1355.20,18/04/2016
Capital Home Care (UK) Ltd - ISF,Social Care Personal Budgets,Personalisation - PD,1355.20,0.00,1355.20,18/04/2016
Capital Home Care (UK) Ltd - ISF,Social Care Personal Budgets,Personalisation - OP,1694.00,0.00,1694.00,18/04/2016
Capital Home Care (UK) Ltd - ISF,Adults & Social - Net P.B.'s,Personalisation - OP,-68.40,0.00,-68.40,18/04/2016
Capital Home Care (UK) Ltd - ISF,Social Care Personal Budgets,Personalisation - OP,1659.00,0.00,1659.00,18/04/2016
Capital Home Care (UK) Ltd - ISF,Social Care Personal Budgets,Personalisation - PD,1694.00,0.00,1694.00,18/04/2016
Capital Home Care (UK) Ltd - ISF,Social Care Personal Budgets,Personalisation - OP,1863.40,0.00,1863.40,18/04/2016
Capital Home Care (UK) Ltd - ISF,Adults & Social - Net P.B.'s,Personalisation - OP,-61.44,0.00,-61.44,18/04/2016
Capital Home Care (UK) Ltd - ISF,Social Care Personal Budgets,Personalisation - OP,2436.56,0.00,2436.56,18/04/2016
Capital Home Care (UK) Ltd - ISF,Social Care Personal Budgets,Personalisation - PD,508.20,0.00,508.20,18/05/2016
Capital Home Care (UK) Ltd - ISF,Adults & Social - Net P.B.'s,Personalisation - OP,-261.44,0.00,-261.44,18/05/2016
Capital Home Care (UK) Ltd - ISF,Social Care Personal Budgets,Personalisation - OP,790.36,0.00,790.36,18/05/2016
Capital Home Care (UK) Ltd - ISF,Social Care Personal Budgets,Personalisation - OP,564.64,0.00,564.64,18/05/2016
Capital Home Care (UK) Ltd - ISF,Adults & Social - Net P.B.'s,Personalisation - OP,-25.16,0.00,-25.16,18/05/2016
Capital Home Care (UK) Ltd - ISF,Social Care Personal Budgets,Personalisation - PD,548.40,0.00,548.40,18/05/2016
Capital Home Care (UK) Ltd - ISF,Social Care Personal Budgets,Personalisation - OP,553.16,0.00,553.16,18/05/2016
Capital Home Care (UK) Ltd - ISF,Social Care Personal Budgets,Personalisation - OP,564.84,0.00,564.84,18/05/2016
Capital Home Care (UK) Ltd - ISF,Social Care Personal Budgets,Personalisation - PD,572.56,0.00,572.56,18/05/2016
Capital Home Care (UK) Ltd - ISF,Social Care Personal Budgets,Personalisation - OP,677.60,0.00,677.60,18/05/2016
Capital Home Care (UK) Ltd - ISF,Adults & Social - Net P.B.'s,Personalisation - OP,-103.96,0.00,-103.96,18/05/2016
Capital Home Care (UK) Ltd - ISF,Social Care Personal Budgets,Personalisation - PD,645.16,0.00,645.16,18/05/2016
Capital Home Care (UK) Ltd - ISF,Social Care Personal Budgets,Personalisation - OP,664.68,0.00,664.68,18/05/2016
Capital Home Care (UK) Ltd - ISF,Social Care Personal Budgets,Personalisation - OP,750.20,0.00,750.20,18/05/2016
Capital Home Care (UK) Ltd - ISF,Social Care Personal Budgets,Personalisation - OP,903.44,0.00,903.44,18/05/2016
Capital Home Care (UK) Ltd - ISF,Social Care Personal Budgets,Personalisation - OP,903.60,0.00,903.60,18/05/2016
Capital Home Care (UK) Ltd - ISF,Social Care Personal Budgets,Personalisation - OP,927.80,0.00,927.80,18/05/2016
Capital Home Care (UK) Ltd - ISF,Social Care Personal Budgets,Personalisation - OP,1016.40,0.00,1016.40,18/05/2016
Capital Home Care (UK) Ltd - ISF,Adults & Social - Net P.B.'s,Personalisation - OP,-69.44,0.00,-69.44,18/05/2016
Capital Home Care (UK) Ltd - ISF,Social Care Personal Budgets,Personalisation - OP,1129.16,0.00,1129.16,18/05/2016
Capital Home Care (UK) Ltd - ISF,Social Care Personal Budgets,Personalisation - PD,1137.40,0.00,1137.40,18/05/2016
Capital Home Care (UK) Ltd - ISF,Social Care Personal Budgets,Personalisation - OP,1468.00,0.00,1468.00,18/05/2016
Capital Home Care (UK) Ltd - ISF,Adults & Social - Net P.B.'s,Personalisation - OP,-210.20,0.00,-210.20,18/05/2016
Capital Home Care (UK) Ltd - ISF,Social Care Personal Budgets,Personalisation - OP,1355.20,0.00,1355.20,18/05/2016
Capital Home Care (UK) Ltd - ISF,Adults & Social - Net P.B.'s,Personalisation - OP,-53.96,0.00,-53.96,18/05/2016
Capital Home Care (UK) Ltd - ISF,Social Care Personal Budgets,Personalisation - PD,1355.20,0.00,1355.20,18/05/2016
Capital Home Care (UK) Ltd - ISF,Adults & Social - Net P.B.'s,Personalisation - OP,-68.40,0.00,-68.40,18/05/2016
Capital Home Care (UK) Ltd - ISF,Social Care Personal Budgets,Personalisation - OP,1694.00,0.00,1694.00,18/05/2016
Capital Home Care (UK) Ltd - ISF,Social Care Personal Budgets,Personalisation - OP,1659.00,0.00,1659.00,18/05/2016
Capital Home Care (UK) Ltd - ISF,Social Care Personal Budgets,Personalisation - PD,1694.00,0.00,1694.00,18/05/2016
Capital Home Care (UK) Ltd - ISF,Social Care Personal Budgets,Personalisation - OP,1863.40,0.00,1863.40,18/05/2016
Capital Home Care (UK) Ltd - ISF,Adults & Social - Net P.B.'s,Personalisation - OP,-61.44,0.00,-61.44,18/05/2016
Capital Home Care (UK) Ltd - ISF,Social Care Personal Budgets,Personalisation - OP,2436.56,0.00,2436.56,18/05/2016
Capital Home Care (UK) Ltd - ISF,Social Care Personal Budgets,Personalisation - PD,508.20,0.00,508.20,21/06/2016
Capital Home Care (UK) Ltd - ISF,Adults & Social - Net P.B.'s,Personalisation - OP,-25.16,0.00,-25.16,21/06/2016
Capital Home Care (UK) Ltd - ISF,Social Care Personal Budgets,Personalisation - OP,564.64,0.00,564.64,21/06/2016
Capital Home Care (UK) Ltd - ISF,Social Care Personal Budgets,Personalisation - PD,548.40,0.00,548.40,21/06/2016
Capital Home Care (UK) Ltd - ISF,Social Care Personal Budgets,Personalisation - OP,553.16,0.00,553.16,21/06/2016
Capital Home Care (UK) Ltd - ISF,Social Care Personal Budgets,Personalisation - OP,564.84,0.00,564.84,21/06/2016
Capital Home Care (UK) Ltd - ISF,Social Care Personal Budgets,Personalisation - PD,572.56,0.00,572.56,21/06/2016
Capital Home Care (UK) Ltd - ISF,Adults & Social - Net P.B.'s,Personalisation - OP,-103.96,0.00,-103.96,21/06/2016
Capital Home Care (UK) Ltd - ISF,Social Care Personal Budgets,Personalisation - OP,677.60,0.00,677.60,21/06/2016
Capital Home Care (UK) Ltd - ISF,Social Care Personal Budgets,Personalisation - PD,645.16,0.00,645.16,21/06/2016
Capital Home Care (UK) Ltd - ISF,Adults & Social - Net P.B.'s,Personalisation - OP,-130.72,0.00,-130.72,21/06/2016
Capital Home Care (UK) Ltd - ISF,Social Care Personal Budgets,Personalisation - OP,790.36,0.00,790.36,21/06/2016
Capital Home Care (UK) Ltd - ISF,Social Care Personal Budgets,Personalisation - OP,664.68,0.00,664.68,21/06/2016
Capital Home Care (UK) Ltd - ISF,Social Care Personal Budgets,Personalisation - OP,750.20,0.00,750.20,21/06/2016
Capital Home Care (UK) Ltd - ISF,Social Care Personal Budgets,Personalisation - OP,903.44,0.00,903.44,21/06/2016
Capital Home Care (UK) Ltd - ISF,Social Care Personal Budgets,Personalisation - OP,903.60,0.00,903.60,21/06/2016
Capital Home Care (UK) Ltd - ISF,Social Care Personal Budgets,Personalisation - OP,927.80,0.00,927.80,21/06/2016
Capital Home Care (UK) Ltd - ISF,Social Care Personal Budgets,Personalisation - OP,1016.40,0.00,1016.40,21/06/2016
Capital Home Care (UK) Ltd - ISF,Adults & Social - Net P.B.'s,Personalisation - OP,-69.44,0.00,-69.44,21/06/2016
Capital Home Care (UK) Ltd - ISF,Social Care Personal Budgets,Personalisation - OP,1129.16,0.00,1129.16,21/06/2016
Capital Home Care (UK) Ltd - ISF,Social Care Personal Budgets,Personalisation - PD,1137.40,0.00,1137.40,21/06/2016
Capital Home Care (UK) Ltd - ISF,Social Care Personal Budgets,Personalisation - OP,1468.00,0.00,1468.00,21/06/2016
Capital Home Care (UK) Ltd - ISF,Adults & Social - Net P.B.'s,Personalisation - OP,-210.20,0.00,-210.20,21/06/2016
Capital Home Care (UK) Ltd - ISF,Adults & Social - Net P.B.'s,Personalisation - OP,-53.96,0.00,-53.96,21/06/2016
Capital Home Care (UK) Ltd - ISF,Social Care Personal Budgets,Personalisation - OP,1355.20,0.00,1355.20,21/06/2016
Capital Home Care (UK) Ltd - ISF,Social Care Personal Budgets,Personalisation - PD,1355.20,0.00,1355.20,21/06/2016
Capital Home Care (UK) Ltd - ISF,Adults & Social - Net P.B.'s,Personalisation - OP,-68.40,0.00,-68.40,21/06/2016
Capital Home Care (UK) Ltd - ISF,Social Care Personal Budgets,Personalisation - OP,1694.00,0.00,1694.00,21/06/2016
Capital Home Care (UK) Ltd - ISF,Social Care Personal Budgets,Personalisation - OP,1659.00,0.00,1659.00,21/06/2016
Capital Home Care (UK) Ltd - ISF,Social Care Personal Budgets,Personalisation - PD,1694.00,0.00,1694.00,21/06/2016
Capital Home Care (UK) Ltd - ISF,Social Care Personal Budgets,Personalisation - OP,1863.40,0.00,1863.40,21/06/2016
Capital Home Care (UK) Ltd - ISF,Adults & Social - Net P.B.'s,Personalisation - OP,-61.44,0.00,-61.44,21/06/2016
Capital Property & Construction,Consultants Fees,,1440.00,288.00,1728.00,05/04/2016
Capstan Security Ltd,Security Costs,Stanmore Park Nursery,623.00,124.60,747.60,15/04/2016
Capwell Grange Nursing Home,Nursing Care,Long Term Team - PD,3686.57,0.00,3686.57,27/04/2016
Capwell Grange Nursing Home,Adults & Social - Client Charges,Long Term Team - PD,-417.13,0.00,-417.13,27/04/2016
Capwell Grange Nursing Home,Recovery of Costs (External - Non Vatable),Long Term Team - PD,-480.00,0.00,-480.00,27/04/2016
Capwell Grange Nursing Home,Nursing Care,Long Term Team - PD,3809.46,0.00,3809.46,25/05/2016
Capwell Grange Nursing Home,Adults & Social - Client Charges,Long Term Team - PD,-431.03,0.00,-431.03,25/05/2016
Capwell Grange Nursing Home,Recovery of Costs (External - Non Vatable),Long Term Team - PD,-496.00,0.00,-496.00,25/05/2016
Capwell Grange Nursing Home,Nursing Care,Long Term Team - PD,3686.57,0.00,3686.57,28/06/2016
Capwell Grange Nursing Home,Adults & Social - Client Charges,Long Term Team - PD,-417.13,0.00,-417.13,28/06/2016
Capwell Grange Nursing Home,Recovery of Costs (External - Non Vatable),Long Term Team - PD,-480.00,0.00,-480.00,28/06/2016
Care Assist Limited,Supptd Accommodation for Social Care Clients,Long Term Team - LD,1285.71,0.00,1285.71,27/04/2016
Care Assist Limited,Supptd Accommodation for Social Care Clients,Long Term Team - LD,1328.57,0.00,1328.57,26/05/2016
Care Assist Limited,Supptd Accommodation for Social Care Clients,Long Term Team - LD,-1285.72,0.00,-1285.72,27/06/2016
Care Assist Limited,Supptd Accommodation for Social Care Clients,Long Term Team - LD,1285.72,0.00,1285.72,27/06/2016
Care Assist Limited,Supptd Accommodation for Social Care Clients,Long Term Team - LD,1285.72,0.00,1285.72,28/06/2016
Care South (Leybourne House),Residential Placements,Long Term Team - OP,2742.86,0.00,2742.86,27/04/2016
Care South (Leybourne House),Residential Placements,Long Term Team - OP,-2742.86,0.00,-2742.86,25/05/2016
Care South (Leybourne House),Residential Placements,Long Term Team - OP,6100.00,0.00,6100.00,25/05/2016
Care South (Leybourne House),Residential Placements,Long Term Team - OP,3000.00,0.00,3000.00,28/06/2016
Care UK,Adults & Social - Client Charges,Long Term Team - OP,-545.57,0.00,-545.57,27/04/2016
Care UK,Nursing Care,Long Term Team - OP,2704.76,0.00,2704.76,27/04/2016
Care UK,Recovery of Costs (External - Non Vatable),Long Term Team - OP,-480.00,0.00,-480.00,27/04/2016
Care UK,Nursing Care,Long Term Team - OP,4350.90,0.00,4350.90,27/04/2016
Care UK,Recovery of Costs (External - Non Vatable),Long Term Team - OP,-480.00,0.00,-480.00,27/04/2016
Care UK,Adults & Social - Client Charges,Long Term Team - OP,-541.29,0.00,-541.29,27/04/2016
Care UK,Nursing Care,Interim Funding,4950.00,0.00,4950.00,27/04/2016
Care UK,Recovery of Costs (External - Non Vatable),Interim Funding,-480.00,0.00,-480.00,27/04/2016
Care UK,Adults & Social - Client Charges,Long Term Team - OP,-563.76,0.00,-563.76,26/05/2016
Care UK,Nursing Care,Long Term Team - OP,2794.92,0.00,2794.92,26/05/2016
Care UK,Recovery of Costs (External - Non Vatable),Long Term Team - OP,-496.00,0.00,-496.00,26/05/2016
Care UK,Recovery of Costs (External - Non Vatable),Long Term Team - OP,-496.00,0.00,-496.00,26/05/2016
Care UK,Nursing Care,Long Term Team - OP,4495.93,0.00,4495.93,26/05/2016
Care UK,Adults & Social - Client Charges,Long Term Team - OP,-591.38,0.00,-591.38,26/05/2016
Care UK,Recovery of Costs (External - Non Vatable),Interim Funding,-496.00,0.00,-496.00,26/05/2016
Care UK,Nursing Care,Interim Funding,5115.00,0.00,5115.00,26/05/2016
Care UK,Adults & Social - Client Charges,Long Term Team - OP,-2511.18,0.00,-2511.18,07/06/2016
Care UK,Nursing Care,Long Term Team - OP,8636.81,0.00,8636.81,07/06/2016
Care UK,Nursing Care,Long Term Team - OP,2141.35,0.00,2141.35,30/06/2016
Care UK,Adults & Social - Client Charges,Long Term Team - OP,-540.98,0.00,-540.98,30/06/2016
Care UK,Adults & Social - Client Charges,Long Term Team - OP,-545.57,0.00,-545.57,30/06/2016
Care UK,Nursing Care,Long Term Team - OP,2704.75,0.00,2704.75,30/06/2016
Care UK,Recovery of Costs (External - Non Vatable),Long Term Team - OP,-480.00,0.00,-480.00,30/06/2016
Care UK,Adults & Social - Client Charges,Long Term Team - OP,-560.15,0.00,-560.15,30/06/2016
Care UK,Nursing Care,Long Term Team - OP,4350.90,0.00,4350.90,30/06/2016
Care UK,Recovery of Costs (External - Non Vatable),Long Term Team - OP,-480.00,0.00,-480.00,30/06/2016
Care UK,Nursing Care,Interim Funding,4950.00,0.00,4950.00,30/06/2016
Care UK,Recovery of Costs (External - Non Vatable),Interim Funding,-480.00,0.00,-480.00,30/06/2016
Care UK,Residential Placements,Long Term Team - OP,1971.43,0.00,1971.43,27/04/2016
Care UK,Adults & Social - Client Charges,Long Term Team - OP,-696.69,0.00,-696.69,27/04/2016
Care UK,Residential Placements,Long Term Team - OP,2292.86,0.00,2292.86,27/04/2016
Care UK,Adults & Social - Client Charges,Long Term Team - OP,-659.70,0.00,-659.70,27/04/2016
Care UK,Residential Placements,Long Term Team - OP,2250.00,0.00,2250.00,27/04/2016
Care UK,Residential Placements,Long Term Team - OP,2314.29,0.00,2314.29,27/04/2016
Care UK,Recovery of Costs (External - Non Vatable),Long Term Team - OP,-480.00,0.00,-480.00,27/04/2016
Care UK,Nursing Care,Long Term Team - OP,3750.00,0.00,3750.00,27/04/2016
Care UK,Adults & Social - Client Charges,Long Term Team - OP,-541.29,0.00,-541.29,27/04/2016
Care UK,Residential Placements,Long Term Team - OP,2037.14,0.00,2037.14,25/05/2016
Care UK,Adults & Social - Client Charges,Long Term Team - OP,-719.91,0.00,-719.91,25/05/2016
Care UK,Residential Placements,Long Term Team - OP,2325.00,0.00,2325.00,25/05/2016
Care UK,Adults & Social - Client Charges,Long Term Team - OP,-681.69,0.00,-681.69,26/05/2016
Care UK,Residential Placements,Long Term Team - OP,2369.29,0.00,2369.29,26/05/2016
Care UK,Residential Placements,Long Term Team - OP,2391.43,0.00,2391.43,26/05/2016
Care UK,Adults & Social - Client Charges,Long Term Team - OP,-559.33,0.00,-559.33,26/05/2016
Care UK,Nursing Care,Long Term Team - OP,3875.00,0.00,3875.00,26/05/2016
Care UK,Recovery of Costs (External - Non Vatable),Long Term Team - OP,-496.00,0.00,-496.00,26/05/2016
Care UK,Residential Placements,Long Term Team - OP,1971.43,0.00,1971.43,28/06/2016
Care UK,Adults & Social - Client Charges,Long Term Team - OP,-696.68,0.00,-696.68,28/06/2016
Care UK,Residential Placements,Long Term Team - OP,2250.00,0.00,2250.00,28/06/2016
Care UK,Adults & Social - Client Charges,Long Term Team - OP,-659.70,0.00,-659.70,30/06/2016
Care UK,Residential Placements,Long Term Team - OP,2292.85,0.00,2292.85,30/06/2016
Care UK,Residential Placements,Long Term Team - OP,2314.28,0.00,2314.28,30/06/2016
Care UK,Recovery of Costs (External - Non Vatable),Long Term Team - OP,-480.00,0.00,-480.00,30/06/2016
Care UK,Nursing Care,Long Term Team - OP,3750.00,0.00,3750.00,30/06/2016
Care UK,Adults & Social - Client Charges,Long Term Team - OP,-541.28,0.00,-541.28,30/06/2016
Care2talk,Section 17,Cin Team 1,1892.00,0.00,1892.00,20/06/2016
CAREBASE BURNT OAK LTD,Recovery of Costs (External - Non Vatable),Long Term Team - OP,-480.00,0.00,-480.00,27/04/2016
CAREBASE BURNT OAK LTD,Nursing Care,Long Term Team - OP,2691.86,0.00,2691.86,27/04/2016
CAREBASE BURNT OAK LTD,Adults & Social - Client Charges,Long Term Team - OP,-541.29,0.00,-541.29,27/04/2016
CAREBASE BURNT OAK LTD,Nursing Care,Long Term Team - OP,2709.47,0.00,2709.47,27/04/2016
CAREBASE BURNT OAK LTD,Recovery of Costs (External - Non Vatable),Long Term Team - OP,-480.00,0.00,-480.00,27/04/2016
CAREBASE BURNT OAK LTD,Adults & Social - Client Charges,Long Term Team - OP,-525.51,0.00,-525.51,27/04/2016
CAREBASE BURNT OAK LTD,Recovery of Costs (External - Non Vatable),Long Term Team - OP,-480.00,0.00,-480.00,27/04/2016
CAREBASE BURNT OAK LTD,Nursing Care,Long Term Team - OP,2756.19,0.00,2756.19,27/04/2016
CAREBASE BURNT OAK LTD,Adults & Social - Client Charges,Long Term Team - OP,-541.29,0.00,-541.29,27/04/2016
CAREBASE BURNT OAK LTD,Nursing Care,Long Term Team - OP,2725.24,0.00,2725.24,27/04/2016
CAREBASE BURNT OAK LTD,Recovery of Costs (External - Non Vatable),Long Term Team - OP,-480.00,0.00,-480.00,27/04/2016
CAREBASE BURNT OAK LTD,Recovery of Costs (External - Non Vatable),Long Term Team - OP,-496.00,0.00,-496.00,25/05/2016
CAREBASE BURNT OAK LTD,Nursing Care,Long Term Team - OP,2781.59,0.00,2781.59,25/05/2016
CAREBASE BURNT OAK LTD,Adults & Social - Client Charges,Long Term Team - OP,-559.33,0.00,-559.33,25/05/2016
CAREBASE BURNT OAK LTD,Nursing Care,Long Term Team - OP,2799.79,0.00,2799.79,25/05/2016
CAREBASE BURNT OAK LTD,Recovery of Costs (External - Non Vatable),Long Term Team - OP,-496.00,0.00,-496.00,25/05/2016
CAREBASE BURNT OAK LTD,Adults & Social - Client Charges,Long Term Team - OP,-543.03,0.00,-543.03,25/05/2016
CAREBASE BURNT OAK LTD,Adults & Social - Client Charges,Long Term Team - OP,-559.33,0.00,-559.33,25/05/2016
CAREBASE BURNT OAK LTD,Nursing Care,Long Term Team - OP,2848.06,0.00,2848.06,25/05/2016
CAREBASE BURNT OAK LTD,Recovery of Costs (External - Non Vatable),Long Term Team - OP,-496.00,0.00,-496.00,25/05/2016
CAREBASE BURNT OAK LTD,Nursing Care,Long Term Team - OP,2816.08,0.00,2816.08,25/05/2016
CAREBASE BURNT OAK LTD,Recovery of Costs (External - Non Vatable),Long Term Team - OP,-496.00,0.00,-496.00,25/05/2016
CAREBASE BURNT OAK LTD,Recovery of Costs (External - Non Vatable),Long Term Team - OP,-480.00,0.00,-480.00,28/06/2016
CAREBASE BURNT OAK LTD,Nursing Care,Long Term Team - OP,2691.85,0.00,2691.85,28/06/2016
CAREBASE BURNT OAK LTD,Adults & Social - Client Charges,Long Term Team - OP,-541.28,0.00,-541.28,28/06/2016
CAREBASE BURNT OAK LTD,Nursing Care,Long Term Team - OP,2709.47,0.00,2709.47,28/06/2016
CAREBASE BURNT OAK LTD,Recovery of Costs (External - Non Vatable),Long Term Team - OP,-480.00,0.00,-480.00,28/06/2016
CAREBASE BURNT OAK LTD,Adults & Social - Client Charges,Long Term Team - OP,-525.52,0.00,-525.52,28/06/2016
CAREBASE BURNT OAK LTD,Adults & Social - Client Charges,Long Term Team - OP,-541.28,0.00,-541.28,28/06/2016
CAREBASE BURNT OAK LTD,Nursing Care,Long Term Team - OP,2756.18,0.00,2756.18,28/06/2016
CAREBASE BURNT OAK LTD,Recovery of Costs (External - Non Vatable),Long Term Team - OP,-480.00,0.00,-480.00,28/06/2016
CAREBASE BURNT OAK LTD,Nursing Care,Long Term Team - OP,2725.25,0.00,2725.25,28/06/2016
CAREBASE BURNT OAK LTD,Recovery of Costs (External - Non Vatable),Long Term Team - OP,-480.00,0.00,-480.00,28/06/2016
Caremark - ISF,Social Care Personal Budgets,Personalisation - OP,949.64,0.00,949.64,18/04/2016
Caremark - ISF,Social Care Personal Budgets,Personalisation - PD,2900.00,0.00,2900.00,18/04/2016
Caremark - ISF,Social Care Personal Budgets,Personalisation - OP,949.64,0.00,949.64,18/05/2016
Caremark - ISF,Social Care Personal Budgets,Personalisation - PD,2900.00,0.00,2900.00,18/05/2016
Caremark - ISF,Social Care Personal Budgets,Personalisation - OP,949.64,0.00,949.64,21/06/2016
Caremark - ISF,Social Care Personal Budgets,Personalisation - PD,2900.00,0.00,2900.00,21/06/2016
Caretech Community Services Limited,Residential Placements,Long Term Team - LD,1971.43,0.00,1971.43,27/04/2016
Caretech Community Services Limited,Residential Placements,Long Term Team - LD,2444.10,0.00,2444.10,27/04/2016
Caretech Community Services Limited,Adults & Social - Client Charges,Long Term Team - LD,-344.79,0.00,-344.79,27/04/2016
Caretech Community Services Limited,Residential Placements,Long Term Team - LD,5439.00,0.00,5439.00,27/04/2016
Caretech Community Services Limited,Residential Placements,Long Term Team - LD,6921.43,0.00,6921.43,27/04/2016
Caretech Community Services Limited,Adults & Social - Client Charges,Long Term Team - LD,-413.79,0.00,-413.79,27/04/2016
Caretech Community Services Limited,Adults & Social - Client Charges,Long Term Team - LD,-356.28,0.00,-356.28,25/05/2016
Caretech Community Services Limited,Residential Placements,Long Term Team - LD,2525.57,0.00,2525.57,25/05/2016
Caretech Community Services Limited,Residential Placements,Long Term Team - LD,2037.14,0.00,2037.14,25/05/2016
Caretech Community Services Limited,Residential Placements,Long Term Team - LD,5620.30,0.00,5620.30,25/05/2016
Caretech Community Services Limited,Residential Placements,Long Term Team - LD,7152.14,0.00,7152.14,25/05/2016
Caretech Community Services Limited,Adults & Social - Client Charges,Long Term Team - LD,-427.58,0.00,-427.58,25/05/2016
Caretech Community Services Limited,Residential Placements,Long Term Team - LD,1971.43,0.00,1971.43,28/06/2016
Caretech Community Services Limited,Residential Placements,Long Term Team - LD,2444.10,0.00,2444.10,28/06/2016
Caretech Community Services Limited,Adults & Social - Client Charges,Long Term Team - LD,-344.78,0.00,-344.78,28/06/2016
Caretech Community Services Limited,Residential Placements,Long Term Team - LD,5439.00,0.00,5439.00,28/06/2016
Caretech Community Services Limited,Adults & Social - Client Charges,Long Term Team - LD,-413.78,0.00,-413.78,28/06/2016
Caretech Community Services Limited,Residential Placements,Long Term Team - LD,6921.43,0.00,6921.43,28/06/2016
Carewatch - ISF,Social Care Personal Budgets,Personalisation - OP,508.20,0.00,508.20,18/04/2016
Carewatch - ISF,Social Care Personal Budgets,Personalisation - OP,621.12,0.00,621.12,18/04/2016
Carewatch - ISF,Social Care Personal Budgets,Personalisation - OP,734.24,0.00,734.24,18/04/2016
Carewatch - ISF,Social Care Personal Budgets,Personalisation - PD,983.96,0.00,983.96,18/04/2016
Carewatch - ISF,Adults & Social - Net P.B.'s,Personalisation - PD,-236.76,0.00,-236.76,18/04/2016
Carewatch - ISF,Social Care Personal Budgets,Personalisation - PD,2605.64,0.00,2605.64,18/04/2016
Carewatch - ISF,Social Care Personal Budgets,Personalisation - OP,621.12,0.00,621.12,18/05/2016
Carewatch - ISF,Social Care Personal Budgets,Personalisation - OP,734.24,0.00,734.24,18/05/2016
Carewatch - ISF,Social Care Personal Budgets,Personalisation - PD,983.96,0.00,983.96,18/05/2016
Carewatch - ISF,Social Care Personal Budgets,Personalisation - PD,2605.64,0.00,2605.64,18/05/2016
Carewatch - ISF,Adults & Social - Net P.B.'s,Personalisation - PD,-236.76,0.00,-236.76,18/05/2016
Carewatch - ISF,Social Care Personal Budgets,Personalisation - OP,-1179.75,0.00,-1179.75,21/06/2016
Carewatch - ISF,Social Care Personal Budgets,Personalisation - OP,734.24,0.00,734.24,21/06/2016
Carewatch - ISF,Social Care Personal Budgets,Personalisation - PD,983.96,0.00,983.96,21/06/2016
Carewatch - ISF,Adults & Social - Net P.B.'s,Personalisation - PD,-236.76,0.00,-236.76,21/06/2016
Carewatch - ISF,Social Care Personal Budgets,Personalisation - PD,2605.64,0.00,2605.64,21/06/2016
Carewatch - ISF,Social Care Personal Budgets,Personalisation - OP,4174.50,0.00,4174.50,21/06/2016
Carewatch - ISF,Social Care Personal Budgets,Personalisation - OP,7804.50,0.00,7804.50,21/06/2016
Carewatch (Harrow),Domiciliary Care,Personalisation - OP,534.85,0.00,534.85,28/04/2016
Carewatch (Harrow),Domiciliary Care,Personalisation - OP,678.13,0.00,678.13,28/04/2016
Carewatch (Harrow),Domiciliary Care,Personalisation - OP,769.07,0.00,769.07,28/04/2016
Carewatch (Harrow),Domiciliary Care,Personalisation - OP,874.48,0.00,874.48,28/04/2016
Carewatch (Harrow),Domiciliary Care,Personalisation - OP,1115.87,0.00,1115.87,28/04/2016
Carewatch (Harrow),Domiciliary Care,Personalisation - OP,1259.12,0.00,1259.12,28/04/2016
Carewatch (Harrow),Domiciliary Care,Personalisation - OP,1837.15,0.00,1837.15,28/04/2016
Carewatch (Harrow),Domiciliary Care,Personalisation - PD,525.31,0.00,525.31,31/05/2016
Carewatch (Harrow),Domiciliary Care,Personalisation - OP,529.52,0.00,529.52,31/05/2016
Carewatch (Harrow),Domiciliary Care,Personalisation - OP,570.08,0.00,570.08,31/05/2016
Carewatch (Harrow),Domiciliary Care,Personalisation - OP,623.37,0.00,623.37,31/05/2016
Carewatch (Harrow),Domiciliary Care,Personalisation - OP,940.55,0.00,940.55,31/05/2016
Carewatch (Harrow),Domiciliary Care,Personalisation - OP,1259.77,0.00,1259.77,31/05/2016
Carewatch (Harrow),Domiciliary Care,Personalisation - OP,1366.15,0.00,1366.15,31/05/2016
Carewatch (Harrow),Domiciliary Care,Children With Disabilities Client Costs,641.10,0.00,641.10,13/06/2016
Carewatch (Harrow),Domiciliary Care,Children With Disabilities Client Costs,726.66,0.00,726.66,13/06/2016
Carewatch (Harrow),Domiciliary Care,Personalisation - OP,505.71,0.00,505.71,27/06/2016
Carewatch (Harrow),Domiciliary Care,Personalisation - OP,506.82,0.00,506.82,27/06/2016
Carewatch (Harrow),Domiciliary Care,Personalisation - PD,532.41,0.00,532.41,27/06/2016
Carewatch (Harrow),Domiciliary Care,Personalisation - OP,652.49,0.00,652.49,27/06/2016
Carewatch (Harrow),Domiciliary Care,Personalisation - OP,796.94,0.00,796.94,27/06/2016
Carewatch (Harrow),Domiciliary Care,Personalisation - OP,797.15,0.00,797.15,27/06/2016
Carewatch (Harrow),Domiciliary Care,Personalisation - OP,1034.68,0.00,1034.68,27/06/2016
Carewatch (Harrow),Domiciliary Care,Personalisation - OP,1451.23,0.00,1451.23,27/06/2016
Carewatch (Harrow),Domiciliary Care,Personalisation - OP,1626.89,0.00,1626.89,27/06/2016
Carewatch (Harrow),Domiciliary Care,Personalisation - OP,1810.37,0.00,1810.37,27/06/2016
Carillion Integrated Services Ltd,Other Professional Fees,Library Projects,153576.00,30715.20,184291.20,05/04/2016
Carillion Integrated Services Ltd,Other Professional Fees,Leisure Centre,5017.00,1003.40,6020.40,13/04/2016
Carillion Integrated Services Ltd,Other Professional Fees,Library Projects,153576.00,30715.20,184291.20,05/05/2016
Carillion Integrated Services Ltd,Other Professional Fees,Library Administration,182041.15,36408.23,218449.38,05/05/2016
Carillion Integrated Services Ltd,Other Professional Fees,Library Projects,50000.00,10000.00,60000.00,25/05/2016
Carillion Integrated Services Ltd,Other Professional Fees,Library Projects,153576.00,30715.20,184291.20,10/06/2016
Caring with a Difference - ISF,Adults & Social - Net P.B.'s,Personalisation - PD,-8.08,0.00,-8.08,18/04/2016
Caring with a Difference - ISF,Social Care Personal Budgets,Personalisation - PD,1694.12,0.00,1694.12,18/04/2016
Caring with a Difference - ISF,Social Care Personal Budgets,Personalisation - PD,1694.12,0.00,1694.12,18/05/2016
Caring with a Difference - ISF,Adults & Social - Net P.B.'s,Personalisation - PD,-8.08,0.00,-8.08,18/05/2016
Caring with a Difference - ISF,Domiciliary Care,Personalisation - OP,723.64,0.00,723.64,19/05/2016
Caring with a Difference - ISF,Domiciliary Care,Personalisation - OP,1593.00,0.00,1593.00,19/05/2016
Caring with a Difference - ISF,Domiciliary Care,Long Term Team - OP,2357.50,0.00,2357.50,19/05/2016
Caring with a Difference - ISF,Reablement for Care Clients,Reablement - OP,545.75,0.00,545.75,26/05/2016
Caring with a Difference - ISF,Reablement for Care Clients,Reablement - OP,553.13,0.00,553.13,26/05/2016
Caring with a Difference - ISF,Reablement for Care Clients,Reablement - OP,604.75,0.00,604.75,26/05/2016
Caring with a Difference - ISF,Reablement for Care Clients,Reablement - OP,604.75,0.00,604.75,26/05/2016
Caring with a Difference - ISF,Reablement for Care Clients,Reablement - OP,619.50,0.00,619.50,26/05/2016
Caring with a Difference - ISF,Reablement for Care Clients,Reablement - OP,654.90,0.00,654.90,26/05/2016
Caring with a Difference - ISF,Reablement for Care Clients,Reablement - OP,656.38,0.00,656.38,26/05/2016
Caring with a Difference - ISF,Reablement for Care Clients,Reablement - OP,811.25,0.00,811.25,26/05/2016
Caring with a Difference - ISF,Reablement for Care Clients,Reablement - OP,899.75,0.00,899.75,26/05/2016
Caring with a Difference - ISF,Reablement for Care Clients,Reablement - OP,918.19,0.00,918.19,26/05/2016
Caring with a Difference - ISF,Reablement for Care Clients,Reablement - OP,1069.37,0.00,1069.37,26/05/2016
Caring with a Difference - ISF,Reablement for Care Clients,Reablement - OP,597.38,0.00,597.38,17/06/2016
Caring with a Difference - ISF,Adults & Social - Net P.B.'s,Personalisation - PD,-8.08,0.00,-8.08,21/06/2016
Caring with a Difference - ISF,Social Care Personal Budgets,Personalisation - PD,1694.12,0.00,1694.12,21/06/2016
Caring with a Difference - ISF,Reablement for Care Clients,Reablement - OP,533.21,0.00,533.21,24/06/2016
Caring with a Difference - ISF,Reablement for Care Clients,Reablement - OP,700.63,0.00,700.63,24/06/2016
Caring with a Difference - ISF,Reablement for Care Clients,Reablement - OP,914.50,0.00,914.50,24/06/2016
Caring with a Difference - ISF,Reablement for Care Clients,Reablement - OP,1121.00,0.00,1121.00,24/06/2016
Carlton House Residential Care Home,Respite Costs,Long Term Team - OP,-1388.57,0.00,-1388.57,27/04/2016
Carlton House Residential Care Home,Respite Costs,Long Term Team - OP,1997.14,0.00,1997.14,27/04/2016
Carlton House Residential Care Home,Adults & Social - Client Charges,Long Term Team - OP,-414.99,0.00,-414.99,27/04/2016
Carlton House Residential Care Home,Adults & Social - Client Charges,Long Term Team - OP,-126.30,0.00,-126.30,27/04/2016
Carlton House Residential Care Home,Residential Placements,Long Term Team - OP,2250.00,0.00,2250.00,27/04/2016
Carlton House Residential Care Home,Adults & Social - Client Charges,Long Term Team - OP,-650.14,0.00,-650.14,27/04/2016
Carlton House Residential Care Home,Adults & Social - Client Charges,Long Term Team - OP,-560.74,0.00,-560.74,27/04/2016
Carlton House Residential Care Home,Residential Placements,Long Term Team - OP,2250.00,0.00,2250.00,27/04/2016
Carlton House Residential Care Home,Adults & Social - Client Charges,Long Term Team - OP,-582.43,0.00,-582.43,27/04/2016
Carlton House Residential Care Home,Residential Placements,Long Term Team - OP,2314.29,0.00,2314.29,27/04/2016
Carlton House Residential Care Home,Adults & Social - Client Charges,Long Term Team - OP,-541.29,0.00,-541.29,27/04/2016
Carlton House Residential Care Home,Residential Placements,Long Term Team - OP,2314.29,0.00,2314.29,27/04/2016
Carlton House Residential Care Home,Adults & Social - Client Charges,Long Term Team - OP,-393.34,0.00,-393.34,27/04/2016
Carlton House Residential Care Home,Residential Placements,Long Term Team - OP,2314.29,0.00,2314.29,27/04/2016
Carlton House Residential Care Home,Residential Placements,Long Term Team - OP,2314.29,0.00,2314.29,27/04/2016
Carlton House Residential Care Home,Adults & Social - Client Charges,Long Term Team - OP,-541.29,0.00,-541.29,27/04/2016
Carlton House Residential Care Home,Adults & Social - Client Charges,Long Term Team - OP,5178.30,0.00,5178.30,27/04/2016
Carlton House Residential Care Home,Respite Costs,Long Term Team - OP,6711.42,0.00,6711.42,27/04/2016
Carlton House Residential Care Home,Adults & Social - Client Charges,Long Term Team - OP,-1569.72,0.00,-1569.72,27/04/2016
Carlton House Residential Care Home,Residential Placements,Long Term Team - OP,11031.43,0.00,11031.43,27/04/2016
Carlton House Residential Care Home,Residential Placements,Long Term Team - OP,4358.57,0.00,4358.57,27/04/2016
Carlton House Residential Care Home,Adults & Social - Client Charges,Long Term Team - OP,-234.55,0.00,-234.55,25/05/2016
Carlton House Residential Care Home,Adults & Social - Client Charges,Long Term Team - OP,-8.17,0.00,-8.17,25/05/2016
Carlton House Residential Care Home,Respite Costs,Long Term Team - OP,865.43,0.00,865.43,25/05/2016
Carlton House Residential Care Home,Adults & Social - Client Charges,Long Term Team - OP,-671.81,0.00,-671.81,25/05/2016
Carlton House Residential Care Home,Residential Placements,Long Term Team - OP,2325.00,0.00,2325.00,25/05/2016
Carlton House Residential Care Home,Adults & Social - Client Charges,Long Term Team - OP,-579.43,0.00,-579.43,25/05/2016
Carlton House Residential Care Home,Residential Placements,Long Term Team - OP,2325.00,0.00,2325.00,25/05/2016
Carlton House Residential Care Home,Residential Placements,Long Term Team - OP,2391.43,0.00,2391.43,25/05/2016
Carlton House Residential Care Home,Adults & Social - Client Charges,Long Term Team - OP,-601.84,0.00,-601.84,25/05/2016
Carlton House Residential Care Home,Residential Placements,Long Term Team - OP,2391.43,0.00,2391.43,25/05/2016
Carlton House Residential Care Home,Adults & Social - Client Charges,Long Term Team - OP,-559.33,0.00,-559.33,25/05/2016
Carlton House Residential Care Home,Respite Costs,Long Term Team - OP,2796.00,0.00,2796.00,25/05/2016
Carlton House Residential Care Home,Adults & Social - Client Charges,Long Term Team - OP,-959.34,0.00,-959.34,25/05/2016
Carlton House Residential Care Home,Residential Placements,Long Term Team - OP,2391.43,0.00,2391.43,25/05/2016
Carlton House Residential Care Home,Adults & Social - Client Charges,Long Term Team - OP,-406.45,0.00,-406.45,25/05/2016
Carlton House Residential Care Home,Residential Placements,Long Term Team - OP,2391.43,0.00,2391.43,25/05/2016
Carlton House Residential Care Home,Residential Placements,Long Term Team - OP,2391.43,0.00,2391.43,25/05/2016
Carlton House Residential Care Home,Residential Placements,Long Term Team - OP,2250.00,0.00,2250.00,28/06/2016
Carlton House Residential Care Home,Adults & Social - Client Charges,Long Term Team - OP,-650.15,0.00,-650.15,28/06/2016
Carlton House Residential Care Home,Adults & Social - Client Charges,Long Term Team - OP,-560.75,0.00,-560.75,28/06/2016
Carlton House Residential Care Home,Residential Placements,Long Term Team - OP,2250.00,0.00,2250.00,28/06/2016
Carlton House Residential Care Home,Residential Placements,Long Term Team - OP,2314.28,0.00,2314.28,28/06/2016
Carlton House Residential Care Home,Adults & Social - Client Charges,Long Term Team - OP,-582.43,0.00,-582.43,28/06/2016
Carlton House Residential Care Home,Adults & Social - Client Charges,Long Term Team - OP,-541.28,0.00,-541.28,28/06/2016
Carlton House Residential Care Home,Residential Placements,Long Term Team - OP,2314.28,0.00,2314.28,28/06/2016
Carlton House Residential Care Home,Residential Placements,Long Term Team - OP,2314.28,0.00,2314.28,28/06/2016
Carlton House Residential Care Home,Adults & Social - Client Charges,Long Term Team - OP,-393.35,0.00,-393.35,28/06/2016
Carlton House Residential Care Home,Residential Placements,Long Term Team - OP,2314.28,0.00,2314.28,28/06/2016
Carlton House Residential Care Home,Residential Placements,Long Term Team - OP,2314.28,0.00,2314.28,28/06/2016
Carlton House Residential Care Home,Residential Placements,Long Term Team - OP,2995.72,0.00,2995.72,28/06/2016
Carlton House Residential Care Home,Adults & Social - Client Charges,Long Term Team - OP,-630.25,0.00,-630.25,28/06/2016
Caroline Daly,Legal Fees/Advocacy,Development Control,500.00,100.00,600.00,20/05/2016
CarpetRight,Social Services Clients - Other Payments,Cin Team 1,666.67,133.33,800.00,05/04/2016
Cash Handling Systems Ltd,Other Professional Fees,Cashiers Services,1210.00,242.00,1452.00,04/05/2016
Catalyst Communities,Residential Placements,Long Term Team - OP,-34810.28,0.00,-34810.28,26/05/2016
Catalyst Communities,Adults & Social - Client Charges,Long Term Team - OP,-2198.52,0.00,-2198.52,26/05/2016
Catalyst Communities,Adults & Social - Client Charges,Long Term Team - OP,-2056.68,0.00,-2056.68,26/05/2016
Catalyst Communities,Adults & Social - Client Charges,Long Term Team - OP,-1162.95,0.00,-1162.95,26/05/2016
Catalyst Communities,Adults & Social - Client Charges,Long Term Team - OP,-978.22,0.00,-978.22,26/05/2016
Catalyst Communities,Adults & Social - Client Charges,Long Term Team - OP,-971.80,0.00,-971.80,26/05/2016
Catalyst Communities,Adults & Social - Client Charges,Long Term Team - OP,-915.12,0.00,-915.12,26/05/2016
Catalyst Communities,Adults & Social - Client Charges,Long Term Team - OP,-909.11,0.00,-909.11,26/05/2016
Catalyst Communities,Adults & Social - Client Charges,Long Term Team - OP,-828.63,0.00,-828.63,26/05/2016
Catalyst Communities,Adults & Social - Client Charges,Long Term Team - OP,-775.17,0.00,-775.17,26/05/2016
Catalyst Communities,Adults & Social - Client Charges,Long Term Team - OP,-773.62,0.00,-773.62,26/05/2016
Catalyst Communities,Adults & Social - Client Charges,Long Term Team - OP,-752.32,0.00,-752.32,26/05/2016
Catalyst Communities,Adults & Social - Client Charges,Long Term Team - OP,-723.72,0.00,-723.72,26/05/2016
Catalyst Communities,Adults & Social - Client Charges,Long Term Team - OP,-703.79,0.00,-703.79,26/05/2016
Catalyst Communities,Adults & Social - Client Charges,Long Term Team - OP,-597.85,0.00,-597.85,26/05/2016
Catalyst Communities,Adults & Social - Client Charges,Long Term Team - OP,-569.77,0.00,-569.77,26/05/2016
Catalyst Communities,Adults & Social - Client Charges,Long Term Team - OP,-568.54,0.00,-568.54,26/05/2016
Catalyst Communities,Adults & Social - Client Charges,Long Term Team - OP,-567.56,0.00,-567.56,26/05/2016
Catalyst Communities,Adults & Social - Client Charges,Long Term Team - OP,-559.72,0.00,-559.72,26/05/2016
Catalyst Communities,Adults & Social - Client Charges,Long Term Team - OP,-559.33,0.00,-559.33,26/05/2016
Catalyst Communities,Adults & Social - Client Charges,Long Term Team - OP,-559.33,0.00,-559.33,26/05/2016
Catalyst Communities,Adults & Social - Client Charges,Long Term Team - OP,-559.33,0.00,-559.33,26/05/2016
Catalyst Communities,Adults & Social - Client Charges,Long Term Team - OP,-559.33,0.00,-559.33,26/05/2016
Catalyst Communities,Adults & Social - Client Charges,Long Term Team - OP,-559.33,0.00,-559.33,26/05/2016
Catalyst Communities,Adults & Social - Client Charges,Long Term Team - OP,-559.33,0.00,-559.33,26/05/2016
Catalyst Communities,Adults & Social - Client Charges,Long Term Team - OP,-559.33,0.00,-559.33,26/05/2016
Catalyst Communities,Adults & Social - Client Charges,Long Term Team - OP,-559.33,0.00,-559.33,26/05/2016
Catalyst Communities,Adults & Social - Client Charges,Long Term Team - OP,-559.33,0.00,-559.33,26/05/2016
Catalyst Communities,Adults & Social - Client Charges,Long Term Team - OP,-559.33,0.00,-559.33,26/05/2016
Catalyst Communities,Adults & Social - Client Charges,Long Term Team - OP,-559.33,0.00,-559.33,26/05/2016
Catalyst Communities,Adults & Social - Client Charges,Interim Funding,-559.33,0.00,-559.33,26/05/2016
Catalyst Communities,Adults & Social - Client Charges,Long Term Team - OP,-559.33,0.00,-559.33,26/05/2016
Catalyst Communities,Adults & Social - Client Charges,Long Term Team - OP,-559.33,0.00,-559.33,26/05/2016
Catalyst Communities,Adults & Social - Client Charges,Long Term Team - OP,-559.33,0.00,-559.33,26/05/2016
Catalyst Communities,Adults & Social - Client Charges,Long Term Team - OP,-559.33,0.00,-559.33,26/05/2016
Catalyst Communities,Adults & Social - Client Charges,Long Term Team - OP,-559.29,0.00,-559.29,26/05/2016
Catalyst Communities,Adults & Social - Client Charges,Long Term Team - OP,-546.05,0.00,-546.05,26/05/2016
Catalyst Communities,Adults & Social - Client Charges,Long Term Team - OP,-537.59,0.00,-537.59,26/05/2016
Catalyst Communities,Adults & Social - Client Charges,Long Term Team - OP,-531.86,0.00,-531.86,26/05/2016
Catalyst Communities,Adults & Social - Client Charges,Long Term Team - OP,-530.95,0.00,-530.95,26/05/2016
Catalyst Communities,Adults & Social - Client Charges,Long Term Team - OP,-525.20,0.00,-525.20,26/05/2016
Catalyst Communities,Adults & Social - Client Charges,Long Term Team - OP,-523.62,0.00,-523.62,26/05/2016
Catalyst Communities,Adults & Social - Client Charges,Long Term Team - OP,-523.24,0.00,-523.24,26/05/2016
Catalyst Communities,Adults & Social - Client Charges,Long Term Team - OP,-523.24,0.00,-523.24,26/05/2016
Catalyst Communities,Adults & Social - Client Charges,Long Term Team - OP,-523.24,0.00,-523.24,26/05/2016
Catalyst Communities,Adults & Social - Client Charges,Long Term Team - OP,-523.24,0.00,-523.24,26/05/2016
Catalyst Communities,Adults & Social - Client Charges,Long Term Team - OP,-523.24,0.00,-523.24,26/05/2016
Catalyst Communities,Adults & Social - Client Charges,Long Term Team - OP,-523.24,0.00,-523.24,26/05/2016
Catalyst Communities,Adults & Social - Client Charges,Long Term Team - OP,-523.24,0.00,-523.24,26/05/2016
Catalyst Communities,Adults & Social - Client Charges,Long Term Team - OP,-523.24,0.00,-523.24,26/05/2016
Catalyst Communities,Adults & Social - Client Charges,Long Term Team - OP,-523.24,0.00,-523.24,26/05/2016
Catalyst Communities,Adults & Social - Client Charges,Long Term Team - OP,-523.24,0.00,-523.24,26/05/2016
Catalyst Communities,Adults & Social - Client Charges,Interim Funding,-523.24,0.00,-523.24,26/05/2016
Catalyst Communities,Adults & Social - Client Charges,Long Term Team - OP,-523.24,0.00,-523.24,26/05/2016
Catalyst Communities,Adults & Social - Client Charges,Long Term Team - OP,-523.24,0.00,-523.24,26/05/2016
Catalyst Communities,Adults & Social - Client Charges,Long Term Team - OP,-523.24,0.00,-523.24,26/05/2016
Catalyst Communities,Adults & Social - Client Charges,Long Term Team - OP,-523.24,0.00,-523.24,26/05/2016
Catalyst Communities,Adults & Social - Client Charges,Long Term Team - OP,-523.24,0.00,-523.24,26/05/2016
Catalyst Communities,Adults & Social - Client Charges,Long Term Team - OP,-510.81,0.00,-510.81,26/05/2016
Catalyst Communities,Adults & Social - Client Charges,Long Term Team - OP,-505.20,0.00,-505.20,26/05/2016
Catalyst Communities,Adults & Social - Client Charges,Long Term Team - OP,-502.90,0.00,-502.90,26/05/2016
Catalyst Communities,Residential Placements,Long Term Team - OP,2788.14,0.00,2788.14,26/05/2016
Catalyst Communities,Residential Placements,Long Term Team - OP,2980.43,0.00,2980.43,26/05/2016
Catalyst Communities,Residential Placements,Long Term Team - OP,2980.43,0.00,2980.43,26/05/2016
Catalyst Communities,Residential Placements,Long Term Team - OP,32207.85,0.00,32207.85,26/05/2016
Catalyst Communities,Residential Placements,Long Term Team - OP,92544.91,0.00,92544.91,26/05/2016
Catalyst Communities,Day Care Payments,Long Term Team - OP,42243.39,0.00,42243.39,26/05/2016
Catalyst Communities,Residential Placements,Long Term Team - OP,97621.49,0.00,97621.49,26/05/2016
Catalyst Communities,Day Care Payments,Long Term Team - OP,46266.57,0.00,46266.57,26/05/2016
Catalyst Communities,Residential Placements,Long Term Team - OP,-2980.43,0.00,-2980.43,02/06/2016
Catalyst Communities,Adults & Social - Client Charges,Long Term Team - OP,-2127.60,0.00,-2127.60,02/06/2016
Catalyst Communities,Adults & Social - Client Charges,Long Term Team - OP,-1232.35,0.00,-1232.35,02/06/2016
Catalyst Communities,Adults & Social - Client Charges,Long Term Team - OP,-946.67,0.00,-946.67,02/06/2016
Catalyst Communities,Adults & Social - Client Charges,Long Term Team - OP,-940.46,0.00,-940.46,02/06/2016
Catalyst Communities,Adults & Social - Client Charges,Long Term Team - OP,-801.90,0.00,-801.90,02/06/2016
Catalyst Communities,Adults & Social - Client Charges,Long Term Team - OP,-748.67,0.00,-748.67,02/06/2016
Catalyst Communities,Adults & Social - Client Charges,Long Term Team - OP,-728.06,0.00,-728.06,02/06/2016
Catalyst Communities,Adults & Social - Client Charges,Long Term Team - OP,-578.57,0.00,-578.57,02/06/2016
Catalyst Communities,Adults & Social - Client Charges,Long Term Team - OP,-553.86,0.00,-553.86,02/06/2016
Catalyst Communities,Adults & Social - Client Charges,Long Term Team - OP,-553.86,0.00,-553.86,02/06/2016
Catalyst Communities,Adults & Social - Client Charges,Interim Funding,-553.86,0.00,-553.86,02/06/2016
Catalyst Communities,Adults & Social - Client Charges,Long Term Team - OP,-553.86,0.00,-553.86,02/06/2016
Catalyst Communities,Adults & Social - Client Charges,Long Term Team - OP,-550.20,0.00,-550.20,02/06/2016
Catalyst Communities,Adults & Social - Client Charges,Long Term Team - OP,-549.26,0.00,-549.26,02/06/2016
Catalyst Communities,Adults & Social - Client Charges,Long Term Team - OP,-541.67,0.00,-541.67,02/06/2016
Catalyst Communities,Adults & Social - Client Charges,Long Term Team - OP,-541.29,0.00,-541.29,02/06/2016
Catalyst Communities,Adults & Social - Client Charges,Long Term Team - OP,-541.29,0.00,-541.29,02/06/2016
Catalyst Communities,Adults & Social - Client Charges,Long Term Team - OP,-541.29,0.00,-541.29,02/06/2016
Catalyst Communities,Adults & Social - Client Charges,Long Term Team - OP,-541.29,0.00,-541.29,02/06/2016
Catalyst Communities,Adults & Social - Client Charges,Long Term Team - OP,-541.29,0.00,-541.29,02/06/2016
Catalyst Communities,Adults & Social - Client Charges,Long Term Team - OP,-541.29,0.00,-541.29,02/06/2016
Catalyst Communities,Adults & Social - Client Charges,Long Term Team - OP,-541.29,0.00,-541.29,02/06/2016
Catalyst Communities,Adults & Social - Client Charges,Long Term Team - OP,-541.29,0.00,-541.29,02/06/2016
Catalyst Communities,Adults & Social - Client Charges,Long Term Team - OP,-541.29,0.00,-541.29,02/06/2016
Catalyst Communities,Adults & Social - Client Charges,Long Term Team - OP,-541.29,0.00,-541.29,02/06/2016
Catalyst Communities,Adults & Social - Client Charges,Long Term Team - OP,-541.29,0.00,-541.29,02/06/2016
Catalyst Communities,Adults & Social - Client Charges,Long Term Team - OP,-541.29,0.00,-541.29,02/06/2016
Catalyst Communities,Adults & Social - Client Charges,Long Term Team - OP,-541.29,0.00,-541.29,02/06/2016
Catalyst Communities,Adults & Social - Client Charges,Long Term Team - OP,-528.43,0.00,-528.43,02/06/2016
Catalyst Communities,Adults & Social - Client Charges,Long Term Team - OP,-520.24,0.00,-520.24,02/06/2016
Catalyst Communities,Residential Placements,Long Term Team - OP,2884.29,0.00,2884.29,02/06/2016
Catalyst Communities,Residential Placements,Long Term Team - OP,2980.43,0.00,2980.43,02/06/2016
